date,department/service,beneficiary,amount,summary of purpose,category,transaction number,SAP vendor number
01.07.2020,ASSET MANAGEMENT,SIMON L TAYLOR LTD,359.37,DISREPAIR,PAYMENTS FOR LEGAL SERVICES,5902422257,1000056151
01.07.2020,CUSTOMER EXPERIENCE HGF,NORBURY PROPERTY SERVICES (LONDON) LTD,"44,002.20",NIGHTLY TA (NSC),EXTERNAL AGENCIES AND BODIES,5902422661,1000075566
01.07.2020,LEISURE DIRECTORATE,WESTMINSTER WASTE,919.00,CEMETERIES,OTHER CONTRACTORS,5902422521,1000080933
02.07.2020,ADULT SOCIAL CARE,DENTONS UK AND MIDDLE EAST LLP,"3,984.00",DIR OF ASC,LEGAL FEES & COURT COSTS,2103118880,1000083222
02.07.2020,ADULT SOCIAL CARE,CHRISTINE COOPER,337.50,DIR OF ASC,LEGAL FEES & COURT COSTS,2103118877,1000058155
02.07.2020,ADULT SOCIAL CARE,BENJAMIN TANKEL,"5,690.00",DIR OF ASC,LEGAL FEES & COURT COSTS,2103118866,1000069057
02.07.2020,ADULT SOCIAL CARE,BENJAMIN TANKEL,"23,550.00",DIR OF ASC,LEGAL FEES & COURT COSTS,2103118865,1000069057
02.07.2020,ADULT SOCIAL CARE,HOUSING 21,"25,811.28",EXTRA CARE CONTRACT,RENTS,5902423059,1000037120
02.07.2020,ADULT SOCIAL CARE,ATEGI LTD,420.00,LD LTS 18-64,PLACEMENTS - RESPITE,2103118794,1000081382
02.07.2020,ADULT SOCIAL CARE,PEABODY TRUST,949.32,LD LTS 18-64,SUPPORTED LIVING,2103118770,11275862
02.07.2020,ADULT SOCIAL CARE,CONTACT PROFESSIONALS,465.00,LD LTS 18-64,SUPPORTED LIVING,2103118772,1000057263
02.07.2020,ADULT SOCIAL CARE,CONTACT PROFESSIONALS,494.00,LD LTS 18-64,SUPPORTED LIVING,2103118774,1000057263
02.07.2020,ADULT SOCIAL CARE,CARE DIRECT UK LTD,347.51,LD LTS 18-64,SUPPORTED LIVING,2103118764,1000066322
02.07.2020,ADULT SOCIAL CARE,ABILITY FOCUS LTD,"2,156.00",LD LTS 18-64,SUPPORTED LIVING,2103118778,1000084199
02.07.2020,ADULT SOCIAL CARE,OASIS CARE AND TRAINING AGENCY,937.72,MH LTS 18-64,SUPPORTED LIVING,2103118776,1000003687
02.07.2020,ADULT SOCIAL CARE,AGE UK LEWISHAM & SOUTHWARK,"90,730.83",OLDER PEOPLES HUBS,EXTERNAL AGENCIES AND BODIES,5902423101,1507154
02.07.2020,ADULT SOCIAL CARE,LONDON CARE LTD,321.45,PHY LTS 18-64,HOMECARE - C&V,2103118744,1000003398
02.07.2020,ADULT SOCIAL CARE,LONDON CARE LTD,857.15,PHY LTS 18-64,HOMECARE - C&V,2103118724,1000003398
02.07.2020,ADULT SOCIAL CARE,ELEANOR NURSING AND SOCIAL CARE LTD,709.43,PHY LTS 18-64,HOMECARE - SPOT,2103118784,1000081695
02.07.2020,ADULT SOCIAL CARE,ELEANOR NURSING AND SOCIAL CARE LTD,709.44,PHY LTS 18-64,HOMECARE - SPOT,2103118792,1000081695
02.07.2020,ADULT SOCIAL CARE,ELEANOR NURSING AND SOCIAL CARE LTD,"3,564.36",PHY LTS 18-64,HOMECARE - SPOT,2103118786,1000081695
02.07.2020,ADULT SOCIAL CARE,ELEANOR NURSING AND SOCIAL CARE LTD,"3,564.36",PHY LTS 18-64,HOMECARE - SPOT,2103118790,1000081695
02.07.2020,ADULT SOCIAL CARE,LONDON CARE LTD,360.60,PHY LTS 65+,HOMECARE - C&V,2103118742,1000003398
02.07.2020,ADULT SOCIAL CARE,LONDON CARE LTD,601.00,PHY LTS 65+,HOMECARE - C&V,2103118756,1000003398
02.07.2020,ADULT SOCIAL CARE,LONDON CARE LTD,"1,012.60",PHY LTS 65+,HOMECARE - C&V,2103118726,1000003398
02.07.2020,ADULT SOCIAL CARE,LONDON CARE LTD,"1,068.76",PHY LTS 65+,HOMECARE - C&V,2103118732,1000003398
02.07.2020,ADULT SOCIAL CARE,LONDON CARE LTD,"1,232.07",PHY LTS 65+,HOMECARE - C&V,2103118746,1000003398
02.07.2020,ADULT SOCIAL CARE,LONDON CARE LTD,"2,084.77",PHY LTS 65+,HOMECARE - C&V,2103118728,1000003398
02.07.2020,ADULT SOCIAL CARE,CARE DIRECT UK LTD,559.13,PHY LTS 65+,HOMECARE - SPOT,2103118762,1000066322
02.07.2020,ADULT SOCIAL CARE,CARE DIRECT UK LTD,621.25,PHY LTS 65+,HOMECARE - SPOT,2103118760,1000066322
02.07.2020,ADULT SOCIAL CARE,ELEANOR NURSING AND SOCIAL CARE LTD,281.14,PHY LTS 65+,HOMECARE - SPOT,2103118780,1000081695
02.07.2020,ADULT SOCIAL CARE,ELEANOR NURSING AND SOCIAL CARE LTD,517.54,PHY LTS 65+,HOMECARE - SPOT,2103118782,1000081695
02.07.2020,ADULT SOCIAL CARE,ELEANOR NURSING AND SOCIAL CARE LTD,"1,760.37",PHY LTS 65+,HOMECARE - SPOT,2103118788,1000081695
02.07.2020,ADULT SOCIAL CARE,LONDON CARE LTD,340.00,PHY STS 65+,HOMECARE - IC,2103118752,1000003398
02.07.2020,ADULT SOCIAL CARE,LONDON CARE LTD,371.35,PHY STS 65+,HOMECARE - IC,2103118748,1000003398
02.07.2020,ADULT SOCIAL CARE,LONDON CARE LTD,427.33,PHY STS 65+,HOMECARE - IC,2103118718,1000003398
02.07.2020,ADULT SOCIAL CARE,LONDON CARE LTD,455.56,PHY STS 65+,HOMECARE - IC,2103118734,1000003398
02.07.2020,ADULT SOCIAL CARE,LONDON CARE LTD,502.80,PHY STS 65+,HOMECARE - IC,2103118758,1000003398
02.07.2020,ADULT SOCIAL CARE,LONDON CARE LTD,511.13,PHY STS 65+,HOMECARE - IC,2103118716,1000003398
02.07.2020,ADULT SOCIAL CARE,LONDON CARE LTD,"2,412.96",PHY STS 65+,HOMECARE - IC,2103118750,1000003398
02.07.2020,ADULT SOCIAL CARE,LONDON CARE LTD,561.00,SOCIAL ISOLATION,HOMECARE - IC,2103118738,1000003398
02.07.2020,ASSET MANAGEMENT,CHESHIRE ESTATE AND LEGAL LTD,"1,750.00",DISREPAIR,PAYMENTS FOR LEGAL SERVICES,2103118849,1000081908
02.07.2020,ASSET MANAGEMENT,CHESHIRE ESTATE AND LEGAL LTD,"4,092.64",DISREPAIR,PAYMENTS FOR LEGAL SERVICES,2103118846,1000081908
02.07.2020,ASSET MANAGEMENT,CHESHIRE ESTATE AND LEGAL LTD,"8,000.00",DISREPAIR,PAYMENTS FOR LEGAL SERVICES,2103118850,1000081908
02.07.2020,ASSET MANAGEMENT,CLAPHAM LAW LLP,"7,000.00",DISREPAIR,PAYMENTS FOR LEGAL SERVICES,2103118848,1000082044
02.07.2020,ASSET MANAGEMENT,MALONE & WHITE SOLICITORS LTD,"4,500.00",DISREPAIR,PAYMENTS FOR LEGAL SERVICES,2103118847,1000083893
02.07.2020,CENTRAL FUNCTIONS,EDF ENERGY PLC,387.20,GARAGE REPAIRS,ELECTRICITY,5902423071,1008746
02.07.2020,CENTRAL FUNCTIONS,KENT COUNTY COUNCIL - LASER,"-1,045.15",HEATING ACCOUNT,ELECTRICITY,2103120337,1000012926
02.07.2020,CENTRAL FUNCTIONS,KENT COUNTY COUNCIL - LASER,"-1,000.96",HEATING ACCOUNT,ELECTRICITY,2103120338,1000012926
02.07.2020,CENTRAL FUNCTIONS,KENT COUNTY COUNCIL - LASER,-275.33,HEATING ACCOUNT,ELECTRICITY,2103120336,1000012926
02.07.2020,CENTRAL FUNCTIONS,KENT COUNTY COUNCIL - LASER,275.33,HEATING ACCOUNT,ELECTRICITY,2103120326,1000012926
02.07.2020,CENTRAL FUNCTIONS,KENT COUNTY COUNCIL - LASER,"1,000.96",HEATING ACCOUNT,ELECTRICITY,2103120328,1000012926
02.07.2020,CENTRAL FUNCTIONS,KENT COUNTY COUNCIL - LASER,"1,045.15",HEATING ACCOUNT,ELECTRICITY,2103120327,1000012926
02.07.2020,CENTRAL FUNCTIONS,TANFIELD CHAMBERS,"5,000.00",HOME OWNERSHIP,LEGAL FEES & COURT COSTS,5902423161,1000078320
02.07.2020,CENTRAL FUNCTIONS,REDACTED PERSONAL DATA,570.04,OPERATIONAL TEAM,HOUSING RESIDENTIAL RENTS,REDACTED,REDACTED
02.07.2020,CENTRAL FUNCTIONS,ALLPAY LTD,-768.72,SERVICE LEVEL AGREEMENTS,BANK CHARGES,5902423369,1000043001
02.07.2020,CENTRAL FUNCTIONS,ALLPAY LTD,768.72,SERVICE LEVEL AGREEMENTS,BANK CHARGES,5902423359,1000043001
02.07.2020,CHIEF EXECUTIVE,STUDIO MANOLO LTD,"1,000.00",CAPITAL PS (REGEN),CONSTRUCTION FEES  - EXTERNAL,5902422348,1000084089
02.07.2020,CHIEF EXECUTIVE'S OFFICE,INSIDE OUT ARCHITECTURE LTD,"25,000.00",DISCRETIONARY GRANTS,GRANTS,2103118938,1000045167
02.07.2020,CHIEF EXECUTIVE'S OFFICE,THE LONDON BRIDGE EXPERIENCE LTD,"25,000.00",DISCRETIONARY GRANTS,GRANTS,2103118930,1000061543
02.07.2020,CHIEF EXECUTIVE'S OFFICE,GOURMET GOAT LTD,"5,000.00",DISCRETIONARY GRANTS,GRANTS,2103118923,1000084720
02.07.2020,CHIEF EXECUTIVE'S OFFICE,WHITESIDE ELLIOTT DESIGN LTD,"2,500.00",DISCRETIONARY GRANTS,GRANTS,2103118924,1000084721
02.07.2020,CHIEF EXECUTIVE'S OFFICE,DUB DUB AND AWAY LTD,"2,500.00",DISCRETIONARY GRANTS,GRANTS,2103118922,1000084722
02.07.2020,CHIEF EXECUTIVE'S OFFICE,OWAIN WILLIAMS ARCHITECTURE LTD,"2,500.00",DISCRETIONARY GRANTS,GRANTS,2103118921,1000084723
02.07.2020,CHIEF EXECUTIVE'S OFFICE,GREEDY FOODS LTD,"5,000.00",DISCRETIONARY GRANTS,GRANTS,2103118937,1000084724
02.07.2020,CHIEF EXECUTIVE'S OFFICE,COOPER POILE ASSOCIATES LTD,"25,000.00",DISCRETIONARY GRANTS,GRANTS,2103118928,1000084726
02.07.2020,CHIEF EXECUTIVE'S OFFICE,OPPOSITION MUSIC LTD,"2,500.00",DISCRETIONARY GRANTS,GRANTS,2103118925,1000084732
02.07.2020,CHIEF EXECUTIVE'S OFFICE,ZOE ROBERTS,"2,500.00",DISCRETIONARY GRANTS,GRANTS,2103118927,1000084735
02.07.2020,CHIEF EXECUTIVE'S OFFICE,ABDULREZA HEIDARI,"2,379.00",DISCRETIONARY GRANTS,GRANTS,2103118929,1000084736
02.07.2020,CHIEF EXECUTIVE'S OFFICE,STORY EVENTS LTD,"25,000.00",DISCRETIONARY GRANTS,GRANTS,2103118931,1000084739
02.07.2020,CHIEF EXECUTIVE'S OFFICE,SUSPENDED ILLUSIONS LTD,"2,500.00",DISCRETIONARY GRANTS,GRANTS,2103118917,1000084746
02.07.2020,CHIEF EXECUTIVE'S OFFICE,MULTILATERAL STRUCTURAL DESIGN LTD,"5,000.00",DISCRETIONARY GRANTS,GRANTS,2103118918,1000084747
02.07.2020,CHIEF EXECUTIVE'S OFFICE,KOBAS TECHNOLOGIES LTD,"25,000.00",DISCRETIONARY GRANTS,GRANTS,2103118919,1000084748
02.07.2020,CHIEF EXECUTIVE'S OFFICE,ABDUL KHALIL  AFZALI,"2,500.00",DISCRETIONARY GRANTS,GRANTS,2103118920,1000084749
02.07.2020,CHIEF EXECUTIVE'S OFFICE,PEM CAPITAL  LTD,"2,500.00",DISCRETIONARY GRANTS,GRANTS,2103118926,1000084751
02.07.2020,CHIEF EXECUTIVE'S OFFICE,FERROUS WHEEL METAL WORKS,"2,500.00",DISCRETIONARY GRANTS,GRANTS,2103118932,1000084758
02.07.2020,CHIEF EXECUTIVE'S OFFICE,WITH CREATIVE LTD,"5,000.00",DISCRETIONARY GRANTS,GRANTS,2103118933,1000084759
02.07.2020,CHIEF EXECUTIVE'S OFFICE,MISSION VENTURES LTD,"5,000.00",DISCRETIONARY GRANTS,GRANTS,2103118935,1000084760
02.07.2020,CHIEF EXECUTIVE'S OFFICE,OUT OF ORDER DESIGN LTD,"2,500.00",DISCRETIONARY GRANTS,GRANTS,2103118934,1000084761
02.07.2020,CHIEF EXECUTIVE'S OFFICE,MAKYS LOGISTICS & EVENTS LTD,"2,500.00",DISCRETIONARY GRANTS,GRANTS,2103118936,1000084762
02.07.2020,CHILDREN'S SERVICES,PERSONAL SECURITY SERVICE LTD,320.94,CARE SERVICES 0-15,OTHER PAYMENTS FOR CLIENTS,5902423081,1000081780
02.07.2020,CHILDREN'S SERVICES,LONDON BOROUGH OF BROMLEY,"2,000.00",FOSTERING TEAM EXPENSES,SUBSCRIPTIONS,5902423005,1061538
02.07.2020,CHILDREN'S SERVICES,LOGICOUS LTD,"1,296.25",FRIENDS & FAMILY FOSTERING,NURSING PLACEMENTS FEES,5902423020,1000073852
02.07.2020,CHILDREN'S SERVICES,PARSONS MARSHALL PSYCHOLOGY LTD,491.40,LEGAL,LEGAL FEES & COURT COSTS,2103118893,1000076158
02.07.2020,CHILDREN'S SERVICES,CALAMAT LTD,400.00,LEGAL,LEGAL FEES & COURT COSTS,2103118875,1000084187
02.07.2020,CHILDREN'S SERVICES,SATORI HEALTHCARE LTD,358.80,LEGAL,LEGAL FEES & COURT COSTS,2103118896,1000084717
02.07.2020,CHILDREN'S SERVICES,SATORI HEALTHCARE LTD,"3,677.10",LEGAL,LEGAL FEES & COURT COSTS,2103118895,1000084717
02.07.2020,CHILDREN'S SERVICES,REDACTED PERSONAL DATA,823.50,LEGAL,LEGAL FEES & COURT COSTS,REDACTED,REDACTED
02.07.2020,CHILDREN'S SERVICES,REDACTED PERSONAL DATA,320.00,LEGAL,LEGAL FEES & COURT COSTS,REDACTED,REDACTED
02.07.2020,CHILDREN'S SERVICES,REDACTED PERSONAL DATA,375.00,LEGAL,LEGAL FEES & COURT COSTS,REDACTED,REDACTED
02.07.2020,CHILDREN'S SERVICES,REDACTED PERSONAL DATA,450.00,LEGAL,LEGAL FEES & COURT COSTS,REDACTED,REDACTED
02.07.2020,CHILDREN'S SERVICES,REDACTED PERSONAL DATA,450.00,LEGAL,LEGAL FEES & COURT COSTS,REDACTED,REDACTED
02.07.2020,CHILDREN'S SERVICES,REDACTED PERSONAL DATA,600.00,LEGAL,LEGAL FEES & COURT COSTS,REDACTED,REDACTED
02.07.2020,CHILDREN'S SERVICES,REDACTED PERSONAL DATA,600.00,LEGAL,LEGAL FEES & COURT COSTS,REDACTED,REDACTED
02.07.2020,CHILDREN'S SERVICES,SIAN DAVIES,500.00,LEGAL,LEGAL FEES & COURT COSTS,2103118897,1000042111
02.07.2020,CHILDREN'S SERVICES,OLIVER MILLINGTON,300.00,LEGAL,LEGAL FEES & COURT COSTS,2103118891,1000051055
02.07.2020,CHILDREN'S SERVICES,OLIVER MILLINGTON,"1,050.00",LEGAL,LEGAL FEES & COURT COSTS,2103118892,1000051055
02.07.2020,CHILDREN'S SERVICES,TABITHA BARRAN,300.00,LEGAL,LEGAL FEES & COURT COSTS,2103118900,1000053940
02.07.2020,CHILDREN'S SERVICES,TABITHA BARRAN,300.00,LEGAL,LEGAL FEES & COURT COSTS,2103118905,1000053940
02.07.2020,CHILDREN'S SERVICES,TABITHA BARRAN,400.00,LEGAL,LEGAL FEES & COURT COSTS,2103118898,1000053940
02.07.2020,CHILDREN'S SERVICES,TABITHA BARRAN,400.00,LEGAL,LEGAL FEES & COURT COSTS,2103118903,1000053940
02.07.2020,CHILDREN'S SERVICES,TABITHA BARRAN,475.00,LEGAL,LEGAL FEES & COURT COSTS,2103118899,1000053940
02.07.2020,CHILDREN'S SERVICES,TABITHA BARRAN,475.00,LEGAL,LEGAL FEES & COURT COSTS,2103118901,1000053940
02.07.2020,CHILDREN'S SERVICES,TABITHA BARRAN,475.00,LEGAL,LEGAL FEES & COURT COSTS,2103118902,1000053940
02.07.2020,CHILDREN'S SERVICES,TABITHA BARRAN,475.00,LEGAL,LEGAL FEES & COURT COSTS,2103118904,1000053940
02.07.2020,CHILDREN'S SERVICES,ED LAMB,300.00,LEGAL,LEGAL FEES & COURT COSTS,2103118882,1000058531
02.07.2020,CHILDREN'S SERVICES,ED LAMB,"1,050.00",LEGAL,LEGAL FEES & COURT COSTS,2103118883,1000058531
02.07.2020,CHILDREN'S SERVICES,TIM PARKER,375.00,LEGAL,LEGAL FEES & COURT COSTS,2103118908,1000061949
02.07.2020,CHILDREN'S SERVICES,TIM PARKER,475.00,LEGAL,LEGAL FEES & COURT COSTS,2103118907,1000061949
02.07.2020,CHILDREN'S SERVICES,TIM PARKER,475.00,LEGAL,LEGAL FEES & COURT COSTS,2103118909,1000061949
02.07.2020,CHILDREN'S SERVICES,TIM PARKER,"1,650.00",LEGAL,LEGAL FEES & COURT COSTS,2103118906,1000061949
02.07.2020,CHILDREN'S SERVICES,AMI BARTHOLOMEW,325.00,LEGAL,LEGAL FEES & COURT COSTS,2103118857,1000064100
02.07.2020,CHILDREN'S SERVICES,AMI BARTHOLOMEW,400.00,LEGAL,LEGAL FEES & COURT COSTS,2103118855,1000064100
02.07.2020,CHILDREN'S SERVICES,AMI BARTHOLOMEW,475.00,LEGAL,LEGAL FEES & COURT COSTS,2103118858,1000064100
02.07.2020,CHILDREN'S SERVICES,AMI BARTHOLOMEW,"1,650.00",LEGAL,LEGAL FEES & COURT COSTS,2103118856,1000064100
02.07.2020,CHILDREN'S SERVICES,JOHN CHURCH,475.00,LEGAL,LEGAL FEES & COURT COSTS,2103118886,1000068682
02.07.2020,CHILDREN'S SERVICES,AL HOGARTH,275.00,LEGAL,LEGAL FEES & COURT COSTS,2103118851,1000068723
02.07.2020,CHILDREN'S SERVICES,LAURA HIBBERD,275.00,LEGAL,LEGAL FEES & COURT COSTS,2103118887,1000076749
02.07.2020,CHILDREN'S SERVICES,LAURA HIBBERD,375.00,LEGAL,LEGAL FEES & COURT COSTS,2103118888,1000076749
02.07.2020,CHILDREN'S SERVICES,VICTORIA KIVER,325.00,LEGAL,LEGAL FEES & COURT COSTS,2103118910,1000083032
02.07.2020,CHILDREN'S SERVICES,VICTORIA KIVER,325.00,LEGAL,LEGAL FEES & COURT COSTS,2103118911,1000083032
02.07.2020,CHILDREN'S SERVICES,VICTORIA KIVER,375.00,LEGAL,LEGAL FEES & COURT COSTS,2103118913,1000083032
02.07.2020,CHILDREN'S SERVICES,VICTORIA KIVER,560.00,LEGAL,LEGAL FEES & COURT COSTS,2103118915,1000083032
02.07.2020,CHILDREN'S SERVICES,LEE PARKHILL,750.00,LEGAL,LEGAL FEES & COURT COSTS,2103118889,1000084161
02.07.2020,CHILDREN'S SERVICES,REDACTED PERSONAL DATA,"2,766.28",RESIDENTIAL,RESIDENTIAL CARE,REDACTED,REDACTED
02.07.2020,CHILDREN'S SERVICES,REDACTED PERSONAL DATA,"17,155.27",RESIDENTIAL,RESIDENTIAL CARE,REDACTED,REDACTED
02.07.2020,CHILDREN'S SERVICES,MAGIC ROUNDABOUT NURSERIES LTD,"1,100.00",SPECIAL GUARDIANSHIP,EXTERNAL AGENCIES AND BODIES,5902423021,1000045128
02.07.2020,COMMUNITIES,LONDON CARE LTD,274.30,NO RECOURSE TO PUBLIC FUNDS,HOMECARE - C&V,2103118730,1000003398
02.07.2020,COMMUNITIES,LONDON CARE LTD,278.85,NO RECOURSE TO PUBLIC FUNDS,HOMECARE - C&V,2103118754,1000003398
02.07.2020,COMMUNITIES,LONDON CARE LTD,"1,054.45",NO RECOURSE TO PUBLIC FUNDS,HOMECARE - C&V,2103118722,1000003398
02.07.2020,COMMUNITIES,LONDON CARE LTD,"1,077.36",NO RECOURSE TO PUBLIC FUNDS,HOMECARE - C&V,2103118740,1000003398
02.07.2020,COMMUNITIES,LONDON CARE LTD,"1,322.20",NO RECOURSE TO PUBLIC FUNDS,HOMECARE - C&V,2103118720,1000003398
02.07.2020,COMMUNITIES,ANDREW DYMOND,-850.00,NO RECOURSE TO PUBLIC FUNDS,LEGAL FEES & COURT COSTS,2103120194,1000035487
02.07.2020,COMMUNITIES,ANDREW DYMOND,850.00,NO RECOURSE TO PUBLIC FUNDS,LEGAL FEES & COURT COSTS,2103105702,1000035487
02.07.2020,COMMUNITIES,THE X COLLECTIVE,"4,000.00",SOUTHWARK ANTI VIOLENCE UNIT,GRANTS,5902423210,1000083077
02.07.2020,COMMUNITIES,ANIMA YOUTH CIC,"4,000.00",SOUTHWARK ANTI VIOLENCE UNIT,GRANTS,5902423217,1000083977
02.07.2020,COMMUNITIES,THE SALVATION ARMY,367.74,SYRIAN REFUGEE RESETTLEMENT,ACCOMMODATION CHARGES,5902422604,1000016253
02.07.2020,COMMUNITIES,THE SALVATION ARMY,"2,283.87",SYRIAN REFUGEE RESETTLEMENT,ACCOMMODATION CHARGES,5902422611,1000016253
02.07.2020,COMMUNITIES,THE SALVATION ARMY,"2,480.00",SYRIAN REFUGEE RESETTLEMENT,ACCOMMODATION CHARGES,5902422615,1000016253
02.07.2020,COMMUNITIES,THE SALVATION ARMY,"2,600.00",SYRIAN REFUGEE RESETTLEMENT,ACCOMMODATION CHARGES,5902422606,1000016253
02.07.2020,COMMUNITIES,THE SALVATION ARMY,"7,200.00",SYRIAN REFUGEE RESETTLEMENT,ACCOMMODATION CHARGES,5902422602,1000016253
02.07.2020,COMMUNITIES,THE SALVATION ARMY,"7,200.00",SYRIAN REFUGEE RESETTLEMENT,ACCOMMODATION CHARGES,5902422609,1000016253
02.07.2020,COMMUNITIES,THE SALVATION ARMY,"7,200.00",SYRIAN REFUGEE RESETTLEMENT,ACCOMMODATION CHARGES,5902422612,1000016253
02.07.2020,COMMUNITIES,THE SALVATION ARMY,"7,200.00",SYRIAN REFUGEE RESETTLEMENT,ACCOMMODATION CHARGES,5902422617,1000016253
02.07.2020,COMMUNITIES,SOUTHWARK GROUP OF TENANTS ORGANISATION,"57,000.00",TENANTS FUND,EXTERNAL AGENCIES AND BODIES,5902423099,1479419
02.07.2020,COMMUNITIES,DRUGLINK LTD,500.00,TIER 4 SERVICES,OTHER CONTRACTORS,5902423141,1000050942
02.07.2020,COMMUNITIES,ST FAITHS COMMUNITY CENTRE,"5,000.00",VCS GRANTS,GRANTS,5902423098,1039446
02.07.2020,COMMUNITIES,AGE UK LEWISHAM & SOUTHWARK,"4,500.00",VCS GRANTS,GRANTS,5902423100,1507154
02.07.2020,COMMUNITIES,TIME & TALENTS ASSOCIATION,"4,500.00",VCS GRANTS,GRANTS,5902423102,1757632
02.07.2020,COMMUNITIES,LONDON WILDLIFE TRUST,"7,500.00",VCS GRANTS,GRANTS,5902423103,1832374
02.07.2020,COMMUNITIES,SOUTHWARK CITIZENS ADVICE,"5,600.00",VCS GRANTS,GRANTS,5902423104,1874379
02.07.2020,COMMUNITIES,SOMALI INTEGRATION & DEVELOPMENT ASSOCIATION,"14,000.00",VCS GRANTS,GRANTS,5902423105,11048946
02.07.2020,COMMUNITIES,BEORMUND COMMUNITY CENTRE,"12,437.25",VCS GRANTS,GRANTS,5902423106,11048982
02.07.2020,COMMUNITIES,BEDE HSE,"4,500.00",VCS GRANTS,GRANTS,5902423108,11248731
02.07.2020,COMMUNITIES,CAMBRIDGE HOUSE & TALBOT,"4,500.00",VCS GRANTS,GRANTS,5902423109,11248874
02.07.2020,COMMUNITIES,PECAN LTD,"6,500.00",VCS GRANTS,GRANTS,5902423111,11263114
02.07.2020,COMMUNITIES,PECAN LTD,"7,250.00",VCS GRANTS,GRANTS,5902423110,11263114
02.07.2020,COMMUNITIES,SURREY DOCKS FARM PROVIDENT SOCIETY,"10,000.00",VCS GRANTS,GRANTS,5902423112,1000000958
02.07.2020,COMMUNITIES,AAINA WOMEN GROUP,"8,018.25",VCS GRANTS,GRANTS,5902423113,1000002442
02.07.2020,COMMUNITIES,BANKSIDE OPEN SPACES TRUST,"4,208.00",VCS GRANTS,GRANTS,5902423114,1000018290
02.07.2020,COMMUNITIES,SOUTHWARK PENSIONERS CENTRE,"25,855.25",VCS GRANTS,GRANTS,5902423115,1000027831
02.07.2020,COMMUNITIES,SWK DAY CTR FOR ASYLUM SEEKERS,"11,330.25",VCS GRANTS,GRANTS,5902423116,1000040491
02.07.2020,COMMUNITIES,SOUTHWARK EVERY WOMAN'S CENTRE,"5,250.00",VCS GRANTS,GRANTS,5902423117,1000042216
02.07.2020,COMMUNITIES,FUTURE MEN,"4,000.00",VCS GRANTS,GRANTS,5902423118,1000046010
02.07.2020,COMMUNITIES,THE MANNA CENTRE,"13,750.00",VCS GRANTS,GRANTS,5902423119,1000048508
02.07.2020,COMMUNITIES,MENTAL FIGHT CLUB,"2,250.00",VCS GRANTS,GRANTS,5902423120,1000051170
02.07.2020,COMMUNITIES,CRYSTAL PALACE COMM DEV TRUST,"3,000.00",VCS GRANTS,GRANTS,5902423121,1000054200
02.07.2020,COMMUNITIES,LATIN AMERICAN DISABLED PEOPLE PROJECT,"4,500.00",VCS GRANTS,GRANTS,5902423122,1000058588
02.07.2020,COMMUNITIES,LATIN AMERICAN WOMEN'S RIGHTS SERVICES,"4,500.00",VCS GRANTS,GRANTS,5902423123,1000068356
02.07.2020,COMMUNITIES,PAXTON GREEN TIME BANK,"3,937.50",VCS GRANTS,GRANTS,5902423125,1000070648
02.07.2020,COMMUNITIES,BLACKFRIARS SETTLEMENT,"4,500.00",VCS GRANTS,GRANTS,5902423126,1000071456
02.07.2020,COMMUNITIES,PEMBROKE COLLEGE SETTLEMENT,"4,500.00",VCS GRANTS,GRANTS,5902423127,1000073444
02.07.2020,COMMUNITIES,BERMONDSEY COMMUNITY KITCHEN,"3,750.00",VCS GRANTS,GRANTS,5902423128,1000075477
02.07.2020,COMMUNITIES,THE BIKE PROJECT,"3,750.00",VCS GRANTS,GRANTS,5902423129,1000077217
02.07.2020,COMMUNITIES,SOUTHWARK TRAVELLERS' ACTION,"5,750.00",VCS GRANTS,GRANTS,5902423130,1000077795
02.07.2020,CUSTOMER EXPERIENCE,CORAM VOICE,297.50,COMPLAINTS,EXTERNAL AGENCIES AND BODIES,5902423074,1000076392
02.07.2020,CUSTOMER EXPERIENCE,CORAM VOICE,308.25,COMPLAINTS,EXTERNAL AGENCIES AND BODIES,5902423075,1000076392
02.07.2020,CUSTOMER EXPERIENCE HGF,CLYDE & CO,"1,265.90",CORONER'S,PROFESSIONAL FEES,5902423151,1000067838
02.07.2020,CUSTOMER EXPERIENCE HGF,SG PATH LTD,745.90,CORONER'S,PROFESSIONAL FEES,5902423091,1000077883
02.07.2020,CUSTOMER EXPERIENCE HGF,IMPERIAL COLLEGE PROJECTS LTD,344.00,CORONER'S,PROFESSIONAL FEES,5902422266,1000080106
02.07.2020,CUSTOMER EXPERIENCE HGF,IMPERIAL COLLEGE PROJECTS LTD,456.00,CORONER'S,PROFESSIONAL FEES,5902422267,1000080106
02.07.2020,CUSTOMER EXPERIENCE HGF,ZFA ACCOMMODATION LTD,"81,900.00",COVID-19 SUPPORT,EXTERNAL AGENCIES AND BODIES,5902423050,1000082620
02.07.2020,CUSTOMER EXPERIENCE HGF,REDACTED PERSONAL DATA,"3,000.00",HOMELESS PROJECTS,GRANTS,REDACTED,REDACTED
02.07.2020,CUSTOMER EXPERIENCE HGF,CHRISTOPHER BAKER,"1,750.00",HOMELESS PROJECTS,LEGAL FEES & COURT COSTS,2103118878,1000043525
02.07.2020,CUSTOMER EXPERIENCE HGF,KINDLY PROPERTIES LTD,"25,566.50",NIGHTLY TA (NSC),EXTERNAL AGENCIES AND BODIES,5902423063,1000060734
02.07.2020,CUSTOMER EXPERIENCE HGF,LIVING ACCOMMODATION LTD,945.00,NIGHTLY TA (NSC),EXTERNAL AGENCIES AND BODIES,5902423179,1000063985
02.07.2020,CUSTOMER EXPERIENCE HGF,FINEFAIR LTD,"5,880.00",PSL PLACEMENTS,EXTERNAL AGENCIES AND BODIES,5902423219,1000075570
02.07.2020,CUSTOMER EXPERIENCE HGF,FINEFAIR LTD,"191,940.48",PSL PLACEMENTS,EXTERNAL AGENCIES AND BODIES,5902423212,1000075570
02.07.2020,CUSTOMER EXPERIENCE HGF,FINEFAIR LTD,"28,000.00",PSL PLACEMENTS,GRANTS,5902423216,1000075570
02.07.2020,CUSTOMER EXPERIENCE HGF,BACK ON TRACK HOUSING,"2,209.35",RAPID REHOUSING,GRANTS,5902423094,1000071262
02.07.2020,CUSTOMER EXPERIENCE HGF,AMT PROPERTY LTD,969.24,RAPID REHOUSING,GRANTS,5902423090,1000084257
02.07.2020,CUSTOMER EXPERIENCE HGF,AMT PROPERTY LTD,"2,068.43",RAPID REHOUSING,GRANTS,5902423090,1000084257
02.07.2020,ENVIRONMENT AND LEISURE,CONWAY AECOM LTD,976.06,CAPITAL PS (LEISURE),CONSTR'N SUB CONTRACT - NON CERTIFICATED,5902422392,1000071205
02.07.2020,ENVIRONMENT AND LEISURE,CONWAY AECOM LTD,"1,008.98",CAPITAL PS (LEISURE),CONSTR'N SUB CONTRACT - NON CERTIFICATED,5902422395,1000071205
02.07.2020,ENVIRONMENT AND LEISURE,HARRISON DESIGN DEVELOPMENT LTD,"2,600.00",CAPITAL PS (LEISURE),CONSTRUCTION FEES  - EXTERNAL,5902423092,1000066896
02.07.2020,ENVIRONMENT AND LEISURE,MOSAIC ART LTD,"2,000.00",CAPITAL PS (LEISURE),CONSTRUCTION FEES - ARCHITECT,5902422438,1000080350
02.07.2020,ENVIRONMENT AND LEISURE,CONWAY AECOM LTD,"40,291.26",CAPITAL PS (LEISURE),CONSTRUCTION SUB CONTRACT -CERTIFICATED,2103118960,3000001595
02.07.2020,ENVIRONMENT DIRECTORATE,BRITISH TELECOMMUNICATIONS PLC,"1,093.16",CCTV,TELEPHONES (LAND LINES),5902423165,11149671
02.07.2020,ENVIRONMENT DIRECTORATE,GREENHAM TRADING LTD,"3,769.61",ESTATE CLEANING-GENERAL,MATERIALS,5902423187,1000006610
02.07.2020,ENVIRONMENT DIRECTORATE,IMPERIAL JANITORIAL SUPPLIES LTD,869.32,ESTATE CLEANING-GENERAL,MATERIALS,5902422357,1000038126
02.07.2020,ENVIRONMENT DIRECTORATE,SPALDINGS (UK) LTD,409.70,GROUNDS MAINTENANCE - GENERAL,MATERIALS,5902423058,1907384
02.07.2020,ENVIRONMENT DIRECTORATE,AGENTIS WORKWEAR LTD,828.00,MANAGEMENT TEAM,"CLOTHING, UNIFORMS & LAUNDRY",5902423061,1000065561
02.07.2020,ENVIRONMENT DIRECTORATE,BAY MEDIA (OUTDOOR) LTD,"5,100.00",PEDESTRIAN CROSSINGS - MAJOR ROADS,SOUTHWARK DIRECT CHARGES,5902423221,1000053836
02.07.2020,ENVIRONMENT DIRECTORATE,BAY MEDIA (OUTDOOR) LTD,"23,460.00",PEDESTRIAN CROSSINGS - MAJOR ROADS,SOUTHWARK DIRECT CHARGES,5902423222,1000053836
02.07.2020,ENVIRONMENT DIRECTORATE,SECURE-A-FIELD LTD,434.30,PROJECT SUPPORT,STATIONERY,5902422360,1000072371
02.07.2020,ENVIRONMENT DIRECTORATE,DEAN UNDERWOOD,"1,250.00",RESIDENTIAL SERVICES,LEGAL FEES & COURT COSTS,2103118879,1000048949
02.07.2020,ENVIRONMENT DIRECTORATE,ELLIOT ENVIRONMENTAL LTD,400.00,STREET CLEANING-GENERAL,OTHER CONTRACTORS,5902423064,1000047392
02.07.2020,ENVIRONMENT DIRECTORATE,KENT COUNTY COUNCIL - LASER,"40,965.28",STREET LIGHTING REACTIVE,ELECTRICITY,5902423188,1000012926
02.07.2020,EXCHEQUER SERVICES,WARD HADAWAY,"1,270.00",COUNCIL TAX,LEGAL FEES & COURT COSTS,5902423146,1000018550
02.07.2020,EXCHEQUER SERVICES,WARD HADAWAY,"3,297.40",COUNCIL TAX,LEGAL FEES & COURT COSTS,5902423146,1000018550
02.07.2020,EXCHEQUER SERVICES,COMMUNITY SOUTHWARK,"12,500.00",SESS,OTHER PAYMENTS FOR CLIENTS,5902422622,1000018147
02.07.2020,FINANCE & GOVERNANCE,NUANCE COMMUNICATIONS LTD,"2,784.27",LEGAL SERVICES MANAGEMENT,SOFTWARE,6101940860,INTERNATIONAL PAYMENT
02.07.2020,FINANCIAL AND INFORMATION GOVERNANCE,CIPFA,900.00,CIPFA TRAINEES,TRAINING,5902423043,1000000196
02.07.2020,FINANCIAL AND INFORMATION GOVERNANCE,CIPFA,"1,250.00",CIPFA TRAINEES,TRAINING,5902423044,1000000196
02.07.2020,HOUSING,OCO LIMITED,"138,474.17",PAYMENTS CONTROL ACCOUNT - OCO,I-WORLD CONTRACTORS HOLDING ACCOUNT,5902423097,1006066
02.07.2020,HOUSING,SMITH & BYFORD LTD,"113,765.58",SMITH AND BYFORD,I-WORLD CONTRACTORS HOLDING ACCOUNT,5902423107,11212119
02.07.2020,HOUSING HRA,MARTIN ARNOLD LTD,"4,701.16",CAPITAL PS (REGEN),CONSTRUCTION FEES - ENGINEER,5902423136,1000076993
02.07.2020,LEISURE DIRECTORATE,OCO LIMITED,354.80,ACCOMODATION,PLANNED MAINTENANCE,5902423089,1006066
02.07.2020,LEISURE DIRECTORATE,NPOWER,482.08,BRANDON LIBRARY,ELECTRICITY,5902423132,1000055441
02.07.2020,LEISURE DIRECTORATE,QUADRON SERVICES LIMITED,600.90,BURGESS AREA TEAM,GROUNDS MAINTENANCE,5902422280,1000066528
02.07.2020,LEISURE DIRECTORATE,QUADRON SERVICES LIMITED,"1,122.40",DULWICH AREA TEAM,GROUNDS MAINTENANCE,5902422298,1000066528
02.07.2020,LEISURE DIRECTORATE,A B KEY LLP,"1,730.00",SDM BUDGET,EQUIPMENT PURCHASE & REPAIR,5902423017,1000036348
02.07.2020,LEISURE DIRECTORATE,BEW ELECTRICAL DISTRIBUTORS LTD,"1,379.70",SDM BUDGET,MATERIALS,5902423022,1000045371
02.07.2020,LEISURE DIRECTORATE,CASTLE WATER LTD,"1,693.03",SDM BUDGET,WATER,5902423206,1000078867
02.07.2020,LEISURE DIRECTORATE,SECURE-A-FIELD LTD,"2,217.50",SOUTHWARK AREA TEAM,STATIONERY,5902422285,1000072371
02.07.2020,LEISURE DIRECTORATE,ASKEWS & HOLTS LIBRARY SERVICES LTD,"5,398.73",STOCK SERVICES,BOOKS & PUBLICATIONS,5902422329,1494168
02.07.2020,MODERNISATION HGF,KENT COUNTY COUNCIL - LASER,330.25,34 PECKHAM ROAD,GAS,5902423150,1000012926
02.07.2020,MODERNISATION HGF,ITEC CONNECT LTD,408.50,IT MANAGEMENT,PRINTING,5902423077,1000080418
02.07.2020,MODERNISATION HGF,ITEC CONNECT LTD,"1,000.00",IT MANAGEMENT,PRINTING,5902423079,1000080418
02.07.2020,MODERNISATION HGF,T2 SOLUTIONS 2000 LTD,475.00,OCCUPATIONAL ASSESSMENT,CONSULTANTS SERVICES,5902422206,1000080952
02.07.2020,MODERNISATION HGF,EMS EVENTS LTD,"2,344.00",TSFM CONTINGENCY,INTEGRATED FACILITIES MANAGEMENT CONTRACT,5902422281,1000057494
02.07.2020,MODERNISATION HGF,INTERSERVE (FACILITIES MANAGEMENT),"35,096.75",TSFM CONTINGENCY,INTEGRATED FACILITIES MANAGEMENT CONTRACT,5902422847,1000070792
02.07.2020,MODERNISATION HGF,COMENSURA LTD,"617,711.83",WEEKLY PAYMENTS,AGENCY STAFF,5902423211,1000051261
02.07.2020,PLANNING AND TRANSPORT,PINSENT MASONS LLP,"27,088.00",S106 & CIL ADMINISTRATION,LEGAL FEES & COURT COSTS,2103118894,1000046862
02.07.2020,PLANNING AND TRANSPORT,ISABELLA TAFUR,"2,500.00",S106 & CIL ADMINISTRATION,LEGAL FEES & COURT COSTS,2103118885,1000068894
02.07.2020,RESIDENT SERVICES,FIRSTPORT PROPERTY SERVICES LTD,"81,861.91",BOROUGH & BANKSIDE,SERVICE CHARGES,5902423080,1000084068
02.07.2020,RESIDENT SERVICES,BRITISH GAS TRADING LTD,262.41,OPERATIONS/OFFICES ACCOMMODATION,ELECTRICITY,5902423082,1000055977
02.07.2020,RESIDENT SERVICES,CITYGLEN LTD,837.00,TA PLACEMENTS,EXTERNAL AGENCIES AND BODIES,5902423049,1000026239
02.07.2020,SBS SUPPORT,CRATUS BUILDING SERVICES LIMITED,"101,857.33",SBS - HOLDING ACCOUNT,OTHER CONTRACTORS,2103118959,3000001055
02.07.2020,SBS SUPPORT,CRATUS BUILDING SERVICES LIMITED,"104,413.94",SBS - HOLDING ACCOUNT,OTHER CONTRACTORS,2103118958,3000001055
02.07.2020,SBS SUPPORT,ARMINA LTD,"62,591.36",SBS - HOLDING ACCOUNT,OTHER CONTRACTORS,2103118706,3000002121
02.07.2020,SOUTHWARK BUILDING SERVICES,CALLOW MASTER LOCKSMITHS,330.00,STORES/LOGISTICS,CREDITORS -GR/IR CLEARING ACCOUNT,5902423209,11179552
02.07.2020,SOUTHWARK BUILDING SERVICES,CALLOW MASTER LOCKSMITHS,350.00,STORES/LOGISTICS,CREDITORS -GR/IR CLEARING ACCOUNT,5902423209,11179552
02.07.2020,SOUTHWARK BUILDING SERVICES,CALLOW MASTER LOCKSMITHS,350.05,STORES/LOGISTICS,CREDITORS -GR/IR CLEARING ACCOUNT,5902423209,11179552
02.07.2020,SOUTHWARK BUILDING SERVICES,CALLOW MASTER LOCKSMITHS,690.00,STORES/LOGISTICS,CREDITORS -GR/IR CLEARING ACCOUNT,5902423209,11179552
02.07.2020,SOUTHWARK BUILDING SERVICES,LONDON TOOLS LIMITED,299.50,STORES/LOGISTICS,CREDITORS -GR/IR CLEARING ACCOUNT,5902423051,1000003017
02.07.2020,SOUTHWARK BUILDING SERVICES,LONDON TOOLS LIMITED,420.00,STORES/LOGISTICS,CREDITORS -GR/IR CLEARING ACCOUNT,5902423051,1000003017
02.07.2020,SOUTHWARK BUILDING SERVICES,LONDON TOOLS LIMITED,"6,875.00",STORES/LOGISTICS,CREDITORS -GR/IR CLEARING ACCOUNT,5902423053,1000003017
03.07.2020,ADULT SOCIAL CARE,THAMES HOMECARE SERVICE LTD,536.02,DISCHARGE TO ACCESS,HOMECARE - C&V,2103119080,1000079295
03.07.2020,ADULT SOCIAL CARE,THAMES HOMECARE SERVICE LTD,590.53,DISCHARGE TO ACCESS,HOMECARE - SPOT,2103119093,1000079295
03.07.2020,ADULT SOCIAL CARE,PEOPLEPLUS ILS,"3,015.60",DISCHARGE TO ACCESS,PAYMENTS TO CLIENTS (DIRECT PAYMENTS),2103119589,1000061886
03.07.2020,ADULT SOCIAL CARE,REDACTED PERSONAL DATA,"1,470.56",DISCHARGE TO ACCESS,PAYMENTS TO CLIENTS (DIRECT PAYMENTS),REDACTED,REDACTED
03.07.2020,ADULT SOCIAL CARE,REDACTED PERSONAL DATA,296.96,DISCHARGE TO ACCESS,PAYMENTS TO CLIENTS (DIRECT PAYMENTS),REDACTED,REDACTED
03.07.2020,ADULT SOCIAL CARE,ACCESS MOBILITY TRANSPORT LTD,"1,105.20",LD LTS 18-64,CLIENT TRANSPORT,2103119102,1000074637
03.07.2020,ADULT SOCIAL CARE,AURORA OPTIONS,408.00,LD LTS 18-64,DAYCARE,2103119518,1000066695
03.07.2020,ADULT SOCIAL CARE,SWK DISABLEMENT ASSN,"1,350.96",LD LTS 18-64,HOMECARE - C&V,2103119156,1000011698
03.07.2020,ADULT SOCIAL CARE,PEOPLEPLUS ILS,"-1,134.42",LD LTS 18-64,PAYMENTS TO CLIENTS (DIRECT PAYMENTS),2103120101,1000061886
03.07.2020,ADULT SOCIAL CARE,PEOPLEPLUS ILS,-545.25,LD LTS 18-64,PAYMENTS TO CLIENTS (DIRECT PAYMENTS),2103119834,1000061886
03.07.2020,ADULT SOCIAL CARE,PEOPLEPLUS ILS,260.00,LD LTS 18-64,PAYMENTS TO CLIENTS (DIRECT PAYMENTS),2103119633,1000061886
03.07.2020,ADULT SOCIAL CARE,PEOPLEPLUS ILS,266.00,LD LTS 18-64,PAYMENTS TO CLIENTS (DIRECT PAYMENTS),2103119497,1000061886
03.07.2020,ADULT SOCIAL CARE,PEOPLEPLUS ILS,298.16,LD LTS 18-64,PAYMENTS TO CLIENTS (DIRECT PAYMENTS),2103119946,1000061886
03.07.2020,ADULT SOCIAL CARE,PEOPLEPLUS ILS,299.60,LD LTS 18-64,PAYMENTS TO CLIENTS (DIRECT PAYMENTS),2103120122,1000061886
03.07.2020,ADULT SOCIAL CARE,PEOPLEPLUS ILS,300.00,LD LTS 18-64,PAYMENTS TO CLIENTS (DIRECT PAYMENTS),2103119843,1000061886
03.07.2020,ADULT SOCIAL CARE,PEOPLEPLUS ILS,305.88,LD LTS 18-64,PAYMENTS TO CLIENTS (DIRECT PAYMENTS),2103119473,1000061886
03.07.2020,ADULT SOCIAL CARE,PEOPLEPLUS ILS,316.80,LD LTS 18-64,PAYMENTS TO CLIENTS (DIRECT PAYMENTS),2103119590,1000061886
03.07.2020,ADULT SOCIAL CARE,PEOPLEPLUS ILS,329.32,LD LTS 18-64,PAYMENTS TO CLIENTS (DIRECT PAYMENTS),2103119751,1000061886
03.07.2020,ADULT SOCIAL CARE,PEOPLEPLUS ILS,329.80,LD LTS 18-64,PAYMENTS TO CLIENTS (DIRECT PAYMENTS),2103119790,1000061886
03.07.2020,ADULT SOCIAL CARE,PEOPLEPLUS ILS,334.00,LD LTS 18-64,PAYMENTS TO CLIENTS (DIRECT PAYMENTS),2103119699,1000061886
03.07.2020,ADULT SOCIAL CARE,PEOPLEPLUS ILS,342.00,LD LTS 18-64,PAYMENTS TO CLIENTS (DIRECT PAYMENTS),2103120082,1000061886
03.07.2020,ADULT SOCIAL CARE,PEOPLEPLUS ILS,349.00,LD LTS 18-64,PAYMENTS TO CLIENTS (DIRECT PAYMENTS),2103119856,1000061886
03.07.2020,ADULT SOCIAL CARE,PEOPLEPLUS ILS,352.00,LD LTS 18-64,PAYMENTS TO CLIENTS (DIRECT PAYMENTS),2103119777,1000061886
03.07.2020,ADULT SOCIAL CARE,PEOPLEPLUS ILS,356.92,LD LTS 18-64,PAYMENTS TO CLIENTS (DIRECT PAYMENTS),2103120181,1000061886
03.07.2020,ADULT SOCIAL CARE,PEOPLEPLUS ILS,374.00,LD LTS 18-64,PAYMENTS TO CLIENTS (DIRECT PAYMENTS),2103119754,1000061886
03.07.2020,ADULT SOCIAL CARE,PEOPLEPLUS ILS,385.60,LD LTS 18-64,PAYMENTS TO CLIENTS (DIRECT PAYMENTS),2103119635,1000061886
03.07.2020,ADULT SOCIAL CARE,PEOPLEPLUS ILS,419.44,LD LTS 18-64,PAYMENTS TO CLIENTS (DIRECT PAYMENTS),2103119594,1000061886
03.07.2020,ADULT SOCIAL CARE,PEOPLEPLUS ILS,437.60,LD LTS 18-64,PAYMENTS TO CLIENTS (DIRECT PAYMENTS),2103119558,1000061886
03.07.2020,ADULT SOCIAL CARE,PEOPLEPLUS ILS,440.00,LD LTS 18-64,PAYMENTS TO CLIENTS (DIRECT PAYMENTS),2103119475,1000061886
03.07.2020,ADULT SOCIAL CARE,PEOPLEPLUS ILS,452.48,LD LTS 18-64,PAYMENTS TO CLIENTS (DIRECT PAYMENTS),2103119743,1000061886
03.07.2020,ADULT SOCIAL CARE,PEOPLEPLUS ILS,458.08,LD LTS 18-64,PAYMENTS TO CLIENTS (DIRECT PAYMENTS),2103119519,1000061886
03.07.2020,ADULT SOCIAL CARE,PEOPLEPLUS ILS,464.80,LD LTS 18-64,PAYMENTS TO CLIENTS (DIRECT PAYMENTS),2103119550,1000061886
03.07.2020,ADULT SOCIAL CARE,PEOPLEPLUS ILS,480.00,LD LTS 18-64,PAYMENTS TO CLIENTS (DIRECT PAYMENTS),2103119671,1000061886
03.07.2020,ADULT SOCIAL CARE,PEOPLEPLUS ILS,486.48,LD LTS 18-64,PAYMENTS TO CLIENTS (DIRECT PAYMENTS),2103119964,1000061886
03.07.2020,ADULT SOCIAL CARE,PEOPLEPLUS ILS,493.36,LD LTS 18-64,PAYMENTS TO CLIENTS (DIRECT PAYMENTS),2103119579,1000061886
03.07.2020,ADULT SOCIAL CARE,PEOPLEPLUS ILS,558.72,LD LTS 18-64,PAYMENTS TO CLIENTS (DIRECT PAYMENTS),2103119696,1000061886
03.07.2020,ADULT SOCIAL CARE,PEOPLEPLUS ILS,577.00,LD LTS 18-64,PAYMENTS TO CLIENTS (DIRECT PAYMENTS),2103119666,1000061886
03.07.2020,ADULT SOCIAL CARE,PEOPLEPLUS ILS,578.00,LD LTS 18-64,PAYMENTS TO CLIENTS (DIRECT PAYMENTS),2103119621,1000061886
03.07.2020,ADULT SOCIAL CARE,PEOPLEPLUS ILS,612.36,LD LTS 18-64,PAYMENTS TO CLIENTS (DIRECT PAYMENTS),2103119700,1000061886
03.07.2020,ADULT SOCIAL CARE,PEOPLEPLUS ILS,632.40,LD LTS 18-64,PAYMENTS TO CLIENTS (DIRECT PAYMENTS),2103120020,1000061886
03.07.2020,ADULT SOCIAL CARE,PEOPLEPLUS ILS,633.20,LD LTS 18-64,PAYMENTS TO CLIENTS (DIRECT PAYMENTS),2103119485,1000061886
03.07.2020,ADULT SOCIAL CARE,PEOPLEPLUS ILS,633.20,LD LTS 18-64,PAYMENTS TO CLIENTS (DIRECT PAYMENTS),2103119494,1000061886
03.07.2020,ADULT SOCIAL CARE,PEOPLEPLUS ILS,670.00,LD LTS 18-64,PAYMENTS TO CLIENTS (DIRECT PAYMENTS),2103119759,1000061886
03.07.2020,ADULT SOCIAL CARE,PEOPLEPLUS ILS,680.00,LD LTS 18-64,PAYMENTS TO CLIENTS (DIRECT PAYMENTS),2103120095,1000061886
03.07.2020,ADULT SOCIAL CARE,PEOPLEPLUS ILS,694.00,LD LTS 18-64,PAYMENTS TO CLIENTS (DIRECT PAYMENTS),2103119959,1000061886
03.07.2020,ADULT SOCIAL CARE,PEOPLEPLUS ILS,718.00,LD LTS 18-64,PAYMENTS TO CLIENTS (DIRECT PAYMENTS),2103119826,1000061886
03.07.2020,ADULT SOCIAL CARE,PEOPLEPLUS ILS,724.24,LD LTS 18-64,PAYMENTS TO CLIENTS (DIRECT PAYMENTS),2103119885,1000061886
03.07.2020,ADULT SOCIAL CARE,PEOPLEPLUS ILS,743.04,LD LTS 18-64,PAYMENTS TO CLIENTS (DIRECT PAYMENTS),2103120141,1000061886
03.07.2020,ADULT SOCIAL CARE,PEOPLEPLUS ILS,753.04,LD LTS 18-64,PAYMENTS TO CLIENTS (DIRECT PAYMENTS),2103119528,1000061886
03.07.2020,ADULT SOCIAL CARE,PEOPLEPLUS ILS,753.04,LD LTS 18-64,PAYMENTS TO CLIENTS (DIRECT PAYMENTS),2103120026,1000061886
03.07.2020,ADULT SOCIAL CARE,PEOPLEPLUS ILS,753.04,LD LTS 18-64,PAYMENTS TO CLIENTS (DIRECT PAYMENTS),2103120075,1000061886
03.07.2020,ADULT SOCIAL CARE,PEOPLEPLUS ILS,758.72,LD LTS 18-64,PAYMENTS TO CLIENTS (DIRECT PAYMENTS),2103119728,1000061886
03.07.2020,ADULT SOCIAL CARE,PEOPLEPLUS ILS,762.28,LD LTS 18-64,PAYMENTS TO CLIENTS (DIRECT PAYMENTS),2103119765,1000061886
03.07.2020,ADULT SOCIAL CARE,PEOPLEPLUS ILS,766.00,LD LTS 18-64,PAYMENTS TO CLIENTS (DIRECT PAYMENTS),2103119878,1000061886
03.07.2020,ADULT SOCIAL CARE,PEOPLEPLUS ILS,780.00,LD LTS 18-64,PAYMENTS TO CLIENTS (DIRECT PAYMENTS),2103119752,1000061886
03.07.2020,ADULT SOCIAL CARE,PEOPLEPLUS ILS,784.08,LD LTS 18-64,PAYMENTS TO CLIENTS (DIRECT PAYMENTS),2103119439,1000061886
03.07.2020,ADULT SOCIAL CARE,PEOPLEPLUS ILS,789.60,LD LTS 18-64,PAYMENTS TO CLIENTS (DIRECT PAYMENTS),2103119883,1000061886
03.07.2020,ADULT SOCIAL CARE,PEOPLEPLUS ILS,794.00,LD LTS 18-64,PAYMENTS TO CLIENTS (DIRECT PAYMENTS),2103119529,1000061886
03.07.2020,ADULT SOCIAL CARE,PEOPLEPLUS ILS,800.00,LD LTS 18-64,PAYMENTS TO CLIENTS (DIRECT PAYMENTS),2103119773,1000061886
03.07.2020,ADULT SOCIAL CARE,PEOPLEPLUS ILS,805.00,LD LTS 18-64,PAYMENTS TO CLIENTS (DIRECT PAYMENTS),2103120121,1000061886
03.07.2020,ADULT SOCIAL CARE,PEOPLEPLUS ILS,811.84,LD LTS 18-64,PAYMENTS TO CLIENTS (DIRECT PAYMENTS),2103119758,1000061886
03.07.2020,ADULT SOCIAL CARE,PEOPLEPLUS ILS,819.84,LD LTS 18-64,PAYMENTS TO CLIENTS (DIRECT PAYMENTS),2103119514,1000061886
03.07.2020,ADULT SOCIAL CARE,PEOPLEPLUS ILS,860.00,LD LTS 18-64,PAYMENTS TO CLIENTS (DIRECT PAYMENTS),2103119813,1000061886
03.07.2020,ADULT SOCIAL CARE,PEOPLEPLUS ILS,875.60,LD LTS 18-64,PAYMENTS TO CLIENTS (DIRECT PAYMENTS),2103120165,1000061886
03.07.2020,ADULT SOCIAL CARE,PEOPLEPLUS ILS,890.84,LD LTS 18-64,PAYMENTS TO CLIENTS (DIRECT PAYMENTS),2103120137,1000061886
03.07.2020,ADULT SOCIAL CARE,PEOPLEPLUS ILS,896.80,LD LTS 18-64,PAYMENTS TO CLIENTS (DIRECT PAYMENTS),2103119481,1000061886
03.07.2020,ADULT SOCIAL CARE,PEOPLEPLUS ILS,904.96,LD LTS 18-64,PAYMENTS TO CLIENTS (DIRECT PAYMENTS),2103119710,1000061886
03.07.2020,ADULT SOCIAL CARE,PEOPLEPLUS ILS,918.00,LD LTS 18-64,PAYMENTS TO CLIENTS (DIRECT PAYMENTS),2103119924,1000061886
03.07.2020,ADULT SOCIAL CARE,PEOPLEPLUS ILS,957.20,LD LTS 18-64,PAYMENTS TO CLIENTS (DIRECT PAYMENTS),2103119586,1000061886
03.07.2020,ADULT SOCIAL CARE,PEOPLEPLUS ILS,970.20,LD LTS 18-64,PAYMENTS TO CLIENTS (DIRECT PAYMENTS),2103119484,1000061886
03.07.2020,ADULT SOCIAL CARE,PEOPLEPLUS ILS,"1,000.00",LD LTS 18-64,PAYMENTS TO CLIENTS (DIRECT PAYMENTS),2103119938,1000061886
03.07.2020,ADULT SOCIAL CARE,PEOPLEPLUS ILS,"1,000.00",LD LTS 18-64,PAYMENTS TO CLIENTS (DIRECT PAYMENTS),2103119983,1000061886
03.07.2020,ADULT SOCIAL CARE,PEOPLEPLUS ILS,"1,013.48",LD LTS 18-64,PAYMENTS TO CLIENTS (DIRECT PAYMENTS),2103119609,1000061886
03.07.2020,ADULT SOCIAL CARE,PEOPLEPLUS ILS,"1,018.08",LD LTS 18-64,PAYMENTS TO CLIENTS (DIRECT PAYMENTS),2103119714,1000061886
03.07.2020,ADULT SOCIAL CARE,PEOPLEPLUS ILS,"1,052.00",LD LTS 18-64,PAYMENTS TO CLIENTS (DIRECT PAYMENTS),2103119623,1000061886
03.07.2020,ADULT SOCIAL CARE,PEOPLEPLUS ILS,"1,054.00",LD LTS 18-64,PAYMENTS TO CLIENTS (DIRECT PAYMENTS),2103119809,1000061886
03.07.2020,ADULT SOCIAL CARE,PEOPLEPLUS ILS,"1,128.96",LD LTS 18-64,PAYMENTS TO CLIENTS (DIRECT PAYMENTS),2103119459,1000061886
03.07.2020,ADULT SOCIAL CARE,PEOPLEPLUS ILS,"1,172.48",LD LTS 18-64,PAYMENTS TO CLIENTS (DIRECT PAYMENTS),2103119611,1000061886
03.07.2020,ADULT SOCIAL CARE,PEOPLEPLUS ILS,"1,242.40",LD LTS 18-64,PAYMENTS TO CLIENTS (DIRECT PAYMENTS),2103120119,1000061886
03.07.2020,ADULT SOCIAL CARE,PEOPLEPLUS ILS,"1,319.24",LD LTS 18-64,PAYMENTS TO CLIENTS (DIRECT PAYMENTS),2103119778,1000061886
03.07.2020,ADULT SOCIAL CARE,PEOPLEPLUS ILS,"1,324.40",LD LTS 18-64,PAYMENTS TO CLIENTS (DIRECT PAYMENTS),2103119709,1000061886
03.07.2020,ADULT SOCIAL CARE,PEOPLEPLUS ILS,"1,326.40",LD LTS 18-64,PAYMENTS TO CLIENTS (DIRECT PAYMENTS),2103120046,1000061886
03.07.2020,ADULT SOCIAL CARE,PEOPLEPLUS ILS,"1,358.00",LD LTS 18-64,PAYMENTS TO CLIENTS (DIRECT PAYMENTS),2103119593,1000061886
03.07.2020,ADULT SOCIAL CARE,PEOPLEPLUS ILS,"1,359.24",LD LTS 18-64,PAYMENTS TO CLIENTS (DIRECT PAYMENTS),2103119596,1000061886
03.07.2020,ADULT SOCIAL CARE,PEOPLEPLUS ILS,"1,433.20",LD LTS 18-64,PAYMENTS TO CLIENTS (DIRECT PAYMENTS),2103120139,1000061886
03.07.2020,ADULT SOCIAL CARE,PEOPLEPLUS ILS,"1,460.96",LD LTS 18-64,PAYMENTS TO CLIENTS (DIRECT PAYMENTS),2103119764,1000061886
03.07.2020,ADULT SOCIAL CARE,PEOPLEPLUS ILS,"1,471.60",LD LTS 18-64,PAYMENTS TO CLIENTS (DIRECT PAYMENTS),2103119715,1000061886
03.07.2020,ADULT SOCIAL CARE,PEOPLEPLUS ILS,"1,475.84",LD LTS 18-64,PAYMENTS TO CLIENTS (DIRECT PAYMENTS),2103120068,1000061886
03.07.2020,ADULT SOCIAL CARE,PEOPLEPLUS ILS,"1,480.20",LD LTS 18-64,PAYMENTS TO CLIENTS (DIRECT PAYMENTS),2103119605,1000061886
03.07.2020,ADULT SOCIAL CARE,PEOPLEPLUS ILS,"1,529.52",LD LTS 18-64,PAYMENTS TO CLIENTS (DIRECT PAYMENTS),2103119907,1000061886
03.07.2020,ADULT SOCIAL CARE,PEOPLEPLUS ILS,"1,593.92",LD LTS 18-64,PAYMENTS TO CLIENTS (DIRECT PAYMENTS),2103120034,1000061886
03.07.2020,ADULT SOCIAL CARE,PEOPLEPLUS ILS,"1,605.76",LD LTS 18-64,PAYMENTS TO CLIENTS (DIRECT PAYMENTS),2103120134,1000061886
03.07.2020,ADULT SOCIAL CARE,PEOPLEPLUS ILS,"1,617.28",LD LTS 18-64,PAYMENTS TO CLIENTS (DIRECT PAYMENTS),2103120128,1000061886
03.07.2020,ADULT SOCIAL CARE,PEOPLEPLUS ILS,"1,659.04",LD LTS 18-64,PAYMENTS TO CLIENTS (DIRECT PAYMENTS),2103119508,1000061886
03.07.2020,ADULT SOCIAL CARE,PEOPLEPLUS ILS,"1,674.96",LD LTS 18-64,PAYMENTS TO CLIENTS (DIRECT PAYMENTS),2103119736,1000061886
03.07.2020,ADULT SOCIAL CARE,PEOPLEPLUS ILS,"1,690.24",LD LTS 18-64,PAYMENTS TO CLIENTS (DIRECT PAYMENTS),2103120070,1000061886
03.07.2020,ADULT SOCIAL CARE,PEOPLEPLUS ILS,"1,693.36",LD LTS 18-64,PAYMENTS TO CLIENTS (DIRECT PAYMENTS),2103119541,1000061886
03.07.2020,ADULT SOCIAL CARE,PEOPLEPLUS ILS,"1,696.80",LD LTS 18-64,PAYMENTS TO CLIENTS (DIRECT PAYMENTS),2103120025,1000061886
03.07.2020,ADULT SOCIAL CARE,PEOPLEPLUS ILS,"1,730.80",LD LTS 18-64,PAYMENTS TO CLIENTS (DIRECT PAYMENTS),2103120143,1000061886
03.07.2020,ADULT SOCIAL CARE,PEOPLEPLUS ILS,"1,823.48",LD LTS 18-64,PAYMENTS TO CLIENTS (DIRECT PAYMENTS),2103119630,1000061886
03.07.2020,ADULT SOCIAL CARE,PEOPLEPLUS ILS,"1,829.00",LD LTS 18-64,PAYMENTS TO CLIENTS (DIRECT PAYMENTS),2103119534,1000061886
03.07.2020,ADULT SOCIAL CARE,PEOPLEPLUS ILS,"1,829.60",LD LTS 18-64,PAYMENTS TO CLIENTS (DIRECT PAYMENTS),2103119997,1000061886
03.07.2020,ADULT SOCIAL CARE,PEOPLEPLUS ILS,"1,832.64",LD LTS 18-64,PAYMENTS TO CLIENTS (DIRECT PAYMENTS),2103119894,1000061886
03.07.2020,ADULT SOCIAL CARE,PEOPLEPLUS ILS,"1,862.00",LD LTS 18-64,PAYMENTS TO CLIENTS (DIRECT PAYMENTS),2103119602,1000061886
03.07.2020,ADULT SOCIAL CARE,PEOPLEPLUS ILS,"1,888.28",LD LTS 18-64,PAYMENTS TO CLIENTS (DIRECT PAYMENTS),2103119958,1000061886
03.07.2020,ADULT SOCIAL CARE,PEOPLEPLUS ILS,"1,950.96",LD LTS 18-64,PAYMENTS TO CLIENTS (DIRECT PAYMENTS),2103119566,1000061886
03.07.2020,ADULT SOCIAL CARE,PEOPLEPLUS ILS,"2,044.40",LD LTS 18-64,PAYMENTS TO CLIENTS (DIRECT PAYMENTS),2103119849,1000061886
03.07.2020,ADULT SOCIAL CARE,PEOPLEPLUS ILS,"2,090.00",LD LTS 18-64,PAYMENTS TO CLIENTS (DIRECT PAYMENTS),2103120008,1000061886
03.07.2020,ADULT SOCIAL CARE,PEOPLEPLUS ILS,"2,097.56",LD LTS 18-64,PAYMENTS TO CLIENTS (DIRECT PAYMENTS),2103119896,1000061886
03.07.2020,ADULT SOCIAL CARE,PEOPLEPLUS ILS,"2,131.20",LD LTS 18-64,PAYMENTS TO CLIENTS (DIRECT PAYMENTS),2103119960,1000061886
03.07.2020,ADULT SOCIAL CARE,PEOPLEPLUS ILS,"2,289.28",LD LTS 18-64,PAYMENTS TO CLIENTS (DIRECT PAYMENTS),2103120145,1000061886
03.07.2020,ADULT SOCIAL CARE,PEOPLEPLUS ILS,"2,354.88",LD LTS 18-64,PAYMENTS TO CLIENTS (DIRECT PAYMENTS),2103120040,1000061886
03.07.2020,ADULT SOCIAL CARE,PEOPLEPLUS ILS,"2,447.76",LD LTS 18-64,PAYMENTS TO CLIENTS (DIRECT PAYMENTS),2103119971,1000061886
03.07.2020,ADULT SOCIAL CARE,PEOPLEPLUS ILS,"2,494.00",LD LTS 18-64,PAYMENTS TO CLIENTS (DIRECT PAYMENTS),2103119848,1000061886
03.07.2020,ADULT SOCIAL CARE,PEOPLEPLUS ILS,"2,668.40",LD LTS 18-64,PAYMENTS TO CLIENTS (DIRECT PAYMENTS),2103120111,1000061886
03.07.2020,ADULT SOCIAL CARE,PEOPLEPLUS ILS,"2,865.00",LD LTS 18-64,PAYMENTS TO CLIENTS (DIRECT PAYMENTS),2103119659,1000061886
03.07.2020,ADULT SOCIAL CARE,PEOPLEPLUS ILS,"2,906.00",LD LTS 18-64,PAYMENTS TO CLIENTS (DIRECT PAYMENTS),2103120178,1000061886
03.07.2020,ADULT SOCIAL CARE,PEOPLEPLUS ILS,"2,918.00",LD LTS 18-64,PAYMENTS TO CLIENTS (DIRECT PAYMENTS),2103119574,1000061886
03.07.2020,ADULT SOCIAL CARE,PEOPLEPLUS ILS,"2,972.00",LD LTS 18-64,PAYMENTS TO CLIENTS (DIRECT PAYMENTS),2103119542,1000061886
03.07.2020,ADULT SOCIAL CARE,PEOPLEPLUS ILS,"3,106.52",LD LTS 18-64,PAYMENTS TO CLIENTS (DIRECT PAYMENTS),2103119549,1000061886
03.07.2020,ADULT SOCIAL CARE,PEOPLEPLUS ILS,"3,281.60",LD LTS 18-64,PAYMENTS TO CLIENTS (DIRECT PAYMENTS),2103119802,1000061886
03.07.2020,ADULT SOCIAL CARE,PEOPLEPLUS ILS,"3,795.20",LD LTS 18-64,PAYMENTS TO CLIENTS (DIRECT PAYMENTS),2103119993,1000061886
03.07.2020,ADULT SOCIAL CARE,PEOPLEPLUS ILS,"3,913.00",LD LTS 18-64,PAYMENTS TO CLIENTS (DIRECT PAYMENTS),2103119479,1000061886
03.07.2020,ADULT SOCIAL CARE,PEOPLEPLUS ILS,"4,242.00",LD LTS 18-64,PAYMENTS TO CLIENTS (DIRECT PAYMENTS),2103119575,1000061886
03.07.2020,ADULT SOCIAL CARE,PEOPLEPLUS ILS,"4,524.80",LD LTS 18-64,PAYMENTS TO CLIENTS (DIRECT PAYMENTS),2103119552,1000061886
03.07.2020,ADULT SOCIAL CARE,PEOPLEPLUS ILS,"4,629.20",LD LTS 18-64,PAYMENTS TO CLIENTS (DIRECT PAYMENTS),2103119615,1000061886
03.07.2020,ADULT SOCIAL CARE,PEOPLEPLUS ILS,"7,997.92",LD LTS 18-64,PAYMENTS TO CLIENTS (DIRECT PAYMENTS),2103119679,1000061886
03.07.2020,ADULT SOCIAL CARE,PEOPLEPLUS ILS,"9,126.80",LD LTS 18-64,PAYMENTS TO CLIENTS (DIRECT PAYMENTS),2103119588,1000061886
03.07.2020,ADULT SOCIAL CARE,PEOPLEPLUS ILS,"11,809.20",LD LTS 18-64,PAYMENTS TO CLIENTS (DIRECT PAYMENTS),2103119785,1000061886
03.07.2020,ADULT SOCIAL CARE,PEOPLEPLUS ILS,"12,619.20",LD LTS 18-64,PAYMENTS TO CLIENTS (DIRECT PAYMENTS),2103119448,1000061886
03.07.2020,ADULT SOCIAL CARE,PEOPLEPLUS ILS,"12,619.20",LD LTS 18-64,PAYMENTS TO CLIENTS (DIRECT PAYMENTS),2103119734,1000061886
03.07.2020,ADULT SOCIAL CARE,FRESH IDEAS & SOLUTIONS SERVICES CIC,465.64,LD LTS 18-64,PAYMENTS TO CLIENTS (DIRECT PAYMENTS),2103119944,1000070832
03.07.2020,ADULT SOCIAL CARE,FRESH IDEAS & SOLUTIONS SERVICES CIC,740.00,LD LTS 18-64,PAYMENTS TO CLIENTS (DIRECT PAYMENTS),2103119933,1000070832
03.07.2020,ADULT SOCIAL CARE,FRESH IDEAS & SOLUTIONS SERVICES CIC,791.84,LD LTS 18-64,PAYMENTS TO CLIENTS (DIRECT PAYMENTS),2103120179,1000070832
03.07.2020,ADULT SOCIAL CARE,FRESH IDEAS & SOLUTIONS SERVICES CIC,875.60,LD LTS 18-64,PAYMENTS TO CLIENTS (DIRECT PAYMENTS),2103119828,1000070832
03.07.2020,ADULT SOCIAL CARE,FRESH IDEAS & SOLUTIONS SERVICES CIC,900.00,LD LTS 18-64,PAYMENTS TO CLIENTS (DIRECT PAYMENTS),2103119865,1000070832
03.07.2020,ADULT SOCIAL CARE,FRESH IDEAS & SOLUTIONS SERVICES CIC,"1,047.52",LD LTS 18-64,PAYMENTS TO CLIENTS (DIRECT PAYMENTS),2103119698,1000070832
03.07.2020,ADULT SOCIAL CARE,FRESH IDEAS & SOLUTIONS SERVICES CIC,"1,848.00",LD LTS 18-64,PAYMENTS TO CLIENTS (DIRECT PAYMENTS),2103120062,1000070832
03.07.2020,ADULT SOCIAL CARE,FRESH IDEAS & SOLUTIONS SERVICES CIC,"2,618.80",LD LTS 18-64,PAYMENTS TO CLIENTS (DIRECT PAYMENTS),2103119677,1000070832
03.07.2020,ADULT SOCIAL CARE,REDACTED PERSONAL DATA,"2,262.40",LD LTS 18-64,PAYMENTS TO CLIENTS (DIRECT PAYMENTS),REDACTED,REDACTED
03.07.2020,ADULT SOCIAL CARE,REDACTED PERSONAL DATA,"3,923.12",LD LTS 18-64,PAYMENTS TO CLIENTS (DIRECT PAYMENTS),REDACTED,REDACTED
03.07.2020,ADULT SOCIAL CARE,REDACTED PERSONAL DATA,981.52,LD LTS 18-64,PAYMENTS TO CLIENTS (DIRECT PAYMENTS),REDACTED,REDACTED
03.07.2020,ADULT SOCIAL CARE,REDACTED PERSONAL DATA,"6,287.92",LD LTS 18-64,PAYMENTS TO CLIENTS (DIRECT PAYMENTS),REDACTED,REDACTED
03.07.2020,ADULT SOCIAL CARE,REDACTED PERSONAL DATA,"2,452.08",LD LTS 18-64,PAYMENTS TO CLIENTS (DIRECT PAYMENTS),REDACTED,REDACTED
03.07.2020,ADULT SOCIAL CARE,REDACTED PERSONAL DATA,"1,979.60",LD LTS 18-64,PAYMENTS TO CLIENTS (DIRECT PAYMENTS),REDACTED,REDACTED
03.07.2020,ADULT SOCIAL CARE,REDACTED PERSONAL DATA,"8,484.60",LD LTS 18-64,PAYMENTS TO CLIENTS (DIRECT PAYMENTS),REDACTED,REDACTED
03.07.2020,ADULT SOCIAL CARE,REDACTED PERSONAL DATA,288.80,LD LTS 18-64,PAYMENTS TO CLIENTS (DIRECT PAYMENTS),REDACTED,REDACTED
03.07.2020,ADULT SOCIAL CARE,REDACTED PERSONAL DATA,"1,534.00",LD LTS 18-64,PAYMENTS TO CLIENTS (DIRECT PAYMENTS),REDACTED,REDACTED
03.07.2020,ADULT SOCIAL CARE,REDACTED PERSONAL DATA,"2,158.60",LD LTS 18-64,PAYMENTS TO CLIENTS (DIRECT PAYMENTS),REDACTED,REDACTED
03.07.2020,ADULT SOCIAL CARE,REDACTED PERSONAL DATA,"3,864.64",LD LTS 18-64,PAYMENTS TO CLIENTS (DIRECT PAYMENTS),REDACTED,REDACTED
03.07.2020,ADULT SOCIAL CARE,REDACTED PERSONAL DATA,"1,420.12",LD LTS 18-64,PAYMENTS TO CLIENTS (DIRECT PAYMENTS),REDACTED,REDACTED
03.07.2020,ADULT SOCIAL CARE,REDACTED PERSONAL DATA,594.40,LD LTS 18-64,PAYMENTS TO CLIENTS (DIRECT PAYMENTS),REDACTED,REDACTED
03.07.2020,ADULT SOCIAL CARE,REDACTED PERSONAL DATA,414.80,LD LTS 18-64,PAYMENTS TO CLIENTS (DIRECT PAYMENTS),REDACTED,REDACTED
03.07.2020,ADULT SOCIAL CARE,REDACTED PERSONAL DATA,282.80,LD LTS 18-64,PAYMENTS TO CLIENTS (DIRECT PAYMENTS),REDACTED,REDACTED
03.07.2020,ADULT SOCIAL CARE,REDACTED PERSONAL DATA,"1,368.32",LD LTS 18-64,PAYMENTS TO CLIENTS (DIRECT PAYMENTS),REDACTED,REDACTED
03.07.2020,ADULT SOCIAL CARE,REDACTED PERSONAL DATA,"2,317.60",LD LTS 18-64,PAYMENTS TO CLIENTS (DIRECT PAYMENTS),REDACTED,REDACTED
03.07.2020,ADULT SOCIAL CARE,REDACTED PERSONAL DATA,"2,000.00",LD LTS 18-64,PAYMENTS TO CLIENTS (DIRECT PAYMENTS),REDACTED,REDACTED
03.07.2020,ADULT SOCIAL CARE,REDACTED PERSONAL DATA,522.60,LD LTS 18-64,PAYMENTS TO CLIENTS (DIRECT PAYMENTS),REDACTED,REDACTED
03.07.2020,ADULT SOCIAL CARE,REDACTED PERSONAL DATA,"6,644.40",LD LTS 18-64,PAYMENTS TO CLIENTS (DIRECT PAYMENTS),REDACTED,REDACTED
03.07.2020,ADULT SOCIAL CARE,REDACTED PERSONAL DATA,"1,025.20",LD LTS 18-64,PAYMENTS TO CLIENTS (DIRECT PAYMENTS),REDACTED,REDACTED
03.07.2020,ADULT SOCIAL CARE,REDACTED PERSONAL DATA,327.20,LD LTS 18-64,PAYMENTS TO CLIENTS (DIRECT PAYMENTS),REDACTED,REDACTED
03.07.2020,ADULT SOCIAL CARE,REDACTED PERSONAL DATA,809.80,LD LTS 18-64,PAYMENTS TO CLIENTS (DIRECT PAYMENTS),REDACTED,REDACTED
03.07.2020,ADULT SOCIAL CARE,REDACTED PERSONAL DATA,300.00,LD LTS 18-64,PAYMENTS TO CLIENTS (DIRECT PAYMENTS),REDACTED,REDACTED
03.07.2020,ADULT SOCIAL CARE,REDACTED PERSONAL DATA,"2,118.00",LD LTS 18-64,PAYMENTS TO CLIENTS (DIRECT PAYMENTS),REDACTED,REDACTED
03.07.2020,ADULT SOCIAL CARE,REDACTED PERSONAL DATA,738.00,LD LTS 18-64,PAYMENTS TO CLIENTS (DIRECT PAYMENTS),REDACTED,REDACTED
03.07.2020,ADULT SOCIAL CARE,REDACTED PERSONAL DATA,282.80,LD LTS 18-64,PAYMENTS TO CLIENTS (DIRECT PAYMENTS),REDACTED,REDACTED
03.07.2020,ADULT SOCIAL CARE,REDACTED PERSONAL DATA,320.00,LD LTS 18-64,PAYMENTS TO CLIENTS (DIRECT PAYMENTS),REDACTED,REDACTED
03.07.2020,ADULT SOCIAL CARE,REDACTED PERSONAL DATA,"2,116.00",LD LTS 18-64,PAYMENTS TO CLIENTS (DIRECT PAYMENTS),REDACTED,REDACTED
03.07.2020,ADULT SOCIAL CARE,REDACTED PERSONAL DATA,774.20,LD LTS 18-64,PAYMENTS TO CLIENTS (DIRECT PAYMENTS),REDACTED,REDACTED
03.07.2020,ADULT SOCIAL CARE,REDACTED PERSONAL DATA,"1,200.00",LD LTS 18-64,PAYMENTS TO CLIENTS (DIRECT PAYMENTS),REDACTED,REDACTED
03.07.2020,ADULT SOCIAL CARE,REDACTED PERSONAL DATA,718.00,LD LTS 18-64,PAYMENTS TO CLIENTS (DIRECT PAYMENTS),REDACTED,REDACTED
03.07.2020,ADULT SOCIAL CARE,REDACTED PERSONAL DATA,"1,290.16",LD LTS 18-64,PAYMENTS TO CLIENTS (DIRECT PAYMENTS),REDACTED,REDACTED
03.07.2020,ADULT SOCIAL CARE,REDACTED PERSONAL DATA,"1,532.68",LD LTS 18-64,PAYMENTS TO CLIENTS (DIRECT PAYMENTS),REDACTED,REDACTED
03.07.2020,ADULT SOCIAL CARE,REDACTED PERSONAL DATA,"1,532.92",LD LTS 18-64,PAYMENTS TO CLIENTS (DIRECT PAYMENTS),REDACTED,REDACTED
03.07.2020,ADULT SOCIAL CARE,REDACTED PERSONAL DATA,"5,026.00",LD LTS 18-64,PAYMENTS TO CLIENTS (DIRECT PAYMENTS),REDACTED,REDACTED
03.07.2020,ADULT SOCIAL CARE,REDACTED PERSONAL DATA,"6,286.08",LD LTS 18-64,PAYMENTS TO CLIENTS (DIRECT PAYMENTS),REDACTED,REDACTED
03.07.2020,ADULT SOCIAL CARE,REDACTED PERSONAL DATA,"2,347.24",LD LTS 18-64,PAYMENTS TO CLIENTS (DIRECT PAYMENTS),REDACTED,REDACTED
03.07.2020,ADULT SOCIAL CARE,REDACTED PERSONAL DATA,-578.48,LD LTS 18-64,PAYMENTS TO CLIENTS (DIRECT PAYMENTS),REDACTED,REDACTED
03.07.2020,ADULT SOCIAL CARE,REDACTED PERSONAL DATA,"1,845.16",LD LTS 18-64,PAYMENTS TO CLIENTS (DIRECT PAYMENTS),REDACTED,REDACTED
03.07.2020,ADULT SOCIAL CARE,REDACTED PERSONAL DATA,"2,660.20",LD LTS 18-64,PAYMENTS TO CLIENTS (DIRECT PAYMENTS),REDACTED,REDACTED
03.07.2020,ADULT SOCIAL CARE,REDACTED PERSONAL DATA,676.00,LD LTS 18-64,PAYMENTS TO CLIENTS (DIRECT PAYMENTS),REDACTED,REDACTED
03.07.2020,ADULT SOCIAL CARE,REDACTED PERSONAL DATA,"1,293.44",LD LTS 18-64,PAYMENTS TO CLIENTS (DIRECT PAYMENTS),REDACTED,REDACTED
03.07.2020,ADULT SOCIAL CARE,REDACTED PERSONAL DATA,"1,493.16",LD LTS 18-64,PAYMENTS TO CLIENTS (DIRECT PAYMENTS),REDACTED,REDACTED
03.07.2020,ADULT SOCIAL CARE,REDACTED PERSONAL DATA,"12,580.00",LD LTS 18-64,PAYMENTS TO CLIENTS (DIRECT PAYMENTS),REDACTED,REDACTED
03.07.2020,ADULT SOCIAL CARE,REDACTED PERSONAL DATA,978.00,LD LTS 18-64,PAYMENTS TO CLIENTS (DIRECT PAYMENTS),REDACTED,REDACTED
03.07.2020,ADULT SOCIAL CARE,REDACTED PERSONAL DATA,956.16,LD LTS 18-64,PAYMENTS TO CLIENTS (DIRECT PAYMENTS),REDACTED,REDACTED
03.07.2020,ADULT SOCIAL CARE,REDACTED PERSONAL DATA,"1,400.00",LD LTS 18-64,PAYMENTS TO CLIENTS (DIRECT PAYMENTS),REDACTED,REDACTED
03.07.2020,ADULT SOCIAL CARE,REDACTED PERSONAL DATA,"2,736.00",LD LTS 18-64,PAYMENTS TO CLIENTS (DIRECT PAYMENTS),REDACTED,REDACTED
03.07.2020,ADULT SOCIAL CARE,REDACTED PERSONAL DATA,359.36,LD LTS 18-64,PAYMENTS TO CLIENTS (DIRECT PAYMENTS),REDACTED,REDACTED
03.07.2020,ADULT SOCIAL CARE,REDACTED PERSONAL DATA,787.76,LD LTS 18-64,PAYMENTS TO CLIENTS (DIRECT PAYMENTS),REDACTED,REDACTED
03.07.2020,ADULT SOCIAL CARE,REDACTED PERSONAL DATA,460.04,LD LTS 18-64,PAYMENTS TO CLIENTS (DIRECT PAYMENTS),REDACTED,REDACTED
03.07.2020,ADULT SOCIAL CARE,REDACTED PERSONAL DATA,430.80,LD LTS 18-64,PAYMENTS TO CLIENTS (DIRECT PAYMENTS),REDACTED,REDACTED
03.07.2020,ADULT SOCIAL CARE,REDACTED PERSONAL DATA,858.88,LD LTS 18-64,PAYMENTS TO CLIENTS (DIRECT PAYMENTS),REDACTED,REDACTED
03.07.2020,ADULT SOCIAL CARE,REDACTED PERSONAL DATA,300.00,LD LTS 18-64,PAYMENTS TO CLIENTS (DIRECT PAYMENTS),REDACTED,REDACTED
03.07.2020,ADULT SOCIAL CARE,GRANGE FARM COMPLEX,"1,778.36",LD LTS 18-64,SUPPORTED LIVING,2103119987,11086081
03.07.2020,ADULT SOCIAL CARE,SWK DISABLEMENT ASSN,443.04,LD LTS 18-64,SUPPORTED LIVING,2103119112,1000011698
03.07.2020,ADULT SOCIAL CARE,SWK DISABLEMENT ASSN,443.04,LD LTS 18-64,SUPPORTED LIVING,2103119140,1000011698
03.07.2020,ADULT SOCIAL CARE,SWK DISABLEMENT ASSN,443.04,LD LTS 18-64,SUPPORTED LIVING,2103119180,1000011698
03.07.2020,ADULT SOCIAL CARE,SWK DISABLEMENT ASSN,738.40,LD LTS 18-64,SUPPORTED LIVING,2103119142,1000011698
03.07.2020,ADULT SOCIAL CARE,SWK DISABLEMENT ASSN,"1,144.52",LD LTS 18-64,SUPPORTED LIVING,2103119128,1000011698
03.07.2020,ADULT SOCIAL CARE,SWK DISABLEMENT ASSN,"1,255.28",LD LTS 18-64,SUPPORTED LIVING,2103119179,1000011698
03.07.2020,ADULT SOCIAL CARE,PLUS SERVICES,"3,200.00",LD LTS 18-64,SUPPORTED LIVING,2103119678,1000021241
03.07.2020,ADULT SOCIAL CARE,PLUS SERVICES,"5,173.60",LD LTS 18-64,SUPPORTED LIVING,2103120124,1000021241
03.07.2020,ADULT SOCIAL CARE,PLUS SERVICES,"5,495.20",LD LTS 18-64,SUPPORTED LIVING,2103119495,1000021241
03.07.2020,ADULT SOCIAL CARE,AURORA OPTIONS,"2,855.16",LD LTS 18-64,SUPPORTED LIVING,2103119583,1000066695
03.07.2020,ADULT SOCIAL CARE,AURORA OPTIONS,"2,855.16",LD LTS 18-64,SUPPORTED LIVING,2103119931,1000066695
03.07.2020,ADULT SOCIAL CARE,AURORA OPTIONS,"3,441.16",LD LTS 18-64,SUPPORTED LIVING,2103120073,1000066695
03.07.2020,ADULT SOCIAL CARE,HEALTH PERSONNEL LTD,"3,270.00",LD LTS 18-64,SUPPORTED LIVING,2103119692,1000076377
03.07.2020,ADULT SOCIAL CARE,INSPIRE SUPPORT WORKERS LTD,324.00,LD LTS 18-64,SUPPORTED LIVING,2103119101,1000080725
03.07.2020,ADULT SOCIAL CARE,INSPIRE SUPPORT WORKERS LTD,900.00,LD LTS 18-64,SUPPORTED LIVING,2103119104,1000080725
03.07.2020,ADULT SOCIAL CARE,INSPIRE SUPPORT WORKERS LTD,"3,850.00",LD LTS 18-64,SUPPORTED LIVING,2103119103,1000080725
03.07.2020,ADULT SOCIAL CARE,REDACTED PERSONAL DATA,"1,032.16",LD LTS 18-64,SUPPORTED LIVING,REDACTED,REDACTED
03.07.2020,ADULT SOCIAL CARE,PEOPLEPLUS ILS,482.00,LD LTS 65+,PAYMENTS TO CLIENTS (DIRECT PAYMENTS),2103119669,1000061886
03.07.2020,ADULT SOCIAL CARE,UNITED RESPONSE,"1,599.00",LD LTS 65+,SUPPORTED LIVING,2103119943,1022934
03.07.2020,ADULT SOCIAL CARE,SWK DISABLEMENT ASSN,"1,550.64",LD LTS 65+,SUPPORTED LIVING,2103119148,1000011698
03.07.2020,ADULT SOCIAL CARE,PLUS SERVICES,"6,147.92",LD LTS 65+,SUPPORTED LIVING,2103120065,1000021241
03.07.2020,ADULT SOCIAL CARE,PEOPLEPLUS ILS,480.76,MEM LTS 18-64,PAYMENTS TO CLIENTS (DIRECT PAYMENTS),2103119474,1000061886
03.07.2020,ADULT SOCIAL CARE,PEOPLEPLUS ILS,"1,184.00",MEM LTS 18-64,PAYMENTS TO CLIENTS (DIRECT PAYMENTS),2103119763,1000061886
03.07.2020,ADULT SOCIAL CARE,REDACTED PERSONAL DATA,256.00,MEM LTS 18-64,SUPPORTED LIVING,REDACTED,REDACTED
03.07.2020,ADULT SOCIAL CARE,PEOPLEPLUS ILS,-258.88,MEM LTS 65+,DISCRETIONARY FLEXIBLE FEES & INCOME,2103119822,1000061886
03.07.2020,ADULT SOCIAL CARE,REDACTED PERSONAL DATA,"-1,189.32",MEM LTS 65+,DISCRETIONARY FLEXIBLE FEES & INCOME,REDACTED,REDACTED
03.07.2020,ADULT SOCIAL CARE,PEOPLEPLUS ILS,599.60,MEM LTS 65+,PAYMENTS TO CLIENTS (DIRECT PAYMENTS),2103119680,1000061886
03.07.2020,ADULT SOCIAL CARE,PEOPLEPLUS ILS,914.00,MEM LTS 65+,PAYMENTS TO CLIENTS (DIRECT PAYMENTS),2103119563,1000061886
03.07.2020,ADULT SOCIAL CARE,PEOPLEPLUS ILS,989.80,MEM LTS 65+,PAYMENTS TO CLIENTS (DIRECT PAYMENTS),2103119823,1000061886
03.07.2020,ADULT SOCIAL CARE,PEOPLEPLUS ILS,"1,221.76",MEM LTS 65+,PAYMENTS TO CLIENTS (DIRECT PAYMENTS),2103119520,1000061886
03.07.2020,ADULT SOCIAL CARE,REDACTED PERSONAL DATA,"1,345.44",MEM LTS 65+,PAYMENTS TO CLIENTS (DIRECT PAYMENTS),REDACTED,REDACTED
03.07.2020,ADULT SOCIAL CARE,REDACTED PERSONAL DATA,"1,187.76",MEM LTS 65+,PAYMENTS TO CLIENTS (DIRECT PAYMENTS),REDACTED,REDACTED
03.07.2020,ADULT SOCIAL CARE,REDACTED PERSONAL DATA,"2,282.40",MEM LTS 65+,PAYMENTS TO CLIENTS (DIRECT PAYMENTS),REDACTED,REDACTED
03.07.2020,ADULT SOCIAL CARE,SWK DISABLEMENT ASSN,332.28,MH LTS 18-64,HOMECARE - SPOT,2103119162,1000011698
03.07.2020,ADULT SOCIAL CARE,SWK DISABLEMENT ASSN,886.08,MH LTS 18-64,HOMECARE - SPOT,2103119141,1000011698
03.07.2020,ADULT SOCIAL CARE,THAMES HOMECARE SERVICE LTD,322.52,MH LTS 18-64,HOMECARE - SPOT,2103119050,1000079295
03.07.2020,ADULT SOCIAL CARE,REDACTED PERSONAL DATA,253.60,MH LTS 18-64,HOMECARE - SPOT,REDACTED,REDACTED
03.07.2020,ADULT SOCIAL CARE,REDACTED PERSONAL DATA,928.00,MH LTS 18-64,HOMECARE - SPOT,REDACTED,REDACTED
03.07.2020,ADULT SOCIAL CARE,PEOPLEPLUS ILS,"-1,030.52",MH LTS 18-64,PAYMENTS TO CLIENTS (DIRECT PAYMENTS),2103119761,1000061886
03.07.2020,ADULT SOCIAL CARE,PEOPLEPLUS ILS,253.00,MH LTS 18-64,PAYMENTS TO CLIENTS (DIRECT PAYMENTS),2103119992,1000061886
03.07.2020,ADULT SOCIAL CARE,PEOPLEPLUS ILS,254.08,MH LTS 18-64,PAYMENTS TO CLIENTS (DIRECT PAYMENTS),2103119712,1000061886
03.07.2020,ADULT SOCIAL CARE,PEOPLEPLUS ILS,260.24,MH LTS 18-64,PAYMENTS TO CLIENTS (DIRECT PAYMENTS),2103119582,1000061886
03.07.2020,ADULT SOCIAL CARE,PEOPLEPLUS ILS,260.24,MH LTS 18-64,PAYMENTS TO CLIENTS (DIRECT PAYMENTS),2103120105,1000061886
03.07.2020,ADULT SOCIAL CARE,PEOPLEPLUS ILS,269.00,MH LTS 18-64,PAYMENTS TO CLIENTS (DIRECT PAYMENTS),2103120150,1000061886
03.07.2020,ADULT SOCIAL CARE,PEOPLEPLUS ILS,274.00,MH LTS 18-64,PAYMENTS TO CLIENTS (DIRECT PAYMENTS),2103120125,1000061886
03.07.2020,ADULT SOCIAL CARE,PEOPLEPLUS ILS,287.20,MH LTS 18-64,PAYMENTS TO CLIENTS (DIRECT PAYMENTS),2103120184,1000061886
03.07.2020,ADULT SOCIAL CARE,PEOPLEPLUS ILS,293.44,MH LTS 18-64,PAYMENTS TO CLIENTS (DIRECT PAYMENTS),2103119664,1000061886
03.07.2020,ADULT SOCIAL CARE,PEOPLEPLUS ILS,308.00,MH LTS 18-64,PAYMENTS TO CLIENTS (DIRECT PAYMENTS),2103119827,1000061886
03.07.2020,ADULT SOCIAL CARE,PEOPLEPLUS ILS,316.80,MH LTS 18-64,PAYMENTS TO CLIENTS (DIRECT PAYMENTS),2103119461,1000061886
03.07.2020,ADULT SOCIAL CARE,PEOPLEPLUS ILS,318.00,MH LTS 18-64,PAYMENTS TO CLIENTS (DIRECT PAYMENTS),2103119697,1000061886
03.07.2020,ADULT SOCIAL CARE,PEOPLEPLUS ILS,326.00,MH LTS 18-64,PAYMENTS TO CLIENTS (DIRECT PAYMENTS),2103119919,1000061886
03.07.2020,ADULT SOCIAL CARE,PEOPLEPLUS ILS,327.44,MH LTS 18-64,PAYMENTS TO CLIENTS (DIRECT PAYMENTS),2103119694,1000061886
03.07.2020,ADULT SOCIAL CARE,PEOPLEPLUS ILS,359.24,MH LTS 18-64,PAYMENTS TO CLIENTS (DIRECT PAYMENTS),2103119720,1000061886
03.07.2020,ADULT SOCIAL CARE,PEOPLEPLUS ILS,366.80,MH LTS 18-64,PAYMENTS TO CLIENTS (DIRECT PAYMENTS),2103119887,1000061886
03.07.2020,ADULT SOCIAL CARE,PEOPLEPLUS ILS,373.36,MH LTS 18-64,PAYMENTS TO CLIENTS (DIRECT PAYMENTS),2103119749,1000061886
03.07.2020,ADULT SOCIAL CARE,PEOPLEPLUS ILS,373.36,MH LTS 18-64,PAYMENTS TO CLIENTS (DIRECT PAYMENTS),2103119814,1000061886
03.07.2020,ADULT SOCIAL CARE,PEOPLEPLUS ILS,385.76,MH LTS 18-64,PAYMENTS TO CLIENTS (DIRECT PAYMENTS),2103119912,1000061886
03.07.2020,ADULT SOCIAL CARE,PEOPLEPLUS ILS,386.96,MH LTS 18-64,PAYMENTS TO CLIENTS (DIRECT PAYMENTS),2103120018,1000061886
03.07.2020,ADULT SOCIAL CARE,PEOPLEPLUS ILS,393.20,MH LTS 18-64,PAYMENTS TO CLIENTS (DIRECT PAYMENTS),2103119757,1000061886
03.07.2020,ADULT SOCIAL CARE,PEOPLEPLUS ILS,413.96,MH LTS 18-64,PAYMENTS TO CLIENTS (DIRECT PAYMENTS),2103119561,1000061886
03.07.2020,ADULT SOCIAL CARE,PEOPLEPLUS ILS,427.92,MH LTS 18-64,PAYMENTS TO CLIENTS (DIRECT PAYMENTS),2103120006,1000061886
03.07.2020,ADULT SOCIAL CARE,PEOPLEPLUS ILS,440.16,MH LTS 18-64,PAYMENTS TO CLIENTS (DIRECT PAYMENTS),2103119989,1000061886
03.07.2020,ADULT SOCIAL CARE,PEOPLEPLUS ILS,454.00,MH LTS 18-64,PAYMENTS TO CLIENTS (DIRECT PAYMENTS),2103119742,1000061886
03.07.2020,ADULT SOCIAL CARE,PEOPLEPLUS ILS,486.48,MH LTS 18-64,PAYMENTS TO CLIENTS (DIRECT PAYMENTS),2103119881,1000061886
03.07.2020,ADULT SOCIAL CARE,PEOPLEPLUS ILS,489.32,MH LTS 18-64,PAYMENTS TO CLIENTS (DIRECT PAYMENTS),2103119581,1000061886
03.07.2020,ADULT SOCIAL CARE,PEOPLEPLUS ILS,504.40,MH LTS 18-64,PAYMENTS TO CLIENTS (DIRECT PAYMENTS),2103119559,1000061886
03.07.2020,ADULT SOCIAL CARE,PEOPLEPLUS ILS,510.84,MH LTS 18-64,PAYMENTS TO CLIENTS (DIRECT PAYMENTS),2103120081,1000061886
03.07.2020,ADULT SOCIAL CARE,PEOPLEPLUS ILS,529.00,MH LTS 18-64,PAYMENTS TO CLIENTS (DIRECT PAYMENTS),2103120030,1000061886
03.07.2020,ADULT SOCIAL CARE,PEOPLEPLUS ILS,547.52,MH LTS 18-64,PAYMENTS TO CLIENTS (DIRECT PAYMENTS),2103119864,1000061886
03.07.2020,ADULT SOCIAL CARE,PEOPLEPLUS ILS,559.84,MH LTS 18-64,PAYMENTS TO CLIENTS (DIRECT PAYMENTS),2103120071,1000061886
03.07.2020,ADULT SOCIAL CARE,PEOPLEPLUS ILS,565.60,MH LTS 18-64,PAYMENTS TO CLIENTS (DIRECT PAYMENTS),2103119895,1000061886
03.07.2020,ADULT SOCIAL CARE,PEOPLEPLUS ILS,573.00,MH LTS 18-64,PAYMENTS TO CLIENTS (DIRECT PAYMENTS),2103119961,1000061886
03.07.2020,ADULT SOCIAL CARE,PEOPLEPLUS ILS,587.84,MH LTS 18-64,PAYMENTS TO CLIENTS (DIRECT PAYMENTS),2103120180,1000061886
03.07.2020,ADULT SOCIAL CARE,PEOPLEPLUS ILS,659.60,MH LTS 18-64,PAYMENTS TO CLIENTS (DIRECT PAYMENTS),2103119435,1000061886
03.07.2020,ADULT SOCIAL CARE,PEOPLEPLUS ILS,694.16,MH LTS 18-64,PAYMENTS TO CLIENTS (DIRECT PAYMENTS),2103119489,1000061886
03.07.2020,ADULT SOCIAL CARE,PEOPLEPLUS ILS,720.80,MH LTS 18-64,PAYMENTS TO CLIENTS (DIRECT PAYMENTS),2103119732,1000061886
03.07.2020,ADULT SOCIAL CARE,PEOPLEPLUS ILS,"1,054.00",MH LTS 18-64,PAYMENTS TO CLIENTS (DIRECT PAYMENTS),2103119980,1000061886
03.07.2020,ADULT SOCIAL CARE,PEOPLEPLUS ILS,"2,311.60",MH LTS 18-64,PAYMENTS TO CLIENTS (DIRECT PAYMENTS),2103119620,1000061886
03.07.2020,ADULT SOCIAL CARE,REDACTED PERSONAL DATA,410.08,MH LTS 18-64,PAYMENTS TO CLIENTS (DIRECT PAYMENTS),REDACTED,REDACTED
03.07.2020,ADULT SOCIAL CARE,REDACTED PERSONAL DATA,328.00,MH LTS 18-64,PAYMENTS TO CLIENTS (DIRECT PAYMENTS),REDACTED,REDACTED
03.07.2020,ADULT SOCIAL CARE,REDACTED PERSONAL DATA,888.00,MH LTS 18-64,PAYMENTS TO CLIENTS (DIRECT PAYMENTS),REDACTED,REDACTED
03.07.2020,ADULT SOCIAL CARE,REDACTED PERSONAL DATA,"1,158.36",MH LTS 18-64,PAYMENTS TO CLIENTS (DIRECT PAYMENTS),REDACTED,REDACTED
03.07.2020,ADULT SOCIAL CARE,REDACTED PERSONAL DATA,396.00,MH LTS 18-64,PAYMENTS TO CLIENTS (DIRECT PAYMENTS),REDACTED,REDACTED
03.07.2020,ADULT SOCIAL CARE,SWK DISABLEMENT ASSN,258.44,MH LTS 18-64,SUPPORTED LIVING,2103119172,1000011698
03.07.2020,ADULT SOCIAL CARE,SWK DISABLEMENT ASSN,289.92,MH LTS 18-64,SUPPORTED LIVING,2103119143,1000011698
03.07.2020,ADULT SOCIAL CARE,SWK DISABLEMENT ASSN,295.36,MH LTS 18-64,SUPPORTED LIVING,2103119145,1000011698
03.07.2020,ADULT SOCIAL CARE,SWK DISABLEMENT ASSN,295.36,MH LTS 18-64,SUPPORTED LIVING,2103119160,1000011698
03.07.2020,ADULT SOCIAL CARE,SWK DISABLEMENT ASSN,369.20,MH LTS 18-64,SUPPORTED LIVING,2103119123,1000011698
03.07.2020,ADULT SOCIAL CARE,SWK DISABLEMENT ASSN,479.96,MH LTS 18-64,SUPPORTED LIVING,2103119166,1000011698
03.07.2020,ADULT SOCIAL CARE,SWK DISABLEMENT ASSN,516.88,MH LTS 18-64,SUPPORTED LIVING,2103119127,1000011698
03.07.2020,ADULT SOCIAL CARE,SWK DISABLEMENT ASSN,590.72,MH LTS 18-64,SUPPORTED LIVING,2103119116,1000011698
03.07.2020,ADULT SOCIAL CARE,SWK DISABLEMENT ASSN,664.56,MH LTS 18-64,SUPPORTED LIVING,2103119151,1000011698
03.07.2020,ADULT SOCIAL CARE,SWK DISABLEMENT ASSN,886.08,MH LTS 18-64,SUPPORTED LIVING,2103119137,1000011698
03.07.2020,ADULT SOCIAL CARE,SWK DISABLEMENT ASSN,"1,606.02",MH LTS 18-64,SUPPORTED LIVING,2103119154,1000011698
03.07.2020,ADULT SOCIAL CARE,THAMES HOMECARE SERVICE LTD,472.42,MH LTS 65+,HOMECARE - SPOT,2103119064,1000079295
03.07.2020,ADULT SOCIAL CARE,PEOPLEPLUS ILS,"-1,164.50",MH LTS 65+,PAYMENTS TO CLIENTS (DIRECT PAYMENTS),2103119628,1000061886
03.07.2020,ADULT SOCIAL CARE,PEOPLEPLUS ILS,279.72,MH LTS 65+,PAYMENTS TO CLIENTS (DIRECT PAYMENTS),2103119956,1000061886
03.07.2020,ADULT SOCIAL CARE,PEOPLEPLUS ILS,321.56,MH LTS 65+,PAYMENTS TO CLIENTS (DIRECT PAYMENTS),2103119536,1000061886
03.07.2020,ADULT SOCIAL CARE,REDACTED PERSONAL DATA,"1,188.60",MH LTS 65+,PAYMENTS TO CLIENTS (DIRECT PAYMENTS),REDACTED,REDACTED
03.07.2020,ADULT SOCIAL CARE,SWK DISABLEMENT ASSN,295.36,MH LTS 65+,SUPPORTED LIVING,2103119130,1000011698
03.07.2020,ADULT SOCIAL CARE,PEOPLEPLUS ILS,"1,470.00",PHB- SOUTHWARK CCG,RECOVERABLE COSTS INCL. HEALTH,2103120183,1000061886
03.07.2020,ADULT SOCIAL CARE,PEOPLEPLUS ILS,"4,127.92",PHB- SOUTHWARK CCG,RECOVERABLE COSTS INCL. HEALTH,2103120092,1000061886
03.07.2020,ADULT SOCIAL CARE,PEOPLEPLUS ILS,"4,803.80",PHB- SOUTHWARK CCG,RECOVERABLE COSTS INCL. HEALTH,2103119729,1000061886
03.07.2020,ADULT SOCIAL CARE,PEOPLEPLUS ILS,"6,673.20",PHB- SOUTHWARK CCG,RECOVERABLE COSTS INCL. HEALTH,2103119545,1000061886
03.07.2020,ADULT SOCIAL CARE,REDACTED PERSONAL DATA,"9,079.20",PHB- SOUTHWARK CCG,RECOVERABLE COSTS INCL. HEALTH,REDACTED,REDACTED
03.07.2020,ADULT SOCIAL CARE,REDACTED PERSONAL DATA,"7,482.40",PHB- SOUTHWARK CCG,RECOVERABLE COSTS INCL. HEALTH,REDACTED,REDACTED
03.07.2020,ADULT SOCIAL CARE,REDACTED PERSONAL DATA,"2,549.52",PHB- SOUTHWARK CCG,RECOVERABLE COSTS INCL. HEALTH,REDACTED,REDACTED
03.07.2020,ADULT SOCIAL CARE,REDACTED PERSONAL DATA,"2,699.76",PHB- SOUTHWARK CCG,RECOVERABLE COSTS INCL. HEALTH,REDACTED,REDACTED
03.07.2020,ADULT SOCIAL CARE,PEOPLEPLUS ILS,-645.12,PHY LTS 18-64,DISCRETIONARY FLEXIBLE FEES & INCOME,2103119799,1000061886
03.07.2020,ADULT SOCIAL CARE,SWK DISABLEMENT ASSN,346.40,PHY LTS 18-64,HOMECARE - SPOT,2103119133,1000011698
03.07.2020,ADULT SOCIAL CARE,SWK DISABLEMENT ASSN,484.96,PHY LTS 18-64,HOMECARE - SPOT,2103119173,1000011698
03.07.2020,ADULT SOCIAL CARE,SWK DISABLEMENT ASSN,969.92,PHY LTS 18-64,HOMECARE - SPOT,2103119115,1000011698
03.07.2020,ADULT SOCIAL CARE,SWK DISABLEMENT ASSN,"1,108.48",PHY LTS 18-64,HOMECARE - SPOT,2103119168,1000011698
03.07.2020,ADULT SOCIAL CARE,SWK DISABLEMENT ASSN,"1,177.76",PHY LTS 18-64,HOMECARE - SPOT,2103119176,1000011698
03.07.2020,ADULT SOCIAL CARE,SWK DISABLEMENT ASSN,"1,749.32",PHY LTS 18-64,HOMECARE - SPOT,2103119150,1000011698
03.07.2020,ADULT SOCIAL CARE,SWK DISABLEMENT ASSN,"2,286.24",PHY LTS 18-64,HOMECARE - SPOT,2103119149,1000011698
03.07.2020,ADULT SOCIAL CARE,SWK DISABLEMENT ASSN,"2,719.24",PHY LTS 18-64,HOMECARE - SPOT,2103119122,1000011698
03.07.2020,ADULT SOCIAL CARE,SWK DISABLEMENT ASSN,"3,101.28",PHY LTS 18-64,HOMECARE - SPOT,2103119113,1000011698
03.07.2020,ADULT SOCIAL CARE,SWK DISABLEMENT ASSN,"3,498.64",PHY LTS 18-64,HOMECARE - SPOT,2103119126,1000011698
03.07.2020,ADULT SOCIAL CARE,THAMES HOMECARE SERVICE LTD,290.72,PHY LTS 18-64,HOMECARE - SPOT,2103119044,1000079295
03.07.2020,ADULT SOCIAL CARE,THAMES HOMECARE SERVICE LTD,327.06,PHY LTS 18-64,HOMECARE - SPOT,2103119053,1000079295
03.07.2020,ADULT SOCIAL CARE,THAMES HOMECARE SERVICE LTD,349.77,PHY LTS 18-64,HOMECARE - SPOT,2103119066,1000079295
03.07.2020,ADULT SOCIAL CARE,THAMES HOMECARE SERVICE LTD,386.11,PHY LTS 18-64,HOMECARE - SPOT,2103119071,1000079295
03.07.2020,ADULT SOCIAL CARE,THAMES HOMECARE SERVICE LTD,572.36,PHY LTS 18-64,HOMECARE - SPOT,2103119033,1000079295
03.07.2020,ADULT SOCIAL CARE,THAMES HOMECARE SERVICE LTD,572.36,PHY LTS 18-64,HOMECARE - SPOT,2103119058,1000079295
03.07.2020,ADULT SOCIAL CARE,THAMES HOMECARE SERVICE LTD,635.95,PHY LTS 18-64,HOMECARE - SPOT,2103119074,1000079295
03.07.2020,ADULT SOCIAL CARE,THAMES HOMECARE SERVICE LTD,649.58,PHY LTS 18-64,HOMECARE - SPOT,2103119079,1000079295
03.07.2020,ADULT SOCIAL CARE,THAMES HOMECARE SERVICE LTD,726.80,PHY LTS 18-64,HOMECARE - SPOT,2103119097,1000079295
03.07.2020,ADULT SOCIAL CARE,THAMES HOMECARE SERVICE LTD,844.91,PHY LTS 18-64,HOMECARE - SPOT,2103119082,1000079295
03.07.2020,ADULT SOCIAL CARE,THAMES HOMECARE SERVICE LTD,935.76,PHY LTS 18-64,HOMECARE - SPOT,2103119095,1000079295
03.07.2020,ADULT SOCIAL CARE,PEOPLEPLUS ILS,"-2,038.43",PHY LTS 18-64,PAYMENTS TO CLIENTS (DIRECT PAYMENTS),2103119543,1000061886
03.07.2020,ADULT SOCIAL CARE,PEOPLEPLUS ILS,265.64,PHY LTS 18-64,PAYMENTS TO CLIENTS (DIRECT PAYMENTS),2103120001,1000061886
03.07.2020,ADULT SOCIAL CARE,PEOPLEPLUS ILS,279.64,PHY LTS 18-64,PAYMENTS TO CLIENTS (DIRECT PAYMENTS),2103119496,1000061886
03.07.2020,ADULT SOCIAL CARE,PEOPLEPLUS ILS,295.04,PHY LTS 18-64,PAYMENTS TO CLIENTS (DIRECT PAYMENTS),2103119994,1000061886
03.07.2020,ADULT SOCIAL CARE,PEOPLEPLUS ILS,365.00,PHY LTS 18-64,PAYMENTS TO CLIENTS (DIRECT PAYMENTS),2103120098,1000061886
03.07.2020,ADULT SOCIAL CARE,PEOPLEPLUS ILS,388.40,PHY LTS 18-64,PAYMENTS TO CLIENTS (DIRECT PAYMENTS),2103119947,1000061886
03.07.2020,ADULT SOCIAL CARE,PEOPLEPLUS ILS,411.80,PHY LTS 18-64,PAYMENTS TO CLIENTS (DIRECT PAYMENTS),2103119706,1000061886
03.07.2020,ADULT SOCIAL CARE,PEOPLEPLUS ILS,429.92,PHY LTS 18-64,PAYMENTS TO CLIENTS (DIRECT PAYMENTS),2103119492,1000061886
03.07.2020,ADULT SOCIAL CARE,PEOPLEPLUS ILS,429.92,PHY LTS 18-64,PAYMENTS TO CLIENTS (DIRECT PAYMENTS),2103119794,1000061886
03.07.2020,ADULT SOCIAL CARE,PEOPLEPLUS ILS,444.08,PHY LTS 18-64,PAYMENTS TO CLIENTS (DIRECT PAYMENTS),2103119854,1000061886
03.07.2020,ADULT SOCIAL CARE,PEOPLEPLUS ILS,447.40,PHY LTS 18-64,PAYMENTS TO CLIENTS (DIRECT PAYMENTS),2103119465,1000061886
03.07.2020,ADULT SOCIAL CARE,PEOPLEPLUS ILS,472.36,PHY LTS 18-64,PAYMENTS TO CLIENTS (DIRECT PAYMENTS),2103119686,1000061886
03.07.2020,ADULT SOCIAL CARE,PEOPLEPLUS ILS,486.48,PHY LTS 18-64,PAYMENTS TO CLIENTS (DIRECT PAYMENTS),2103119537,1000061886
03.07.2020,ADULT SOCIAL CARE,PEOPLEPLUS ILS,504.00,PHY LTS 18-64,PAYMENTS TO CLIENTS (DIRECT PAYMENTS),2103119774,1000061886
03.07.2020,ADULT SOCIAL CARE,PEOPLEPLUS ILS,505.40,PHY LTS 18-64,PAYMENTS TO CLIENTS (DIRECT PAYMENTS),2103119755,1000061886
03.07.2020,ADULT SOCIAL CARE,PEOPLEPLUS ILS,579.60,PHY LTS 18-64,PAYMENTS TO CLIENTS (DIRECT PAYMENTS),2103119517,1000061886
03.07.2020,ADULT SOCIAL CARE,PEOPLEPLUS ILS,587.32,PHY LTS 18-64,PAYMENTS TO CLIENTS (DIRECT PAYMENTS),2103119645,1000061886
03.07.2020,ADULT SOCIAL CARE,PEOPLEPLUS ILS,608.04,PHY LTS 18-64,PAYMENTS TO CLIENTS (DIRECT PAYMENTS),2103119505,1000061886
03.07.2020,ADULT SOCIAL CARE,PEOPLEPLUS ILS,613.76,PHY LTS 18-64,PAYMENTS TO CLIENTS (DIRECT PAYMENTS),2103119877,1000061886
03.07.2020,ADULT SOCIAL CARE,PEOPLEPLUS ILS,613.76,PHY LTS 18-64,PAYMENTS TO CLIENTS (DIRECT PAYMENTS),2103119903,1000061886
03.07.2020,ADULT SOCIAL CARE,PEOPLEPLUS ILS,613.76,PHY LTS 18-64,PAYMENTS TO CLIENTS (DIRECT PAYMENTS),2103120064,1000061886
03.07.2020,ADULT SOCIAL CARE,PEOPLEPLUS ILS,627.88,PHY LTS 18-64,PAYMENTS TO CLIENTS (DIRECT PAYMENTS),2103119805,1000061886
03.07.2020,ADULT SOCIAL CARE,PEOPLEPLUS ILS,636.32,PHY LTS 18-64,PAYMENTS TO CLIENTS (DIRECT PAYMENTS),2103119572,1000061886
03.07.2020,ADULT SOCIAL CARE,PEOPLEPLUS ILS,642.04,PHY LTS 18-64,PAYMENTS TO CLIENTS (DIRECT PAYMENTS),2103120045,1000061886
03.07.2020,ADULT SOCIAL CARE,PEOPLEPLUS ILS,670.32,PHY LTS 18-64,PAYMENTS TO CLIENTS (DIRECT PAYMENTS),2103119478,1000061886
03.07.2020,ADULT SOCIAL CARE,PEOPLEPLUS ILS,678.72,PHY LTS 18-64,PAYMENTS TO CLIENTS (DIRECT PAYMENTS),2103119551,1000061886
03.07.2020,ADULT SOCIAL CARE,PEOPLEPLUS ILS,678.72,PHY LTS 18-64,PAYMENTS TO CLIENTS (DIRECT PAYMENTS),2103120171,1000061886
03.07.2020,ADULT SOCIAL CARE,PEOPLEPLUS ILS,697.40,PHY LTS 18-64,PAYMENTS TO CLIENTS (DIRECT PAYMENTS),2103119687,1000061886
03.07.2020,ADULT SOCIAL CARE,PEOPLEPLUS ILS,707.00,PHY LTS 18-64,PAYMENTS TO CLIENTS (DIRECT PAYMENTS),2103119954,1000061886
03.07.2020,ADULT SOCIAL CARE,PEOPLEPLUS ILS,724.24,PHY LTS 18-64,PAYMENTS TO CLIENTS (DIRECT PAYMENTS),2103119502,1000061886
03.07.2020,ADULT SOCIAL CARE,PEOPLEPLUS ILS,726.88,PHY LTS 18-64,PAYMENTS TO CLIENTS (DIRECT PAYMENTS),2103119722,1000061886
03.07.2020,ADULT SOCIAL CARE,PEOPLEPLUS ILS,741.00,PHY LTS 18-64,PAYMENTS TO CLIENTS (DIRECT PAYMENTS),2103119830,1000061886
03.07.2020,ADULT SOCIAL CARE,PEOPLEPLUS ILS,769.28,PHY LTS 18-64,PAYMENTS TO CLIENTS (DIRECT PAYMENTS),2103119685,1000061886
03.07.2020,ADULT SOCIAL CARE,PEOPLEPLUS ILS,769.28,PHY LTS 18-64,PAYMENTS TO CLIENTS (DIRECT PAYMENTS),2103120058,1000061886
03.07.2020,ADULT SOCIAL CARE,PEOPLEPLUS ILS,786.20,PHY LTS 18-64,PAYMENTS TO CLIENTS (DIRECT PAYMENTS),2103120164,1000061886
03.07.2020,ADULT SOCIAL CARE,PEOPLEPLUS ILS,791.84,PHY LTS 18-64,PAYMENTS TO CLIENTS (DIRECT PAYMENTS),2103119595,1000061886
03.07.2020,ADULT SOCIAL CARE,PEOPLEPLUS ILS,796.88,PHY LTS 18-64,PAYMENTS TO CLIENTS (DIRECT PAYMENTS),2103119631,1000061886
03.07.2020,ADULT SOCIAL CARE,PEOPLEPLUS ILS,840.00,PHY LTS 18-64,PAYMENTS TO CLIENTS (DIRECT PAYMENTS),2103119675,1000061886
03.07.2020,ADULT SOCIAL CARE,PEOPLEPLUS ILS,840.00,PHY LTS 18-64,PAYMENTS TO CLIENTS (DIRECT PAYMENTS),2103119982,1000061886
03.07.2020,ADULT SOCIAL CARE,PEOPLEPLUS ILS,863.00,PHY LTS 18-64,PAYMENTS TO CLIENTS (DIRECT PAYMENTS),2103119869,1000061886
03.07.2020,ADULT SOCIAL CARE,PEOPLEPLUS ILS,877.80,PHY LTS 18-64,PAYMENTS TO CLIENTS (DIRECT PAYMENTS),2103119735,1000061886
03.07.2020,ADULT SOCIAL CARE,PEOPLEPLUS ILS,894.76,PHY LTS 18-64,PAYMENTS TO CLIENTS (DIRECT PAYMENTS),2103120066,1000061886
03.07.2020,ADULT SOCIAL CARE,PEOPLEPLUS ILS,932.80,PHY LTS 18-64,PAYMENTS TO CLIENTS (DIRECT PAYMENTS),2103119707,1000061886
03.07.2020,ADULT SOCIAL CARE,PEOPLEPLUS ILS,947.24,PHY LTS 18-64,PAYMENTS TO CLIENTS (DIRECT PAYMENTS),2103119486,1000061886
03.07.2020,ADULT SOCIAL CARE,PEOPLEPLUS ILS,978.32,PHY LTS 18-64,PAYMENTS TO CLIENTS (DIRECT PAYMENTS),2103119927,1000061886
03.07.2020,ADULT SOCIAL CARE,PEOPLEPLUS ILS,981.40,PHY LTS 18-64,PAYMENTS TO CLIENTS (DIRECT PAYMENTS),2103120089,1000061886
03.07.2020,ADULT SOCIAL CARE,PEOPLEPLUS ILS,989.80,PHY LTS 18-64,PAYMENTS TO CLIENTS (DIRECT PAYMENTS),2103120053,1000061886
03.07.2020,ADULT SOCIAL CARE,PEOPLEPLUS ILS,995.52,PHY LTS 18-64,PAYMENTS TO CLIENTS (DIRECT PAYMENTS),2103119998,1000061886
03.07.2020,ADULT SOCIAL CARE,PEOPLEPLUS ILS,"1,009.68",PHY LTS 18-64,PAYMENTS TO CLIENTS (DIRECT PAYMENTS),2103120091,1000061886
03.07.2020,ADULT SOCIAL CARE,PEOPLEPLUS ILS,"1,023.80",PHY LTS 18-64,PAYMENTS TO CLIENTS (DIRECT PAYMENTS),2103119810,1000061886
03.07.2020,ADULT SOCIAL CARE,PEOPLEPLUS ILS,"1,023.80",PHY LTS 18-64,PAYMENTS TO CLIENTS (DIRECT PAYMENTS),2103120088,1000061886
03.07.2020,ADULT SOCIAL CARE,PEOPLEPLUS ILS,"1,037.96",PHY LTS 18-64,PAYMENTS TO CLIENTS (DIRECT PAYMENTS),2103119948,1000061886
03.07.2020,ADULT SOCIAL CARE,PEOPLEPLUS ILS,"1,052.64",PHY LTS 18-64,PAYMENTS TO CLIENTS (DIRECT PAYMENTS),2103119926,1000061886
03.07.2020,ADULT SOCIAL CARE,PEOPLEPLUS ILS,"1,117.08",PHY LTS 18-64,PAYMENTS TO CLIENTS (DIRECT PAYMENTS),2103119607,1000061886
03.07.2020,ADULT SOCIAL CARE,PEOPLEPLUS ILS,"1,122.80",PHY LTS 18-64,PAYMENTS TO CLIENTS (DIRECT PAYMENTS),2103119873,1000061886
03.07.2020,ADULT SOCIAL CARE,PEOPLEPLUS ILS,"1,146.40",PHY LTS 18-64,PAYMENTS TO CLIENTS (DIRECT PAYMENTS),2103119437,1000061886
03.07.2020,ADULT SOCIAL CARE,PEOPLEPLUS ILS,"1,150.52",PHY LTS 18-64,PAYMENTS TO CLIENTS (DIRECT PAYMENTS),2103119627,1000061886
03.07.2020,ADULT SOCIAL CARE,PEOPLEPLUS ILS,"1,165.20",PHY LTS 18-64,PAYMENTS TO CLIENTS (DIRECT PAYMENTS),2103119730,1000061886
03.07.2020,ADULT SOCIAL CARE,PEOPLEPLUS ILS,"1,187.76",PHY LTS 18-64,PAYMENTS TO CLIENTS (DIRECT PAYMENTS),2103119467,1000061886
03.07.2020,ADULT SOCIAL CARE,PEOPLEPLUS ILS,"1,193.48",PHY LTS 18-64,PAYMENTS TO CLIENTS (DIRECT PAYMENTS),2103119908,1000061886
03.07.2020,ADULT SOCIAL CARE,PEOPLEPLUS ILS,"1,250.04",PHY LTS 18-64,PAYMENTS TO CLIENTS (DIRECT PAYMENTS),2103119436,1000061886
03.07.2020,ADULT SOCIAL CARE,PEOPLEPLUS ILS,"1,278.32",PHY LTS 18-64,PAYMENTS TO CLIENTS (DIRECT PAYMENTS),2103119816,1000061886
03.07.2020,ADULT SOCIAL CARE,PEOPLEPLUS ILS,"1,330.00",PHY LTS 18-64,PAYMENTS TO CLIENTS (DIRECT PAYMENTS),2103119447,1000061886
03.07.2020,ADULT SOCIAL CARE,PEOPLEPLUS ILS,"1,371.44",PHY LTS 18-64,PAYMENTS TO CLIENTS (DIRECT PAYMENTS),2103120049,1000061886
03.07.2020,ADULT SOCIAL CARE,PEOPLEPLUS ILS,"1,426.00",PHY LTS 18-64,PAYMENTS TO CLIENTS (DIRECT PAYMENTS),2103119553,1000061886
03.07.2020,ADULT SOCIAL CARE,PEOPLEPLUS ILS,"1,624.00",PHY LTS 18-64,PAYMENTS TO CLIENTS (DIRECT PAYMENTS),2103119819,1000061886
03.07.2020,ADULT SOCIAL CARE,PEOPLEPLUS ILS,"1,733.56",PHY LTS 18-64,PAYMENTS TO CLIENTS (DIRECT PAYMENTS),2103119787,1000061886
03.07.2020,ADULT SOCIAL CARE,PEOPLEPLUS ILS,"1,909.40",PHY LTS 18-64,PAYMENTS TO CLIENTS (DIRECT PAYMENTS),2103119963,1000061886
03.07.2020,ADULT SOCIAL CARE,PEOPLEPLUS ILS,"2,013.60",PHY LTS 18-64,PAYMENTS TO CLIENTS (DIRECT PAYMENTS),2103119853,1000061886
03.07.2020,ADULT SOCIAL CARE,PEOPLEPLUS ILS,"2,036.16",PHY LTS 18-64,PAYMENTS TO CLIENTS (DIRECT PAYMENTS),2103119838,1000061886
03.07.2020,ADULT SOCIAL CARE,PEOPLEPLUS ILS,"2,646.80",PHY LTS 18-64,PAYMENTS TO CLIENTS (DIRECT PAYMENTS),2103119702,1000061886
03.07.2020,ADULT SOCIAL CARE,PEOPLEPLUS ILS,"3,307.52",PHY LTS 18-64,PAYMENTS TO CLIENTS (DIRECT PAYMENTS),2103119592,1000061886
03.07.2020,ADULT SOCIAL CARE,PEOPLEPLUS ILS,"3,576.40",PHY LTS 18-64,PAYMENTS TO CLIENTS (DIRECT PAYMENTS),2103120003,1000061886
03.07.2020,ADULT SOCIAL CARE,PEOPLEPLUS ILS,"4,118.92",PHY LTS 18-64,PAYMENTS TO CLIENTS (DIRECT PAYMENTS),2103119672,1000061886
03.07.2020,ADULT SOCIAL CARE,PEOPLEPLUS ILS,"5,015.02",PHY LTS 18-64,PAYMENTS TO CLIENTS (DIRECT PAYMENTS),2103120043,1000061886
03.07.2020,ADULT SOCIAL CARE,PEOPLEPLUS ILS,"7,698.60",PHY LTS 18-64,PAYMENTS TO CLIENTS (DIRECT PAYMENTS),2103119668,1000061886
03.07.2020,ADULT SOCIAL CARE,FRESH IDEAS & SOLUTIONS SERVICES CIC,712.72,PHY LTS 18-64,PAYMENTS TO CLIENTS (DIRECT PAYMENTS),2103120133,1000070832
03.07.2020,ADULT SOCIAL CARE,FRESH IDEAS & SOLUTIONS SERVICES CIC,870.00,PHY LTS 18-64,PAYMENTS TO CLIENTS (DIRECT PAYMENTS),2103120118,1000070832
03.07.2020,ADULT SOCIAL CARE,FRESH IDEAS & SOLUTIONS SERVICES CIC,"1,108.64",PHY LTS 18-64,PAYMENTS TO CLIENTS (DIRECT PAYMENTS),2103120097,1000070832
03.07.2020,ADULT SOCIAL CARE,REDACTED PERSONAL DATA,"1,583.68",PHY LTS 18-64,PAYMENTS TO CLIENTS (DIRECT PAYMENTS),REDACTED,REDACTED
03.07.2020,ADULT SOCIAL CARE,REDACTED PERSONAL DATA,258.08,PHY LTS 18-64,PAYMENTS TO CLIENTS (DIRECT PAYMENTS),REDACTED,REDACTED
03.07.2020,ADULT SOCIAL CARE,REDACTED PERSONAL DATA,904.96,PHY LTS 18-64,PAYMENTS TO CLIENTS (DIRECT PAYMENTS),REDACTED,REDACTED
03.07.2020,ADULT SOCIAL CARE,REDACTED PERSONAL DATA,"2,395.52",PHY LTS 18-64,PAYMENTS TO CLIENTS (DIRECT PAYMENTS),REDACTED,REDACTED
03.07.2020,ADULT SOCIAL CARE,REDACTED PERSONAL DATA,"1,145.36",PHY LTS 18-64,PAYMENTS TO CLIENTS (DIRECT PAYMENTS),REDACTED,REDACTED
03.07.2020,ADULT SOCIAL CARE,REDACTED PERSONAL DATA,806.00,PHY LTS 18-64,PAYMENTS TO CLIENTS (DIRECT PAYMENTS),REDACTED,REDACTED
03.07.2020,ADULT SOCIAL CARE,REDACTED PERSONAL DATA,254.52,PHY LTS 18-64,PAYMENTS TO CLIENTS (DIRECT PAYMENTS),REDACTED,REDACTED
03.07.2020,ADULT SOCIAL CARE,REDACTED PERSONAL DATA,395.92,PHY LTS 18-64,PAYMENTS TO CLIENTS (DIRECT PAYMENTS),REDACTED,REDACTED
03.07.2020,ADULT SOCIAL CARE,REDACTED PERSONAL DATA,"3,973.84",PHY LTS 18-64,PAYMENTS TO CLIENTS (DIRECT PAYMENTS),REDACTED,REDACTED
03.07.2020,ADULT SOCIAL CARE,REDACTED PERSONAL DATA,"1,131.20",PHY LTS 18-64,PAYMENTS TO CLIENTS (DIRECT PAYMENTS),REDACTED,REDACTED
03.07.2020,ADULT SOCIAL CARE,REDACTED PERSONAL DATA,"1,874.72",PHY LTS 18-64,PAYMENTS TO CLIENTS (DIRECT PAYMENTS),REDACTED,REDACTED
03.07.2020,ADULT SOCIAL CARE,REDACTED PERSONAL DATA,760.76,PHY LTS 18-64,PAYMENTS TO CLIENTS (DIRECT PAYMENTS),REDACTED,REDACTED
03.07.2020,ADULT SOCIAL CARE,REDACTED PERSONAL DATA,593.88,PHY LTS 18-64,PAYMENTS TO CLIENTS (DIRECT PAYMENTS),REDACTED,REDACTED
03.07.2020,ADULT SOCIAL CARE,REDACTED PERSONAL DATA,445.43,PHY LTS 18-64,PAYMENTS TO CLIENTS (DIRECT PAYMENTS),REDACTED,REDACTED
03.07.2020,ADULT SOCIAL CARE,REDACTED PERSONAL DATA,"1,371.60",PHY LTS 18-64,PAYMENTS TO CLIENTS (DIRECT PAYMENTS),REDACTED,REDACTED
03.07.2020,ADULT SOCIAL CARE,REDACTED PERSONAL DATA,"1,204.16",PHY LTS 18-64,PAYMENTS TO CLIENTS (DIRECT PAYMENTS),REDACTED,REDACTED
03.07.2020,ADULT SOCIAL CARE,REDACTED PERSONAL DATA,"1,278.48",PHY LTS 18-64,PAYMENTS TO CLIENTS (DIRECT PAYMENTS),REDACTED,REDACTED
03.07.2020,ADULT SOCIAL CARE,REDACTED PERSONAL DATA,"1,481.20",PHY LTS 18-64,PAYMENTS TO CLIENTS (DIRECT PAYMENTS),REDACTED,REDACTED
03.07.2020,ADULT SOCIAL CARE,REDACTED PERSONAL DATA,"3,535.00",PHY LTS 18-64,PAYMENTS TO CLIENTS (DIRECT PAYMENTS),REDACTED,REDACTED
03.07.2020,ADULT SOCIAL CARE,REDACTED PERSONAL DATA,"1,979.60",PHY LTS 18-64,PAYMENTS TO CLIENTS (DIRECT PAYMENTS),REDACTED,REDACTED
03.07.2020,ADULT SOCIAL CARE,REDACTED PERSONAL DATA,585.60,PHY LTS 18-64,PAYMENTS TO CLIENTS (DIRECT PAYMENTS),REDACTED,REDACTED
03.07.2020,ADULT SOCIAL CARE,REDACTED PERSONAL DATA,403.44,PHY LTS 18-64,PAYMENTS TO CLIENTS (DIRECT PAYMENTS),REDACTED,REDACTED
03.07.2020,ADULT SOCIAL CARE,REDACTED PERSONAL DATA,961.52,PHY LTS 18-64,PAYMENTS TO CLIENTS (DIRECT PAYMENTS),REDACTED,REDACTED
03.07.2020,ADULT SOCIAL CARE,REDACTED PERSONAL DATA,"1,024.88",PHY LTS 18-64,PAYMENTS TO CLIENTS (DIRECT PAYMENTS),REDACTED,REDACTED
03.07.2020,ADULT SOCIAL CARE,REDACTED PERSONAL DATA,"1,088.80",PHY LTS 18-64,PAYMENTS TO CLIENTS (DIRECT PAYMENTS),REDACTED,REDACTED
03.07.2020,ADULT SOCIAL CARE,REDACTED PERSONAL DATA,400.00,PHY LTS 18-64,PAYMENTS TO CLIENTS (DIRECT PAYMENTS),REDACTED,REDACTED
03.07.2020,ADULT SOCIAL CARE,REDACTED PERSONAL DATA,"2,739.80",PHY LTS 18-64,PAYMENTS TO CLIENTS (DIRECT PAYMENTS),REDACTED,REDACTED
03.07.2020,ADULT SOCIAL CARE,REDACTED PERSONAL DATA,296.96,PHY LTS 18-64,PAYMENTS TO CLIENTS (DIRECT PAYMENTS),REDACTED,REDACTED
03.07.2020,ADULT SOCIAL CARE,REDACTED PERSONAL DATA,848.40,PHY LTS 18-64,PAYMENTS TO CLIENTS (DIRECT PAYMENTS),REDACTED,REDACTED
03.07.2020,ADULT SOCIAL CARE,REDACTED PERSONAL DATA,777.72,PHY LTS 18-64,PAYMENTS TO CLIENTS (DIRECT PAYMENTS),REDACTED,REDACTED
03.07.2020,ADULT SOCIAL CARE,REDACTED PERSONAL DATA,707.00,PHY LTS 18-64,PAYMENTS TO CLIENTS (DIRECT PAYMENTS),REDACTED,REDACTED
03.07.2020,ADULT SOCIAL CARE,REDACTED PERSONAL DATA,933.24,PHY LTS 18-64,PAYMENTS TO CLIENTS (DIRECT PAYMENTS),REDACTED,REDACTED
03.07.2020,ADULT SOCIAL CARE,REDACTED PERSONAL DATA,"2,163.44",PHY LTS 18-64,PAYMENTS TO CLIENTS (DIRECT PAYMENTS),REDACTED,REDACTED
03.07.2020,ADULT SOCIAL CARE,REDACTED PERSONAL DATA,"1,583.68",PHY LTS 18-64,PAYMENTS TO CLIENTS (DIRECT PAYMENTS),REDACTED,REDACTED
03.07.2020,ADULT SOCIAL CARE,REDACTED PERSONAL DATA,751.96,PHY LTS 18-64,PAYMENTS TO CLIENTS (DIRECT PAYMENTS),REDACTED,REDACTED
03.07.2020,ADULT SOCIAL CARE,REDACTED PERSONAL DATA,"1,009.80",PHY LTS 18-64,PAYMENTS TO CLIENTS (DIRECT PAYMENTS),REDACTED,REDACTED
03.07.2020,ADULT SOCIAL CARE,REDACTED PERSONAL DATA,"1,583.68",PHY LTS 18-64,PAYMENTS TO CLIENTS (DIRECT PAYMENTS),REDACTED,REDACTED
03.07.2020,ADULT SOCIAL CARE,REDACTED PERSONAL DATA,"1,199.76",PHY LTS 18-64,PAYMENTS TO CLIENTS (DIRECT PAYMENTS),REDACTED,REDACTED
03.07.2020,ADULT SOCIAL CARE,REDACTED PERSONAL DATA,706.88,PHY LTS 18-64,PAYMENTS TO CLIENTS (DIRECT PAYMENTS),REDACTED,REDACTED
03.07.2020,ADULT SOCIAL CARE,REDACTED PERSONAL DATA,"2,088.48",PHY LTS 18-64,PAYMENTS TO CLIENTS (DIRECT PAYMENTS),REDACTED,REDACTED
03.07.2020,ADULT SOCIAL CARE,REDACTED PERSONAL DATA,791.84,PHY LTS 18-64,PAYMENTS TO CLIENTS (DIRECT PAYMENTS),REDACTED,REDACTED
03.07.2020,ADULT SOCIAL CARE,REDACTED PERSONAL DATA,565.60,PHY LTS 18-64,PAYMENTS TO CLIENTS (DIRECT PAYMENTS),REDACTED,REDACTED
03.07.2020,ADULT SOCIAL CARE,REDACTED PERSONAL DATA,769.44,PHY LTS 18-64,PAYMENTS TO CLIENTS (DIRECT PAYMENTS),REDACTED,REDACTED
03.07.2020,ADULT SOCIAL CARE,REDACTED PERSONAL DATA,981.52,PHY LTS 18-64,PAYMENTS TO CLIENTS (DIRECT PAYMENTS),REDACTED,REDACTED
03.07.2020,ADULT SOCIAL CARE,REDACTED PERSONAL DATA,430.08,PHY LTS 18-64,PAYMENTS TO CLIENTS (DIRECT PAYMENTS),REDACTED,REDACTED
03.07.2020,ADULT SOCIAL CARE,REDACTED PERSONAL DATA,494.92,PHY LTS 18-64,PAYMENTS TO CLIENTS (DIRECT PAYMENTS),REDACTED,REDACTED
03.07.2020,ADULT SOCIAL CARE,REDACTED PERSONAL DATA,868.40,PHY LTS 18-64,PAYMENTS TO CLIENTS (DIRECT PAYMENTS),REDACTED,REDACTED
03.07.2020,ADULT SOCIAL CARE,SWK DISABLEMENT ASSN,516.88,PHY LTS 18-64,SUPPORTED LIVING,2103119125,1000011698
03.07.2020,ADULT SOCIAL CARE,BLACK ELDER GROUP SWK,540.00,PHY LTS 65+,DAYCARE,2103120067,1000067369
03.07.2020,ADULT SOCIAL CARE,SOUTHWARK CYPRIOT DAY CENTRE LTD,288.00,PHY LTS 65+,DAYCARE,2103120157,1000067736
03.07.2020,ADULT SOCIAL CARE,PEOPLEPLUS ILS,-290.40,PHY LTS 65+,DISCRETIONARY FLEXIBLE FEES & INCOME,2103119910,1000061886
03.07.2020,ADULT SOCIAL CARE,PEOPLEPLUS ILS,-279.96,PHY LTS 65+,DISCRETIONARY FLEXIBLE FEES & INCOME,2103120168,1000061886
03.07.2020,ADULT SOCIAL CARE,PEOPLEPLUS ILS,-259.44,PHY LTS 65+,DISCRETIONARY FLEXIBLE FEES & INCOME,2103119655,1000061886
03.07.2020,ADULT SOCIAL CARE,REDACTED PERSONAL DATA,-731.88,PHY LTS 65+,DISCRETIONARY FLEXIBLE FEES & INCOME,REDACTED,REDACTED
03.07.2020,ADULT SOCIAL CARE,LONDON CARE LTD,"299,683.94",PHY LTS 65+,HOMECARE - C&V,5902422576,1000003398
03.07.2020,ADULT SOCIAL CARE,THAMES HOMECARE SERVICE LTD,645.04,PHY LTS 65+,HOMECARE - C&V,2103119070,1000079295
03.07.2020,ADULT SOCIAL CARE,THAMES HOMECARE SERVICE LTD,763.14,PHY LTS 65+,HOMECARE - C&V,2103119023,1000079295
03.07.2020,ADULT SOCIAL CARE,THAMES HOMECARE SERVICE LTD,"1,335.50",PHY LTS 65+,HOMECARE - C&V,2103119038,1000079295
03.07.2020,ADULT SOCIAL CARE,SAGECARE LTD,"206,768.42",PHY LTS 65+,HOMECARE - C&V,5902422572,1000080924
03.07.2020,ADULT SOCIAL CARE,SWK DISABLEMENT ASSN,303.10,PHY LTS 65+,HOMECARE - SPOT,2103119136,1000011698
03.07.2020,ADULT SOCIAL CARE,SWK DISABLEMENT ASSN,346.40,PHY LTS 65+,HOMECARE - SPOT,2103119170,1000011698
03.07.2020,ADULT SOCIAL CARE,SWK DISABLEMENT ASSN,355.06,PHY LTS 65+,HOMECARE - SPOT,2103119174,1000011698
03.07.2020,ADULT SOCIAL CARE,SWK DISABLEMENT ASSN,363.72,PHY LTS 65+,HOMECARE - SPOT,2103119175,1000011698
03.07.2020,ADULT SOCIAL CARE,SWK DISABLEMENT ASSN,381.04,PHY LTS 65+,HOMECARE - SPOT,2103119139,1000011698
03.07.2020,ADULT SOCIAL CARE,SWK DISABLEMENT ASSN,381.04,PHY LTS 65+,HOMECARE - SPOT,2103119183,1000011698
03.07.2020,ADULT SOCIAL CARE,SWK DISABLEMENT ASSN,727.44,PHY LTS 65+,HOMECARE - SPOT,2103119120,1000011698
03.07.2020,ADULT SOCIAL CARE,SWK DISABLEMENT ASSN,"1,160.44",PHY LTS 65+,HOMECARE - SPOT,2103119132,1000011698
03.07.2020,ADULT SOCIAL CARE,SWK DISABLEMENT ASSN,"1,177.76",PHY LTS 65+,HOMECARE - SPOT,2103119121,1000011698
03.07.2020,ADULT SOCIAL CARE,SWK DISABLEMENT ASSN,"1,385.60",PHY LTS 65+,HOMECARE - SPOT,2103119119,1000011698
03.07.2020,ADULT SOCIAL CARE,SWK DISABLEMENT ASSN,"1,506.84",PHY LTS 65+,HOMECARE - SPOT,2103119158,1000011698
03.07.2020,ADULT SOCIAL CARE,SWK DISABLEMENT ASSN,"1,905.20",PHY LTS 65+,HOMECARE - SPOT,2103119109,1000011698
03.07.2020,ADULT SOCIAL CARE,SWK DISABLEMENT ASSN,"2,009.12",PHY LTS 65+,HOMECARE - SPOT,2103119155,1000011698
03.07.2020,ADULT SOCIAL CARE,SWK DISABLEMENT ASSN,"2,424.80",PHY LTS 65+,HOMECARE - SPOT,2103119161,1000011698
03.07.2020,ADULT SOCIAL CARE,SWK DISABLEMENT ASSN,"2,840.48",PHY LTS 65+,HOMECARE - SPOT,2103119181,1000011698
03.07.2020,ADULT SOCIAL CARE,SWK DISABLEMENT ASSN,"3,394.72",PHY LTS 65+,HOMECARE - SPOT,2103119135,1000011698
03.07.2020,ADULT SOCIAL CARE,THAMES HOMECARE SERVICE LTD,254.38,PHY LTS 65+,HOMECARE - SPOT,2103119027,1000079295
03.07.2020,ADULT SOCIAL CARE,THAMES HOMECARE SERVICE LTD,254.38,PHY LTS 65+,HOMECARE - SPOT,2103119073,1000079295
03.07.2020,ADULT SOCIAL CARE,THAMES HOMECARE SERVICE LTD,268.01,PHY LTS 65+,HOMECARE - SPOT,2103119084,1000079295
03.07.2020,ADULT SOCIAL CARE,THAMES HOMECARE SERVICE LTD,272.55,PHY LTS 65+,HOMECARE - SPOT,2103119061,1000079295
03.07.2020,ADULT SOCIAL CARE,THAMES HOMECARE SERVICE LTD,286.18,PHY LTS 65+,HOMECARE - SPOT,2103119045,1000079295
03.07.2020,ADULT SOCIAL CARE,THAMES HOMECARE SERVICE LTD,349.77,PHY LTS 65+,HOMECARE - SPOT,2103119099,1000079295
03.07.2020,ADULT SOCIAL CARE,THAMES HOMECARE SERVICE LTD,413.37,PHY LTS 65+,HOMECARE - SPOT,2103119035,1000079295
03.07.2020,ADULT SOCIAL CARE,THAMES HOMECARE SERVICE LTD,413.37,PHY LTS 65+,HOMECARE - SPOT,2103119091,1000079295
03.07.2020,ADULT SOCIAL CARE,THAMES HOMECARE SERVICE LTD,508.76,PHY LTS 65+,HOMECARE - SPOT,2103119047,1000079295
03.07.2020,ADULT SOCIAL CARE,THAMES HOMECARE SERVICE LTD,572.36,PHY LTS 65+,HOMECARE - SPOT,2103119040,1000079295
03.07.2020,ADULT SOCIAL CARE,THAMES HOMECARE SERVICE LTD,572.36,PHY LTS 65+,HOMECARE - SPOT,2103119049,1000079295
03.07.2020,ADULT SOCIAL CARE,THAMES HOMECARE SERVICE LTD,572.36,PHY LTS 65+,HOMECARE - SPOT,2103119092,1000079295
03.07.2020,ADULT SOCIAL CARE,THAMES HOMECARE SERVICE LTD,576.90,PHY LTS 65+,HOMECARE - SPOT,2103119075,1000079295
03.07.2020,ADULT SOCIAL CARE,THAMES HOMECARE SERVICE LTD,599.61,PHY LTS 65+,HOMECARE - SPOT,2103119032,1000079295
03.07.2020,ADULT SOCIAL CARE,THAMES HOMECARE SERVICE LTD,608.70,PHY LTS 65+,HOMECARE - SPOT,2103119056,1000079295
03.07.2020,ADULT SOCIAL CARE,THAMES HOMECARE SERVICE LTD,635.95,PHY LTS 65+,HOMECARE - SPOT,2103119096,1000079295
03.07.2020,ADULT SOCIAL CARE,THAMES HOMECARE SERVICE LTD,640.49,PHY LTS 65+,HOMECARE - SPOT,2103119043,1000079295
03.07.2020,ADULT SOCIAL CARE,THAMES HOMECARE SERVICE LTD,663.21,PHY LTS 65+,HOMECARE - SPOT,2103119031,1000079295
03.07.2020,ADULT SOCIAL CARE,THAMES HOMECARE SERVICE LTD,699.55,PHY LTS 65+,HOMECARE - SPOT,2103119042,1000079295
03.07.2020,ADULT SOCIAL CARE,THAMES HOMECARE SERVICE LTD,713.17,PHY LTS 65+,HOMECARE - SPOT,2103119085,1000079295
03.07.2020,ADULT SOCIAL CARE,THAMES HOMECARE SERVICE LTD,799.48,PHY LTS 65+,HOMECARE - SPOT,2103119029,1000079295
03.07.2020,ADULT SOCIAL CARE,THAMES HOMECARE SERVICE LTD,853.99,PHY LTS 65+,HOMECARE - SPOT,2103119057,1000079295
03.07.2020,ADULT SOCIAL CARE,THAMES HOMECARE SERVICE LTD,"1,044.78",PHY LTS 65+,HOMECARE - SPOT,2103119068,1000079295
03.07.2020,ADULT SOCIAL CARE,THAMES HOMECARE SERVICE LTD,"1,480.86",PHY LTS 65+,HOMECARE - SPOT,2103119030,1000079295
03.07.2020,ADULT SOCIAL CARE,PEOPLEPLUS ILS,"-1,470.26",PHY LTS 65+,PAYMENTS TO CLIENTS (DIRECT PAYMENTS),2103119654,1000061886
03.07.2020,ADULT SOCIAL CARE,PEOPLEPLUS ILS,-548.34,PHY LTS 65+,PAYMENTS TO CLIENTS (DIRECT PAYMENTS),2103119825,1000061886
03.07.2020,ADULT SOCIAL CARE,PEOPLEPLUS ILS,310.96,PHY LTS 65+,PAYMENTS TO CLIENTS (DIRECT PAYMENTS),2103120028,1000061886
03.07.2020,ADULT SOCIAL CARE,PEOPLEPLUS ILS,311.08,PHY LTS 65+,PAYMENTS TO CLIENTS (DIRECT PAYMENTS),2103119859,1000061886
03.07.2020,ADULT SOCIAL CARE,PEOPLEPLUS ILS,365.00,PHY LTS 65+,PAYMENTS TO CLIENTS (DIRECT PAYMENTS),2103119969,1000061886
03.07.2020,ADULT SOCIAL CARE,PEOPLEPLUS ILS,365.76,PHY LTS 65+,PAYMENTS TO CLIENTS (DIRECT PAYMENTS),2103120116,1000061886
03.07.2020,ADULT SOCIAL CARE,PEOPLEPLUS ILS,421.56,PHY LTS 65+,PAYMENTS TO CLIENTS (DIRECT PAYMENTS),2103120076,1000061886
03.07.2020,ADULT SOCIAL CARE,PEOPLEPLUS ILS,423.52,PHY LTS 65+,PAYMENTS TO CLIENTS (DIRECT PAYMENTS),2103119617,1000061886
03.07.2020,ADULT SOCIAL CARE,PEOPLEPLUS ILS,444.08,PHY LTS 65+,PAYMENTS TO CLIENTS (DIRECT PAYMENTS),2103119500,1000061886
03.07.2020,ADULT SOCIAL CARE,PEOPLEPLUS ILS,456.32,PHY LTS 65+,PAYMENTS TO CLIENTS (DIRECT PAYMENTS),2103120014,1000061886
03.07.2020,ADULT SOCIAL CARE,PEOPLEPLUS ILS,509.04,PHY LTS 65+,PAYMENTS TO CLIENTS (DIRECT PAYMENTS),2103120085,1000061886
03.07.2020,ADULT SOCIAL CARE,PEOPLEPLUS ILS,552.20,PHY LTS 65+,PAYMENTS TO CLIENTS (DIRECT PAYMENTS),2103119464,1000061886
03.07.2020,ADULT SOCIAL CARE,PEOPLEPLUS ILS,573.20,PHY LTS 65+,PAYMENTS TO CLIENTS (DIRECT PAYMENTS),2103119557,1000061886
03.07.2020,ADULT SOCIAL CARE,PEOPLEPLUS ILS,587.32,PHY LTS 65+,PAYMENTS TO CLIENTS (DIRECT PAYMENTS),2103119576,1000061886
03.07.2020,ADULT SOCIAL CARE,PEOPLEPLUS ILS,599.60,PHY LTS 65+,PAYMENTS TO CLIENTS (DIRECT PAYMENTS),2103119471,1000061886
03.07.2020,ADULT SOCIAL CARE,PEOPLEPLUS ILS,622.16,PHY LTS 65+,PAYMENTS TO CLIENTS (DIRECT PAYMENTS),2103119900,1000061886
03.07.2020,ADULT SOCIAL CARE,PEOPLEPLUS ILS,692.60,PHY LTS 65+,PAYMENTS TO CLIENTS (DIRECT PAYMENTS),2103120077,1000061886
03.07.2020,ADULT SOCIAL CARE,PEOPLEPLUS ILS,701.37,PHY LTS 65+,PAYMENTS TO CLIENTS (DIRECT PAYMENTS),2103119509,1000061886
03.07.2020,ADULT SOCIAL CARE,PEOPLEPLUS ILS,707.00,PHY LTS 65+,PAYMENTS TO CLIENTS (DIRECT PAYMENTS),2103119833,1000061886
03.07.2020,ADULT SOCIAL CARE,PEOPLEPLUS ILS,726.88,PHY LTS 65+,PAYMENTS TO CLIENTS (DIRECT PAYMENTS),2103119840,1000061886
03.07.2020,ADULT SOCIAL CARE,PEOPLEPLUS ILS,739.40,PHY LTS 65+,PAYMENTS TO CLIENTS (DIRECT PAYMENTS),2103119453,1000061886
03.07.2020,ADULT SOCIAL CARE,PEOPLEPLUS ILS,741.00,PHY LTS 65+,PAYMENTS TO CLIENTS (DIRECT PAYMENTS),2103119614,1000061886
03.07.2020,ADULT SOCIAL CARE,PEOPLEPLUS ILS,763.56,PHY LTS 65+,PAYMENTS TO CLIENTS (DIRECT PAYMENTS),2103119452,1000061886
03.07.2020,ADULT SOCIAL CARE,PEOPLEPLUS ILS,769.28,PHY LTS 65+,PAYMENTS TO CLIENTS (DIRECT PAYMENTS),2103119872,1000061886
03.07.2020,ADULT SOCIAL CARE,PEOPLEPLUS ILS,777.72,PHY LTS 65+,PAYMENTS TO CLIENTS (DIRECT PAYMENTS),2103120057,1000061886
03.07.2020,ADULT SOCIAL CARE,PEOPLEPLUS ILS,782.92,PHY LTS 65+,PAYMENTS TO CLIENTS (DIRECT PAYMENTS),2103119657,1000061886
03.07.2020,ADULT SOCIAL CARE,PEOPLEPLUS ILS,783.44,PHY LTS 65+,PAYMENTS TO CLIENTS (DIRECT PAYMENTS),2103119731,1000061886
03.07.2020,ADULT SOCIAL CARE,PEOPLEPLUS ILS,791.84,PHY LTS 65+,PAYMENTS TO CLIENTS (DIRECT PAYMENTS),2103119981,1000061886
03.07.2020,ADULT SOCIAL CARE,PEOPLEPLUS ILS,797.56,PHY LTS 65+,PAYMENTS TO CLIENTS (DIRECT PAYMENTS),2103119870,1000061886
03.07.2020,ADULT SOCIAL CARE,PEOPLEPLUS ILS,811.72,PHY LTS 65+,PAYMENTS TO CLIENTS (DIRECT PAYMENTS),2103119928,1000061886
03.07.2020,ADULT SOCIAL CARE,PEOPLEPLUS ILS,811.72,PHY LTS 65+,PAYMENTS TO CLIENTS (DIRECT PAYMENTS),2103120148,1000061886
03.07.2020,ADULT SOCIAL CARE,PEOPLEPLUS ILS,825.84,PHY LTS 65+,PAYMENTS TO CLIENTS (DIRECT PAYMENTS),2103119795,1000061886
03.07.2020,ADULT SOCIAL CARE,PEOPLEPLUS ILS,868.28,PHY LTS 65+,PAYMENTS TO CLIENTS (DIRECT PAYMENTS),2103120161,1000061886
03.07.2020,ADULT SOCIAL CARE,PEOPLEPLUS ILS,914.00,PHY LTS 65+,PAYMENTS TO CLIENTS (DIRECT PAYMENTS),2103120166,1000061886
03.07.2020,ADULT SOCIAL CARE,PEOPLEPLUS ILS,933.24,PHY LTS 65+,PAYMENTS TO CLIENTS (DIRECT PAYMENTS),2103120123,1000061886
03.07.2020,ADULT SOCIAL CARE,PEOPLEPLUS ILS,938.96,PHY LTS 65+,PAYMENTS TO CLIENTS (DIRECT PAYMENTS),2103119875,1000061886
03.07.2020,ADULT SOCIAL CARE,PEOPLEPLUS ILS,"1,037.96",PHY LTS 65+,PAYMENTS TO CLIENTS (DIRECT PAYMENTS),2103119648,1000061886
03.07.2020,ADULT SOCIAL CARE,PEOPLEPLUS ILS,"1,074.52",PHY LTS 65+,PAYMENTS TO CLIENTS (DIRECT PAYMENTS),2103119662,1000061886
03.07.2020,ADULT SOCIAL CARE,PEOPLEPLUS ILS,"1,136.96",PHY LTS 65+,PAYMENTS TO CLIENTS (DIRECT PAYMENTS),2103119972,1000061886
03.07.2020,ADULT SOCIAL CARE,PEOPLEPLUS ILS,"1,159.36",PHY LTS 65+,PAYMENTS TO CLIENTS (DIRECT PAYMENTS),2103120059,1000061886
03.07.2020,ADULT SOCIAL CARE,PEOPLEPLUS ILS,"1,165.20",PHY LTS 65+,PAYMENTS TO CLIENTS (DIRECT PAYMENTS),2103119522,1000061886
03.07.2020,ADULT SOCIAL CARE,PEOPLEPLUS ILS,"1,193.48",PHY LTS 65+,PAYMENTS TO CLIENTS (DIRECT PAYMENTS),2103119625,1000061886
03.07.2020,ADULT SOCIAL CARE,PEOPLEPLUS ILS,"1,207.64",PHY LTS 65+,PAYMENTS TO CLIENTS (DIRECT PAYMENTS),2103119874,1000061886
03.07.2020,ADULT SOCIAL CARE,PEOPLEPLUS ILS,"1,258.48",PHY LTS 65+,PAYMENTS TO CLIENTS (DIRECT PAYMENTS),2103119513,1000061886
03.07.2020,ADULT SOCIAL CARE,PEOPLEPLUS ILS,"1,288.00",PHY LTS 65+,PAYMENTS TO CLIENTS (DIRECT PAYMENTS),2103120104,1000061886
03.07.2020,ADULT SOCIAL CARE,PEOPLEPLUS ILS,"1,343.32",PHY LTS 65+,PAYMENTS TO CLIENTS (DIRECT PAYMENTS),2103119868,1000061886
03.07.2020,ADULT SOCIAL CARE,PEOPLEPLUS ILS,"1,532.84",PHY LTS 65+,PAYMENTS TO CLIENTS (DIRECT PAYMENTS),2103119585,1000061886
03.07.2020,ADULT SOCIAL CARE,PEOPLEPLUS ILS,"1,668.52",PHY LTS 65+,PAYMENTS TO CLIENTS (DIRECT PAYMENTS),2103119863,1000061886
03.07.2020,ADULT SOCIAL CARE,PEOPLEPLUS ILS,"1,675.40",PHY LTS 65+,PAYMENTS TO CLIENTS (DIRECT PAYMENTS),2103119779,1000061886
03.07.2020,ADULT SOCIAL CARE,PEOPLEPLUS ILS,"1,733.92",PHY LTS 65+,PAYMENTS TO CLIENTS (DIRECT PAYMENTS),2103119879,1000061886
03.07.2020,ADULT SOCIAL CARE,PEOPLEPLUS ILS,"1,886.00",PHY LTS 65+,PAYMENTS TO CLIENTS (DIRECT PAYMENTS),2103120037,1000061886
03.07.2020,ADULT SOCIAL CARE,PEOPLEPLUS ILS,"1,999.48",PHY LTS 65+,PAYMENTS TO CLIENTS (DIRECT PAYMENTS),2103120144,1000061886
03.07.2020,ADULT SOCIAL CARE,PEOPLEPLUS ILS,"2,014.48",PHY LTS 65+,PAYMENTS TO CLIENTS (DIRECT PAYMENTS),2103119443,1000061886
03.07.2020,ADULT SOCIAL CARE,PEOPLEPLUS ILS,"2,041.88",PHY LTS 65+,PAYMENTS TO CLIENTS (DIRECT PAYMENTS),2103120096,1000061886
03.07.2020,ADULT SOCIAL CARE,PEOPLEPLUS ILS,"2,201.00",PHY LTS 65+,PAYMENTS TO CLIENTS (DIRECT PAYMENTS),2103119791,1000061886
03.07.2020,ADULT SOCIAL CARE,PEOPLEPLUS ILS,"3,383.60",PHY LTS 65+,PAYMENTS TO CLIENTS (DIRECT PAYMENTS),2103119612,1000061886
03.07.2020,ADULT SOCIAL CARE,FRESH IDEAS & SOLUTIONS SERVICES CIC,890.84,PHY LTS 65+,PAYMENTS TO CLIENTS (DIRECT PAYMENTS),2103120004,1000070832
03.07.2020,ADULT SOCIAL CARE,REDACTED PERSONAL DATA,707.00,PHY LTS 65+,PAYMENTS TO CLIENTS (DIRECT PAYMENTS),REDACTED,REDACTED
03.07.2020,ADULT SOCIAL CARE,REDACTED PERSONAL DATA,494.92,PHY LTS 65+,PAYMENTS TO CLIENTS (DIRECT PAYMENTS),REDACTED,REDACTED
03.07.2020,ADULT SOCIAL CARE,REDACTED PERSONAL DATA,"1,555.40",PHY LTS 65+,PAYMENTS TO CLIENTS (DIRECT PAYMENTS),REDACTED,REDACTED
03.07.2020,ADULT SOCIAL CARE,REDACTED PERSONAL DATA,494.92,PHY LTS 65+,PAYMENTS TO CLIENTS (DIRECT PAYMENTS),REDACTED,REDACTED
03.07.2020,ADULT SOCIAL CARE,REDACTED PERSONAL DATA,791.84,PHY LTS 65+,PAYMENTS TO CLIENTS (DIRECT PAYMENTS),REDACTED,REDACTED
03.07.2020,ADULT SOCIAL CARE,REDACTED PERSONAL DATA,"1,201.92",PHY LTS 65+,PAYMENTS TO CLIENTS (DIRECT PAYMENTS),REDACTED,REDACTED
03.07.2020,ADULT SOCIAL CARE,REDACTED PERSONAL DATA,888.40,PHY LTS 65+,PAYMENTS TO CLIENTS (DIRECT PAYMENTS),REDACTED,REDACTED
03.07.2020,ADULT SOCIAL CARE,REDACTED PERSONAL DATA,"1,498.84",PHY LTS 65+,PAYMENTS TO CLIENTS (DIRECT PAYMENTS),REDACTED,REDACTED
03.07.2020,ADULT SOCIAL CARE,REDACTED PERSONAL DATA,608.04,PHY LTS 65+,PAYMENTS TO CLIENTS (DIRECT PAYMENTS),REDACTED,REDACTED
03.07.2020,ADULT SOCIAL CARE,REDACTED PERSONAL DATA,"2,132.72",PHY LTS 65+,PAYMENTS TO CLIENTS (DIRECT PAYMENTS),REDACTED,REDACTED
03.07.2020,ADULT SOCIAL CARE,REDACTED PERSONAL DATA,"1,357.44",PHY LTS 65+,PAYMENTS TO CLIENTS (DIRECT PAYMENTS),REDACTED,REDACTED
03.07.2020,ADULT SOCIAL CARE,REDACTED PERSONAL DATA,"1,717.00",PHY LTS 65+,PAYMENTS TO CLIENTS (DIRECT PAYMENTS),REDACTED,REDACTED
03.07.2020,ADULT SOCIAL CARE,REDACTED PERSONAL DATA,994.00,PHY LTS 65+,PAYMENTS TO CLIENTS (DIRECT PAYMENTS),REDACTED,REDACTED
03.07.2020,ADULT SOCIAL CARE,REDACTED PERSONAL DATA,868.40,PHY LTS 65+,PAYMENTS TO CLIENTS (DIRECT PAYMENTS),REDACTED,REDACTED
03.07.2020,ADULT SOCIAL CARE,REDACTED PERSONAL DATA,395.92,PHY LTS 65+,PAYMENTS TO CLIENTS (DIRECT PAYMENTS),REDACTED,REDACTED
03.07.2020,ADULT SOCIAL CARE,REDACTED PERSONAL DATA,642.16,PHY LTS 65+,PAYMENTS TO CLIENTS (DIRECT PAYMENTS),REDACTED,REDACTED
03.07.2020,ADULT SOCIAL CARE,REDACTED PERSONAL DATA,883.48,PHY LTS 65+,PAYMENTS TO CLIENTS (DIRECT PAYMENTS),REDACTED,REDACTED
03.07.2020,ADULT SOCIAL CARE,REDACTED PERSONAL DATA,"1,315.04",PHY LTS 65+,PAYMENTS TO CLIENTS (DIRECT PAYMENTS),REDACTED,REDACTED
03.07.2020,ADULT SOCIAL CARE,REDACTED PERSONAL DATA,551.48,PHY LTS 65+,PAYMENTS TO CLIENTS (DIRECT PAYMENTS),REDACTED,REDACTED
03.07.2020,ADULT SOCIAL CARE,REDACTED PERSONAL DATA,"1,264.32",PHY LTS 65+,PAYMENTS TO CLIENTS (DIRECT PAYMENTS),REDACTED,REDACTED
03.07.2020,ADULT SOCIAL CARE,REDACTED PERSONAL DATA,"2,282.40",PHY LTS 65+,PAYMENTS TO CLIENTS (DIRECT PAYMENTS),REDACTED,REDACTED
03.07.2020,ADULT SOCIAL CARE,SWK DISABLEMENT ASSN,458.98,PHY STS 65+,HOMECARE - IC,2103119110,1000011698
03.07.2020,ADULT SOCIAL CARE,LEWISHAM INDO CHINESE COMMUNITY,280.00,SEN LTS 65+,DAYCARE,2103119618,1000076593
03.07.2020,ADULT SOCIAL CARE,THAMES HOMECARE SERVICE LTD,304.35,SEN LTS 65+,HOMECARE - SPOT,2103119077,1000079295
03.07.2020,ADULT SOCIAL CARE,SWK DISABLEMENT ASSN,311.76,SOCIAL ISOLATION,HOMECARE - SPOT,2103119117,1000011698
03.07.2020,ADULT SOCIAL CARE,SWK DISABLEMENT ASSN,"1,229.72",SOCIAL ISOLATION,HOMECARE - SPOT,2103119165,1000011698
03.07.2020,ADULT SOCIAL CARE,PEOPLEPLUS ILS,367.64,SOCIAL ISOLATION,PAYMENTS TO CLIENTS (DIRECT PAYMENTS),2103119445,1000061886
03.07.2020,ADULT SOCIAL CARE,PEOPLEPLUS ILS,475.12,SOCIAL ISOLATION,PAYMENTS TO CLIENTS (DIRECT PAYMENTS),2103119548,1000061886
03.07.2020,ADULT SOCIAL CARE,PEOPLEPLUS ILS,622.16,SOCIAL ISOLATION,PAYMENTS TO CLIENTS (DIRECT PAYMENTS),2103120019,1000061886
03.07.2020,ADULT SOCIAL CARE,PEOPLEPLUS ILS,642.04,SOCIAL ISOLATION,PAYMENTS TO CLIENTS (DIRECT PAYMENTS),2103119652,1000061886
03.07.2020,ADULT SOCIAL CARE,PEOPLEPLUS ILS,992.72,SOCIAL ISOLATION,PAYMENTS TO CLIENTS (DIRECT PAYMENTS),2103119493,1000061886
03.07.2020,ADULT SOCIAL CARE,PEOPLEPLUS ILS,"1,787.36",SOCIAL ISOLATION,PAYMENTS TO CLIENTS (DIRECT PAYMENTS),2103119578,1000061886
03.07.2020,ADULT SOCIAL CARE,PEOPLEPLUS ILS,"2,027.12",SOCIAL ISOLATION,PAYMENTS TO CLIENTS (DIRECT PAYMENTS),2103119756,1000061886
03.07.2020,ADULT SOCIAL CARE,FRESH IDEAS & SOLUTIONS SERVICES CIC,260.24,SOCIAL ISOLATION,PAYMENTS TO CLIENTS (DIRECT PAYMENTS),2103119462,1000070832
03.07.2020,ADULT SOCIAL CARE,REDACTED PERSONAL DATA,614.40,SOCIAL ISOLATION,PAYMENTS TO CLIENTS (DIRECT PAYMENTS),REDACTED,REDACTED
03.07.2020,ADULT SOCIAL CARE,PEOPLEPLUS ILS,250.95,SPEC NEEDS CHILDREN,PAYMENTS TO CLIENTS (DIRECT PAYMENTS),2103119364,1000061886
03.07.2020,ADULT SOCIAL CARE,PEOPLEPLUS ILS,273.68,SPEC NEEDS CHILDREN,PAYMENTS TO CLIENTS (DIRECT PAYMENTS),2103119234,1000061886
03.07.2020,ADULT SOCIAL CARE,PEOPLEPLUS ILS,273.68,SPEC NEEDS CHILDREN,PAYMENTS TO CLIENTS (DIRECT PAYMENTS),2103119345,1000061886
03.07.2020,ADULT SOCIAL CARE,PEOPLEPLUS ILS,"1,849.00",SPEC NEEDS CHILDREN,PAYMENTS TO CLIENTS (DIRECT PAYMENTS),2103119332,1000061886
03.07.2020,ADULT SOCIAL CARE,REDACTED PERSONAL DATA,"4,722.92",SPEC NEEDS CHILDREN,PAYMENTS TO CLIENTS (DIRECT PAYMENTS),REDACTED,REDACTED
03.07.2020,ADULT SOCIAL CARE,REDACTED PERSONAL DATA,"3,662.20",SPEC NEEDS CHILDREN,PAYMENTS TO CLIENTS (DIRECT PAYMENTS),REDACTED,REDACTED
03.07.2020,ADULT SOCIAL CARE,REDACTED PERSONAL DATA,"3,251.00",SPEC NEEDS CHILDREN,PAYMENTS TO CLIENTS (DIRECT PAYMENTS),REDACTED,REDACTED
03.07.2020,ADULT SOCIAL CARE,REDACTED PERSONAL DATA,430.80,SPEC NEEDS CHILDREN,PERSONALISATION PAYMENTS,REDACTED,REDACTED
03.07.2020,ADULT SOCIAL CARE,BUDDI LTD,370.00,SPECIALIST CARE,EQUIPMENT PURCHASE & REPAIR,5902423323,1000067243
03.07.2020,ADULT SOCIAL CARE,BUDDI LTD,370.00,SPECIALIST CARE,EQUIPMENT PURCHASE & REPAIR,5902423336,1000067243
03.07.2020,ADULT SOCIAL CARE,PEOPLEPLUS ILS,"-1,164.40",SPECIALIST CARE,PAYMENTS TO CLIENTS (DIRECT PAYMENTS),2103119227,1000061886
03.07.2020,ADULT SOCIAL CARE,PEOPLEPLUS ILS,253.68,SPECIALIST CARE,PAYMENTS TO CLIENTS (DIRECT PAYMENTS),2103119256,1000061886
03.07.2020,ADULT SOCIAL CARE,PEOPLEPLUS ILS,253.68,SPECIALIST CARE,PAYMENTS TO CLIENTS (DIRECT PAYMENTS),2103119429,1000061886
03.07.2020,ADULT SOCIAL CARE,PEOPLEPLUS ILS,260.24,SPECIALIST CARE,PAYMENTS TO CLIENTS (DIRECT PAYMENTS),2103119218,1000061886
03.07.2020,ADULT SOCIAL CARE,PEOPLEPLUS ILS,260.24,SPECIALIST CARE,PAYMENTS TO CLIENTS (DIRECT PAYMENTS),2103119412,1000061886
03.07.2020,ADULT SOCIAL CARE,PEOPLEPLUS ILS,273.68,SPECIALIST CARE,PAYMENTS TO CLIENTS (DIRECT PAYMENTS),2103119221,1000061886
03.07.2020,ADULT SOCIAL CARE,PEOPLEPLUS ILS,273.68,SPECIALIST CARE,PAYMENTS TO CLIENTS (DIRECT PAYMENTS),2103119223,1000061886
03.07.2020,ADULT SOCIAL CARE,PEOPLEPLUS ILS,273.68,SPECIALIST CARE,PAYMENTS TO CLIENTS (DIRECT PAYMENTS),2103119245,1000061886
03.07.2020,ADULT SOCIAL CARE,PEOPLEPLUS ILS,273.68,SPECIALIST CARE,PAYMENTS TO CLIENTS (DIRECT PAYMENTS),2103119246,1000061886
03.07.2020,ADULT SOCIAL CARE,PEOPLEPLUS ILS,273.68,SPECIALIST CARE,PAYMENTS TO CLIENTS (DIRECT PAYMENTS),2103119273,1000061886
03.07.2020,ADULT SOCIAL CARE,PEOPLEPLUS ILS,273.68,SPECIALIST CARE,PAYMENTS TO CLIENTS (DIRECT PAYMENTS),2103119288,1000061886
03.07.2020,ADULT SOCIAL CARE,PEOPLEPLUS ILS,273.68,SPECIALIST CARE,PAYMENTS TO CLIENTS (DIRECT PAYMENTS),2103119313,1000061886
03.07.2020,ADULT SOCIAL CARE,PEOPLEPLUS ILS,273.68,SPECIALIST CARE,PAYMENTS TO CLIENTS (DIRECT PAYMENTS),2103119327,1000061886
03.07.2020,ADULT SOCIAL CARE,PEOPLEPLUS ILS,273.68,SPECIALIST CARE,PAYMENTS TO CLIENTS (DIRECT PAYMENTS),2103119334,1000061886
03.07.2020,ADULT SOCIAL CARE,PEOPLEPLUS ILS,273.68,SPECIALIST CARE,PAYMENTS TO CLIENTS (DIRECT PAYMENTS),2103119337,1000061886
03.07.2020,ADULT SOCIAL CARE,PEOPLEPLUS ILS,273.68,SPECIALIST CARE,PAYMENTS TO CLIENTS (DIRECT PAYMENTS),2103119341,1000061886
03.07.2020,ADULT SOCIAL CARE,PEOPLEPLUS ILS,273.68,SPECIALIST CARE,PAYMENTS TO CLIENTS (DIRECT PAYMENTS),2103119351,1000061886
03.07.2020,ADULT SOCIAL CARE,PEOPLEPLUS ILS,273.68,SPECIALIST CARE,PAYMENTS TO CLIENTS (DIRECT PAYMENTS),2103119354,1000061886
03.07.2020,ADULT SOCIAL CARE,PEOPLEPLUS ILS,273.68,SPECIALIST CARE,PAYMENTS TO CLIENTS (DIRECT PAYMENTS),2103119362,1000061886
03.07.2020,ADULT SOCIAL CARE,PEOPLEPLUS ILS,273.68,SPECIALIST CARE,PAYMENTS TO CLIENTS (DIRECT PAYMENTS),2103119375,1000061886
03.07.2020,ADULT SOCIAL CARE,PEOPLEPLUS ILS,273.68,SPECIALIST CARE,PAYMENTS TO CLIENTS (DIRECT PAYMENTS),2103119384,1000061886
03.07.2020,ADULT SOCIAL CARE,PEOPLEPLUS ILS,273.68,SPECIALIST CARE,PAYMENTS TO CLIENTS (DIRECT PAYMENTS),2103119385,1000061886
03.07.2020,ADULT SOCIAL CARE,PEOPLEPLUS ILS,273.68,SPECIALIST CARE,PAYMENTS TO CLIENTS (DIRECT PAYMENTS),2103119396,1000061886
03.07.2020,ADULT SOCIAL CARE,PEOPLEPLUS ILS,273.68,SPECIALIST CARE,PAYMENTS TO CLIENTS (DIRECT PAYMENTS),2103119400,1000061886
03.07.2020,ADULT SOCIAL CARE,PEOPLEPLUS ILS,273.68,SPECIALIST CARE,PAYMENTS TO CLIENTS (DIRECT PAYMENTS),2103119413,1000061886
03.07.2020,ADULT SOCIAL CARE,PEOPLEPLUS ILS,273.68,SPECIALIST CARE,PAYMENTS TO CLIENTS (DIRECT PAYMENTS),2103119423,1000061886
03.07.2020,ADULT SOCIAL CARE,PEOPLEPLUS ILS,293.96,SPECIALIST CARE,PAYMENTS TO CLIENTS (DIRECT PAYMENTS),2103119262,1000061886
03.07.2020,ADULT SOCIAL CARE,PEOPLEPLUS ILS,299.60,SPECIALIST CARE,PAYMENTS TO CLIENTS (DIRECT PAYMENTS),2103119272,1000061886
03.07.2020,ADULT SOCIAL CARE,PEOPLEPLUS ILS,321.20,SPECIALIST CARE,PAYMENTS TO CLIENTS (DIRECT PAYMENTS),2103119325,1000061886
03.07.2020,ADULT SOCIAL CARE,PEOPLEPLUS ILS,333.60,SPECIALIST CARE,PAYMENTS TO CLIENTS (DIRECT PAYMENTS),2103119307,1000061886
03.07.2020,ADULT SOCIAL CARE,PEOPLEPLUS ILS,333.60,SPECIALIST CARE,PAYMENTS TO CLIENTS (DIRECT PAYMENTS),2103119310,1000061886
03.07.2020,ADULT SOCIAL CARE,PEOPLEPLUS ILS,333.60,SPECIALIST CARE,PAYMENTS TO CLIENTS (DIRECT PAYMENTS),2103119367,1000061886
03.07.2020,ADULT SOCIAL CARE,PEOPLEPLUS ILS,333.60,SPECIALIST CARE,PAYMENTS TO CLIENTS (DIRECT PAYMENTS),2103119401,1000061886
03.07.2020,ADULT SOCIAL CARE,PEOPLEPLUS ILS,348.60,SPECIALIST CARE,PAYMENTS TO CLIENTS (DIRECT PAYMENTS),2103119299,1000061886
03.07.2020,ADULT SOCIAL CARE,PEOPLEPLUS ILS,348.60,SPECIALIST CARE,PAYMENTS TO CLIENTS (DIRECT PAYMENTS),2103119392,1000061886
03.07.2020,ADULT SOCIAL CARE,PEOPLEPLUS ILS,359.52,SPECIALIST CARE,PAYMENTS TO CLIENTS (DIRECT PAYMENTS),2103119225,1000061886
03.07.2020,ADULT SOCIAL CARE,PEOPLEPLUS ILS,363.56,SPECIALIST CARE,PAYMENTS TO CLIENTS (DIRECT PAYMENTS),2103119406,1000061886
03.07.2020,ADULT SOCIAL CARE,PEOPLEPLUS ILS,393.52,SPECIALIST CARE,PAYMENTS TO CLIENTS (DIRECT PAYMENTS),2103119244,1000061886
03.07.2020,ADULT SOCIAL CARE,PEOPLEPLUS ILS,393.52,SPECIALIST CARE,PAYMENTS TO CLIENTS (DIRECT PAYMENTS),2103119258,1000061886
03.07.2020,ADULT SOCIAL CARE,PEOPLEPLUS ILS,393.52,SPECIALIST CARE,PAYMENTS TO CLIENTS (DIRECT PAYMENTS),2103119264,1000061886
03.07.2020,ADULT SOCIAL CARE,PEOPLEPLUS ILS,393.52,SPECIALIST CARE,PAYMENTS TO CLIENTS (DIRECT PAYMENTS),2103119276,1000061886
03.07.2020,ADULT SOCIAL CARE,PEOPLEPLUS ILS,393.52,SPECIALIST CARE,PAYMENTS TO CLIENTS (DIRECT PAYMENTS),2103119297,1000061886
03.07.2020,ADULT SOCIAL CARE,PEOPLEPLUS ILS,393.52,SPECIALIST CARE,PAYMENTS TO CLIENTS (DIRECT PAYMENTS),2103119340,1000061886
03.07.2020,ADULT SOCIAL CARE,PEOPLEPLUS ILS,393.52,SPECIALIST CARE,PAYMENTS TO CLIENTS (DIRECT PAYMENTS),2103119352,1000061886
03.07.2020,ADULT SOCIAL CARE,PEOPLEPLUS ILS,393.52,SPECIALIST CARE,PAYMENTS TO CLIENTS (DIRECT PAYMENTS),2103119382,1000061886
03.07.2020,ADULT SOCIAL CARE,PEOPLEPLUS ILS,423.48,SPECIALIST CARE,PAYMENTS TO CLIENTS (DIRECT PAYMENTS),2103119259,1000061886
03.07.2020,ADULT SOCIAL CARE,PEOPLEPLUS ILS,453.44,SPECIALIST CARE,PAYMENTS TO CLIENTS (DIRECT PAYMENTS),2103119232,1000061886
03.07.2020,ADULT SOCIAL CARE,PEOPLEPLUS ILS,453.44,SPECIALIST CARE,PAYMENTS TO CLIENTS (DIRECT PAYMENTS),2103119318,1000061886
03.07.2020,ADULT SOCIAL CARE,PEOPLEPLUS ILS,483.40,SPECIALIST CARE,PAYMENTS TO CLIENTS (DIRECT PAYMENTS),2103119409,1000061886
03.07.2020,ADULT SOCIAL CARE,PEOPLEPLUS ILS,486.48,SPECIALIST CARE,PAYMENTS TO CLIENTS (DIRECT PAYMENTS),2103119233,1000061886
03.07.2020,ADULT SOCIAL CARE,PEOPLEPLUS ILS,486.48,SPECIALIST CARE,PAYMENTS TO CLIENTS (DIRECT PAYMENTS),2103119357,1000061886
03.07.2020,ADULT SOCIAL CARE,PEOPLEPLUS ILS,493.36,SPECIALIST CARE,PAYMENTS TO CLIENTS (DIRECT PAYMENTS),2103119416,1000061886
03.07.2020,ADULT SOCIAL CARE,PEOPLEPLUS ILS,498.40,SPECIALIST CARE,PAYMENTS TO CLIENTS (DIRECT PAYMENTS),2103119255,1000061886
03.07.2020,ADULT SOCIAL CARE,PEOPLEPLUS ILS,513.32,SPECIALIST CARE,PAYMENTS TO CLIENTS (DIRECT PAYMENTS),2103119239,1000061886
03.07.2020,ADULT SOCIAL CARE,PEOPLEPLUS ILS,513.36,SPECIALIST CARE,PAYMENTS TO CLIENTS (DIRECT PAYMENTS),2103119274,1000061886
03.07.2020,ADULT SOCIAL CARE,PEOPLEPLUS ILS,513.36,SPECIALIST CARE,PAYMENTS TO CLIENTS (DIRECT PAYMENTS),2103119281,1000061886
03.07.2020,ADULT SOCIAL CARE,PEOPLEPLUS ILS,513.36,SPECIALIST CARE,PAYMENTS TO CLIENTS (DIRECT PAYMENTS),2103119356,1000061886
03.07.2020,ADULT SOCIAL CARE,PEOPLEPLUS ILS,513.36,SPECIALIST CARE,PAYMENTS TO CLIENTS (DIRECT PAYMENTS),2103119371,1000061886
03.07.2020,ADULT SOCIAL CARE,PEOPLEPLUS ILS,513.36,SPECIALIST CARE,PAYMENTS TO CLIENTS (DIRECT PAYMENTS),2103119414,1000061886
03.07.2020,ADULT SOCIAL CARE,PEOPLEPLUS ILS,513.36,SPECIALIST CARE,PAYMENTS TO CLIENTS (DIRECT PAYMENTS),2103119420,1000061886
03.07.2020,ADULT SOCIAL CARE,PEOPLEPLUS ILS,529.07,SPECIALIST CARE,PAYMENTS TO CLIENTS (DIRECT PAYMENTS),2103119240,1000061886
03.07.2020,ADULT SOCIAL CARE,PEOPLEPLUS ILS,573.28,SPECIALIST CARE,PAYMENTS TO CLIENTS (DIRECT PAYMENTS),2103119267,1000061886
03.07.2020,ADULT SOCIAL CARE,PEOPLEPLUS ILS,599.60,SPECIALIST CARE,PAYMENTS TO CLIENTS (DIRECT PAYMENTS),2103119302,1000061886
03.07.2020,ADULT SOCIAL CARE,PEOPLEPLUS ILS,603.28,SPECIALIST CARE,PAYMENTS TO CLIENTS (DIRECT PAYMENTS),2103119224,1000061886
03.07.2020,ADULT SOCIAL CARE,PEOPLEPLUS ILS,618.24,SPECIALIST CARE,PAYMENTS TO CLIENTS (DIRECT PAYMENTS),2103119324,1000061886
03.07.2020,ADULT SOCIAL CARE,PEOPLEPLUS ILS,633.20,SPECIALIST CARE,PAYMENTS TO CLIENTS (DIRECT PAYMENTS),2103119380,1000061886
03.07.2020,ADULT SOCIAL CARE,PEOPLEPLUS ILS,633.20,SPECIALIST CARE,PAYMENTS TO CLIENTS (DIRECT PAYMENTS),2103119388,1000061886
03.07.2020,ADULT SOCIAL CARE,PEOPLEPLUS ILS,656.16,SPECIALIST CARE,PAYMENTS TO CLIENTS (DIRECT PAYMENTS),2103119315,1000061886
03.07.2020,ADULT SOCIAL CARE,PEOPLEPLUS ILS,680.20,SPECIALIST CARE,PAYMENTS TO CLIENTS (DIRECT PAYMENTS),2103119350,1000061886
03.07.2020,ADULT SOCIAL CARE,PEOPLEPLUS ILS,693.20,SPECIALIST CARE,PAYMENTS TO CLIENTS (DIRECT PAYMENTS),2103119411,1000061886
03.07.2020,ADULT SOCIAL CARE,PEOPLEPLUS ILS,715.96,SPECIALIST CARE,PAYMENTS TO CLIENTS (DIRECT PAYMENTS),2103119348,1000061886
03.07.2020,ADULT SOCIAL CARE,PEOPLEPLUS ILS,723.08,SPECIALIST CARE,PAYMENTS TO CLIENTS (DIRECT PAYMENTS),2103119301,1000061886
03.07.2020,ADULT SOCIAL CARE,PEOPLEPLUS ILS,723.08,SPECIALIST CARE,PAYMENTS TO CLIENTS (DIRECT PAYMENTS),2103119309,1000061886
03.07.2020,ADULT SOCIAL CARE,PEOPLEPLUS ILS,723.08,SPECIALIST CARE,PAYMENTS TO CLIENTS (DIRECT PAYMENTS),2103119335,1000061886
03.07.2020,ADULT SOCIAL CARE,PEOPLEPLUS ILS,753.04,SPECIALIST CARE,PAYMENTS TO CLIENTS (DIRECT PAYMENTS),2103119228,1000061886
03.07.2020,ADULT SOCIAL CARE,PEOPLEPLUS ILS,753.04,SPECIALIST CARE,PAYMENTS TO CLIENTS (DIRECT PAYMENTS),2103119366,1000061886
03.07.2020,ADULT SOCIAL CARE,PEOPLEPLUS ILS,768.48,SPECIALIST CARE,PAYMENTS TO CLIENTS (DIRECT PAYMENTS),2103119226,1000061886
03.07.2020,ADULT SOCIAL CARE,PEOPLEPLUS ILS,842.92,SPECIALIST CARE,PAYMENTS TO CLIENTS (DIRECT PAYMENTS),2103119250,1000061886
03.07.2020,ADULT SOCIAL CARE,PEOPLEPLUS ILS,858.88,SPECIALIST CARE,PAYMENTS TO CLIENTS (DIRECT PAYMENTS),2103119231,1000061886
03.07.2020,ADULT SOCIAL CARE,PEOPLEPLUS ILS,895.60,SPECIALIST CARE,PAYMENTS TO CLIENTS (DIRECT PAYMENTS),2103119344,1000061886
03.07.2020,ADULT SOCIAL CARE,PEOPLEPLUS ILS,932.80,SPECIALIST CARE,PAYMENTS TO CLIENTS (DIRECT PAYMENTS),2103119408,1000061886
03.07.2020,ADULT SOCIAL CARE,PEOPLEPLUS ILS,944.80,SPECIALIST CARE,PAYMENTS TO CLIENTS (DIRECT PAYMENTS),2103119428,1000061886
03.07.2020,ADULT SOCIAL CARE,PEOPLEPLUS ILS,967.40,SPECIALIST CARE,PAYMENTS TO CLIENTS (DIRECT PAYMENTS),2103119410,1000061886
03.07.2020,ADULT SOCIAL CARE,PEOPLEPLUS ILS,992.72,SPECIALIST CARE,PAYMENTS TO CLIENTS (DIRECT PAYMENTS),2103119230,1000061886
03.07.2020,ADULT SOCIAL CARE,PEOPLEPLUS ILS,992.72,SPECIALIST CARE,PAYMENTS TO CLIENTS (DIRECT PAYMENTS),2103119275,1000061886
03.07.2020,ADULT SOCIAL CARE,PEOPLEPLUS ILS,"1,112.56",SPECIALIST CARE,PAYMENTS TO CLIENTS (DIRECT PAYMENTS),2103119383,1000061886
03.07.2020,ADULT SOCIAL CARE,PEOPLEPLUS ILS,"1,182.80",SPECIALIST CARE,PAYMENTS TO CLIENTS (DIRECT PAYMENTS),2103119426,1000061886
03.07.2020,ADULT SOCIAL CARE,PEOPLEPLUS ILS,"1,280.43",SPECIALIST CARE,PAYMENTS TO CLIENTS (DIRECT PAYMENTS),2103119251,1000061886
03.07.2020,ADULT SOCIAL CARE,PEOPLEPLUS ILS,"1,326.40",SPECIALIST CARE,PAYMENTS TO CLIENTS (DIRECT PAYMENTS),2103119268,1000061886
03.07.2020,ADULT SOCIAL CARE,PEOPLEPLUS ILS,"1,326.40",SPECIALIST CARE,PAYMENTS TO CLIENTS (DIRECT PAYMENTS),2103119425,1000061886
03.07.2020,ADULT SOCIAL CARE,PEOPLEPLUS ILS,"1,334.00",SPECIALIST CARE,PAYMENTS TO CLIENTS (DIRECT PAYMENTS),2103119308,1000061886
03.07.2020,ADULT SOCIAL CARE,PEOPLEPLUS ILS,"1,350.68",SPECIALIST CARE,PAYMENTS TO CLIENTS (DIRECT PAYMENTS),2103119417,1000061886
03.07.2020,ADULT SOCIAL CARE,PEOPLEPLUS ILS,"1,541.80",SPECIALIST CARE,PAYMENTS TO CLIENTS (DIRECT PAYMENTS),2103119269,1000061886
03.07.2020,ADULT SOCIAL CARE,PEOPLEPLUS ILS,"1,649.52",SPECIALIST CARE,PAYMENTS TO CLIENTS (DIRECT PAYMENTS),2103119343,1000061886
03.07.2020,ADULT SOCIAL CARE,PEOPLEPLUS ILS,"1,696.78",SPECIALIST CARE,PAYMENTS TO CLIENTS (DIRECT PAYMENTS),2103119369,1000061886
03.07.2020,ADULT SOCIAL CARE,PEOPLEPLUS ILS,"1,759.12",SPECIALIST CARE,PAYMENTS TO CLIENTS (DIRECT PAYMENTS),2103119290,1000061886
03.07.2020,ADULT SOCIAL CARE,PEOPLEPLUS ILS,"1,900.80",SPECIALIST CARE,PAYMENTS TO CLIENTS (DIRECT PAYMENTS),2103119404,1000061886
03.07.2020,ADULT SOCIAL CARE,PEOPLEPLUS ILS,"3,244.52",SPECIALIST CARE,PAYMENTS TO CLIENTS (DIRECT PAYMENTS),2103119323,1000061886
03.07.2020,ADULT SOCIAL CARE,PEOPLEPLUS ILS,"5,151.80",SPECIALIST CARE,PAYMENTS TO CLIENTS (DIRECT PAYMENTS),2103119219,1000061886
03.07.2020,ADULT SOCIAL CARE,REDACTED PERSONAL DATA,380.28,SPECIALIST CARE,PAYMENTS TO CLIENTS (DIRECT PAYMENTS),REDACTED,REDACTED
03.07.2020,ADULT SOCIAL CARE,REDACTED PERSONAL DATA,716.00,SPECIALIST CARE,PAYMENTS TO CLIENTS (DIRECT PAYMENTS),REDACTED,REDACTED
03.07.2020,ADULT SOCIAL CARE,REDACTED PERSONAL DATA,"1,137.00",SPECIALIST CARE,PAYMENTS TO CLIENTS (DIRECT PAYMENTS),REDACTED,REDACTED
03.07.2020,ADULT SOCIAL CARE,REDACTED PERSONAL DATA,992.08,SPECIALIST CARE,PAYMENTS TO CLIENTS (DIRECT PAYMENTS),REDACTED,REDACTED
03.07.2020,ADULT SOCIAL CARE,REDACTED PERSONAL DATA,719.04,SPECIALIST CARE,PAYMENTS TO CLIENTS (DIRECT PAYMENTS),REDACTED,REDACTED
03.07.2020,ADULT SOCIAL CARE,REDACTED PERSONAL DATA,"1,814.00",SPECIALIST CARE,PAYMENTS TO CLIENTS (DIRECT PAYMENTS),REDACTED,REDACTED
03.07.2020,ADULT SOCIAL CARE,REDACTED PERSONAL DATA,863.92,SPECIALIST CARE,PAYMENTS TO CLIENTS (DIRECT PAYMENTS),REDACTED,REDACTED
03.07.2020,ADULT SOCIAL CARE,REDACTED PERSONAL DATA,307.20,SPECIALIST CARE,PAYMENTS TO CLIENTS (DIRECT PAYMENTS),REDACTED,REDACTED
03.07.2020,ADULT SOCIAL CARE,REDACTED PERSONAL DATA,618.20,SPECIALIST CARE,PAYMENTS TO CLIENTS (DIRECT PAYMENTS),REDACTED,REDACTED
03.07.2020,ADULT SOCIAL CARE,REDACTED PERSONAL DATA,359.52,SPECIALIST CARE,PAYMENTS TO CLIENTS (DIRECT PAYMENTS),REDACTED,REDACTED
03.07.2020,ADULT SOCIAL CARE,REDACTED PERSONAL DATA,307.20,SPECIALIST CARE,PAYMENTS TO CLIENTS (DIRECT PAYMENTS),REDACTED,REDACTED
03.07.2020,ADULT SOCIAL CARE,REDACTED PERSONAL DATA,579.28,SPECIALIST CARE,PAYMENTS TO CLIENTS (DIRECT PAYMENTS),REDACTED,REDACTED
03.07.2020,ADULT SOCIAL CARE,REDACTED PERSONAL DATA,868.44,SPECIALIST CARE,PAYMENTS TO CLIENTS (DIRECT PAYMENTS),REDACTED,REDACTED
03.07.2020,ADULT SOCIAL CARE,REDACTED PERSONAL DATA,369.56,SPECIALIST CARE,PAYMENTS TO CLIENTS (DIRECT PAYMENTS),REDACTED,REDACTED
03.07.2020,ADULT SOCIAL CARE,REDACTED PERSONAL DATA,"1,696.80",SPECIALIST CARE,PAYMENTS TO CLIENTS (DIRECT PAYMENTS),REDACTED,REDACTED
03.07.2020,ADULT SOCIAL CARE,REDACTED PERSONAL DATA,888.84,SPECIALIST CARE,PAYMENTS TO CLIENTS (DIRECT PAYMENTS),REDACTED,REDACTED
03.07.2020,ADULT SOCIAL CARE,REDACTED PERSONAL DATA,259.68,SPECIALIST CARE,PAYMENTS TO CLIENTS (DIRECT PAYMENTS),REDACTED,REDACTED
03.07.2020,ADULT SOCIAL CARE,REDACTED PERSONAL DATA,349.56,SPECIALIST CARE,PAYMENTS TO CLIENTS (DIRECT PAYMENTS),REDACTED,REDACTED
03.07.2020,ADULT SOCIAL CARE,REDACTED PERSONAL DATA,"1,384.20",SPECIALIST CARE,PAYMENTS TO CLIENTS (DIRECT PAYMENTS),REDACTED,REDACTED
03.07.2020,ADULT SOCIAL CARE,REDACTED PERSONAL DATA,379.52,SPECIALIST CARE,PAYMENTS TO CLIENTS (DIRECT PAYMENTS),REDACTED,REDACTED
03.07.2020,ADULT SOCIAL CARE,REDACTED PERSONAL DATA,404.80,SPECIALIST CARE,PAYMENTS TO CLIENTS (DIRECT PAYMENTS),REDACTED,REDACTED
03.07.2020,ADULT SOCIAL CARE,REDACTED PERSONAL DATA,509.60,SPECIALIST CARE,PAYMENTS TO CLIENTS (DIRECT PAYMENTS),REDACTED,REDACTED
03.07.2020,ADULT SOCIAL CARE,REDACTED PERSONAL DATA,319.60,SPECIALIST CARE,PAYMENTS TO CLIENTS (DIRECT PAYMENTS),REDACTED,REDACTED
03.07.2020,ADULT SOCIAL CARE,REDACTED PERSONAL DATA,459.44,SPECIALIST CARE,PAYMENTS TO CLIENTS (DIRECT PAYMENTS),REDACTED,REDACTED
03.07.2020,ADULT SOCIAL CARE,REDACTED PERSONAL DATA,399.52,SPECIALIST CARE,PAYMENTS TO CLIENTS (DIRECT PAYMENTS),REDACTED,REDACTED
03.07.2020,ADULT SOCIAL CARE,REDACTED PERSONAL DATA,"1,218.40",SPECIALIST CARE,PAYMENTS TO CLIENTS (DIRECT PAYMENTS),REDACTED,REDACTED
03.07.2020,ADULT SOCIAL CARE,REDACTED PERSONAL DATA,881.64,SPECIALIST CARE,PAYMENTS TO CLIENTS (DIRECT PAYMENTS),REDACTED,REDACTED
03.07.2020,ADULT SOCIAL CARE,REDACTED PERSONAL DATA,"1,025.20",SPECIALIST CARE,PAYMENTS TO CLIENTS (DIRECT PAYMENTS),REDACTED,REDACTED
03.07.2020,ADULT SOCIAL CARE,REDACTED PERSONAL DATA,754.04,SPECIALIST CARE,PAYMENTS TO CLIENTS (DIRECT PAYMENTS),REDACTED,REDACTED
03.07.2020,ADULT SOCIAL CARE,REDACTED PERSONAL DATA,958.74,SPECIALIST CARE,PAYMENTS TO CLIENTS (DIRECT PAYMENTS),REDACTED,REDACTED
03.07.2020,ADULT SOCIAL CARE,REDACTED PERSONAL DATA,"1,086.30",SPECIALIST CARE,PAYMENTS TO CLIENTS (DIRECT PAYMENTS),REDACTED,REDACTED
03.07.2020,ADULT SOCIAL CARE,REDACTED PERSONAL DATA,589.24,SPECIALIST CARE,PAYMENTS TO CLIENTS (DIRECT PAYMENTS),REDACTED,REDACTED
03.07.2020,ADULT SOCIAL CARE,REDACTED PERSONAL DATA,514.36,SPECIALIST CARE,PAYMENTS TO CLIENTS (DIRECT PAYMENTS),REDACTED,REDACTED
03.07.2020,ADULT SOCIAL CARE,REDACTED PERSONAL DATA,783.76,SPECIALIST CARE,PAYMENTS TO CLIENTS (DIRECT PAYMENTS),REDACTED,REDACTED
03.07.2020,ADULT SOCIAL CARE,REDACTED PERSONAL DATA,"10,928.00",SPECIALIST CARE,PAYMENTS TO CLIENTS (DIRECT PAYMENTS),REDACTED,REDACTED
03.07.2020,ADULT SOCIAL CARE,REDACTED PERSONAL DATA,522.64,SPECIALIST CARE,PAYMENTS TO CLIENTS (DIRECT PAYMENTS),REDACTED,REDACTED
03.07.2020,ADULT SOCIAL CARE,REDACTED PERSONAL DATA,"1,148.80",SPECIALIST CARE,PAYMENTS TO CLIENTS (DIRECT PAYMENTS),REDACTED,REDACTED
03.07.2020,ADULT SOCIAL CARE,REDACTED PERSONAL DATA,828.92,SPECIALIST CARE,PAYMENTS TO CLIENTS (DIRECT PAYMENTS),REDACTED,REDACTED
03.07.2020,ADULT SOCIAL CARE,REDACTED PERSONAL DATA,858.88,SPECIALIST CARE,PAYMENTS TO CLIENTS (DIRECT PAYMENTS),REDACTED,REDACTED
03.07.2020,ADULT SOCIAL CARE,REDACTED PERSONAL DATA,"1,637.88",SPECIALIST CARE,PAYMENTS TO CLIENTS (DIRECT PAYMENTS),REDACTED,REDACTED
03.07.2020,ADULT SOCIAL CARE,REDACTED PERSONAL DATA,268.32,SPECIALIST CARE,PAYMENTS TO CLIENTS (DIRECT PAYMENTS),REDACTED,REDACTED
03.07.2020,ADULT SOCIAL CARE,REDACTED PERSONAL DATA,539.32,SPECIALIST CARE,PAYMENTS TO CLIENTS (DIRECT PAYMENTS),REDACTED,REDACTED
03.07.2020,ADULT SOCIAL CARE,REDACTED PERSONAL DATA,499.36,SPECIALIST CARE,PAYMENTS TO CLIENTS (DIRECT PAYMENTS),REDACTED,REDACTED
03.07.2020,ADULT SOCIAL CARE,REDACTED PERSONAL DATA,"3,744.28",SPECIALIST CARE,PAYMENTS TO CLIENTS (DIRECT PAYMENTS),REDACTED,REDACTED
03.07.2020,ADULT SOCIAL CARE,REDACTED PERSONAL DATA,"1,076.80",SPECIALIST CARE,PAYMENTS TO CLIENTS (DIRECT PAYMENTS),REDACTED,REDACTED
03.07.2020,ADULT SOCIAL CARE,REDACTED PERSONAL DATA,409.48,SPECIALIST CARE,PAYMENTS TO CLIENTS (DIRECT PAYMENTS),REDACTED,REDACTED
03.07.2020,ADULT SOCIAL CARE,REDACTED PERSONAL DATA,259.68,SPECIALIST CARE,PAYMENTS TO CLIENTS (DIRECT PAYMENTS),REDACTED,REDACTED
03.07.2020,ADULT SOCIAL CARE,REDACTED PERSONAL DATA,307.20,SPECIALIST CARE,PAYMENTS TO CLIENTS (DIRECT PAYMENTS),REDACTED,REDACTED
03.07.2020,ADULT SOCIAL CARE,REDACTED PERSONAL DATA,259.68,SPECIALIST CARE,PAYMENTS TO CLIENTS (DIRECT PAYMENTS),REDACTED,REDACTED
03.07.2020,ADULT SOCIAL CARE,REDACTED PERSONAL DATA,287.20,SPECIALIST CARE,PAYMENTS TO CLIENTS (DIRECT PAYMENTS),REDACTED,REDACTED
03.07.2020,ADULT SOCIAL CARE,REDACTED PERSONAL DATA,379.52,SPECIALIST CARE,PAYMENTS TO CLIENTS (DIRECT PAYMENTS),REDACTED,REDACTED
03.07.2020,ADULT SOCIAL CARE,REDACTED PERSONAL DATA,259.68,SPECIALIST CARE,PAYMENTS TO CLIENTS (DIRECT PAYMENTS),REDACTED,REDACTED
03.07.2020,ADULT SOCIAL CARE,REDACTED PERSONAL DATA,379.52,SPECIALIST CARE,PAYMENTS TO CLIENTS (DIRECT PAYMENTS),REDACTED,REDACTED
03.07.2020,ADULT SOCIAL CARE,REDACTED PERSONAL DATA,499.36,SPECIALIST CARE,PAYMENTS TO CLIENTS (DIRECT PAYMENTS),REDACTED,REDACTED
03.07.2020,ADULT SOCIAL CARE,REDACTED PERSONAL DATA,469.40,SPECIALIST CARE,PAYMENTS TO CLIENTS (DIRECT PAYMENTS),REDACTED,REDACTED
03.07.2020,ADULT SOCIAL CARE,REDACTED PERSONAL DATA,499.36,SPECIALIST CARE,PAYMENTS TO CLIENTS (DIRECT PAYMENTS),REDACTED,REDACTED
03.07.2020,ADULT SOCIAL CARE,REDACTED PERSONAL DATA,259.68,SPECIALIST CARE,PAYMENTS TO CLIENTS (DIRECT PAYMENTS),REDACTED,REDACTED
03.07.2020,ADULT SOCIAL CARE,REDACTED PERSONAL DATA,599.20,SPECIALIST CARE,PAYMENTS TO CLIENTS (DIRECT PAYMENTS),REDACTED,REDACTED
03.07.2020,ADULT SOCIAL CARE,REDACTED PERSONAL DATA,646.20,SPECIALIST CARE,PAYMENTS TO CLIENTS (DIRECT PAYMENTS),REDACTED,REDACTED
03.07.2020,ADULT SOCIAL CARE,REDACTED PERSONAL DATA,771.05,SPECIALIST CARE,PAYMENTS TO CLIENTS (DIRECT PAYMENTS),REDACTED,REDACTED
03.07.2020,ADULT SOCIAL CARE,REDACTED PERSONAL DATA,"1,398.32",SPECIALIST CARE,PAYMENTS TO CLIENTS (DIRECT PAYMENTS),REDACTED,REDACTED
03.07.2020,ADULT SOCIAL CARE,PEOPLEPLUS ILS,273.68,TRANSITIONS 14-18YRS,PAYMENTS TO CLIENTS (DIRECT PAYMENTS),2103119222,1000061886
03.07.2020,ADULT SOCIAL CARE,PEOPLEPLUS ILS,313.60,TRANSITIONS 14-18YRS,PAYMENTS TO CLIENTS (DIRECT PAYMENTS),2103119379,1000061886
03.07.2020,ADULT SOCIAL CARE,PEOPLEPLUS ILS,429.92,TRANSITIONS 14-18YRS,PAYMENTS TO CLIENTS (DIRECT PAYMENTS),2103119390,1000061886
03.07.2020,ADULT SOCIAL CARE,PEOPLEPLUS ILS,544.60,TRANSITIONS 14-18YRS,PAYMENTS TO CLIENTS (DIRECT PAYMENTS),2103119254,1000061886
03.07.2020,ADULT SOCIAL CARE,PEOPLEPLUS ILS,986.44,TRANSITIONS 14-18YRS,PAYMENTS TO CLIENTS (DIRECT PAYMENTS),2103119304,1000061886
03.07.2020,ADULT SOCIAL CARE,PEOPLEPLUS ILS,"1,039.20",TRANSITIONS 14-18YRS,PAYMENTS TO CLIENTS (DIRECT PAYMENTS),2103119316,1000061886
03.07.2020,ADULT SOCIAL CARE,PEOPLEPLUS ILS,"1,591.92",TRANSITIONS 14-18YRS,PAYMENTS TO CLIENTS (DIRECT PAYMENTS),2103119284,1000061886
03.07.2020,ADULT SOCIAL CARE,PEOPLEPLUS ILS,"3,044.08",TRANSITIONS 14-18YRS,PAYMENTS TO CLIENTS (DIRECT PAYMENTS),2103119405,1000061886
03.07.2020,ADULT SOCIAL CARE,REDACTED PERSONAL DATA,718.00,TRANSITIONS 14-18YRS,PAYMENTS TO CLIENTS (DIRECT PAYMENTS),REDACTED,REDACTED
03.07.2020,ADULT SOCIAL CARE,REDACTED PERSONAL DATA,"1,456.00",TRANSITIONS 14-18YRS,PAYMENTS TO CLIENTS (DIRECT PAYMENTS),REDACTED,REDACTED
03.07.2020,ADULT SOCIAL CARE,REDACTED PERSONAL DATA,522.60,TRANSITIONS 14-18YRS,PAYMENTS TO CLIENTS (DIRECT PAYMENTS),REDACTED,REDACTED
03.07.2020,ADULT SOCIAL CARE,REDACTED PERSONAL DATA,917.52,TRANSITIONS 14-18YRS,PAYMENTS TO CLIENTS (DIRECT PAYMENTS),REDACTED,REDACTED
03.07.2020,ADULT SOCIAL CARE,REDACTED PERSONAL DATA,648.96,TRANSITIONS 14-18YRS,PAYMENTS TO CLIENTS (DIRECT PAYMENTS),REDACTED,REDACTED
03.07.2020,ADULT SOCIAL CARE,REDACTED PERSONAL DATA,"3,302.80",TRANSITIONS 14-18YRS,PAYMENTS TO CLIENTS (DIRECT PAYMENTS),REDACTED,REDACTED
03.07.2020,ADULT SOCIAL CARE,REDACTED PERSONAL DATA,958.80,TRANSITIONS 14-18YRS,PAYMENTS TO CLIENTS (DIRECT PAYMENTS),REDACTED,REDACTED
03.07.2020,ADULT SOCIAL CARE,REDACTED PERSONAL DATA,259.68,TRANSITIONS 14-18YRS,PAYMENTS TO CLIENTS (DIRECT PAYMENTS),REDACTED,REDACTED
03.07.2020,ADULT SOCIAL CARE,REDACTED PERSONAL DATA,269.60,TRANSITIONS 14-18YRS,PAYMENTS TO CLIENTS (DIRECT PAYMENTS),REDACTED,REDACTED
03.07.2020,ADULT SOCIAL CARE,REDACTED PERSONAL DATA,529.04,TRANSITIONS 14-18YRS,PAYMENTS TO CLIENTS (DIRECT PAYMENTS),REDACTED,REDACTED
03.07.2020,ADULT SOCIAL CARE,REDACTED PERSONAL DATA,619.20,TRANSITIONS 14-18YRS,PAYMENTS TO CLIENTS (DIRECT PAYMENTS),REDACTED,REDACTED
03.07.2020,ASSET MANAGEMENT,LOWER MEAD LTD,"2,875.00",COMMERCIAL (QS),PROFESSIONAL FEES,5902423287,1000082508
03.07.2020,ASSET MANAGEMENT,LOWER MEAD LTD,"2,875.00",COMMERCIAL (QS),PROFESSIONAL FEES,5902423290,1000082508
03.07.2020,ASSET MANAGEMENT,SJS LEGAL,"4,000.00",DISREPAIR,LEGAL FEES & COURT COSTS,5902423387,1000082655
03.07.2020,C&AS,MAGPIE LIMITED,"9,506.00",COVID 19 SOCIAL CARE COSTS,EXTERNAL AGENCIES AND BODIES,6101940994,CHAPS PAYMENT
03.07.2020,CENTRAL FUNCTIONS,KENT COUNTY COUNCIL - LASER,"41,335.16",HEATING ACCOUNT,ELECTRICITY,5902422993,1000012926
03.07.2020,CENTRAL FUNCTIONS,KENT COUNTY COUNCIL - LASER,"57,378.20",HEATING ACCOUNT,ELECTRICITY,5902422993,1000012926
03.07.2020,CENTRAL FUNCTIONS,KENT COUNTY COUNCIL - LASER,"193,622.34",HEATING ACCOUNT,GAS,5902422995,1000012926
03.07.2020,CENTRAL FUNCTIONS,KENT COUNTY COUNCIL - LASER,"453,764.03",HEATING ACCOUNT,GAS,5902422995,1000012926
03.07.2020,CENTRAL FUNCTIONS,BCS (ELECTRICAL & BUILDING SERVICES LTD),"2,931.65",LEDBURY ESTATE,MISCELLANEOUS EXPENSES,5902423391,1000062321
03.07.2020,CENTRAL FUNCTIONS,BCS (ELECTRICAL & BUILDING SERVICES LTD),"3,507.64",LEDBURY ESTATE,MISCELLANEOUS EXPENSES,5902423382,1000062321
03.07.2020,CENTRAL FUNCTIONS,BCS (ELECTRICAL & BUILDING SERVICES LTD),"5,191.07",LEDBURY ESTATE,MISCELLANEOUS EXPENSES,5902423389,1000062321
03.07.2020,CENTRAL FUNCTIONS,ALLPAY LTD,696.75,SERVICE LEVEL AGREEMENTS,BANK CHARGES,5902423335,1000043001
03.07.2020,CENTRAL FUNCTIONS,ALLPAY LTD,"7,267.09",SERVICE LEVEL AGREEMENTS,BANK CHARGES,5902423338,1000043001
03.07.2020,CHIEF EXECUTIVE,LIVESEY EXCHANGE,695.00,CAPITAL PS (REGEN),CONSTRUCTION,5902423066,1000082440
03.07.2020,CHIEF EXECUTIVE,LIVESEY EXCHANGE,"2,525.00",CAPITAL PS (REGEN),CONSTRUCTION,5902423066,1000082440
03.07.2020,CHIEF EXECUTIVE,POTTER RAPER LTD,"2,889.28",CAPITAL PS (REGEN),CONSTRUCTION FEES,5902423232,1009369
03.07.2020,CHIEF EXECUTIVE,PURCELL ARCHITECTURE LTD,"2,400.00",CAPITAL PS (REGEN),CONSTRUCTION FEES  - EXTERNAL,5902422485,1000082955
03.07.2020,CHIEF EXECUTIVE,LAYLA CURTIS,"1,000.00",CAPITAL PS (REGEN),CONSTRUCTION FEES  - EXTERNAL,5902423334,1000084179
03.07.2020,CHIEF EXECUTIVE,PROMISSION LTD,"1,125.00",CAPITAL PS (REGEN),LAND & BUILDINGS ACQUISITION FEES,5902422631,1000081774
03.07.2020,CHILDREN AND ADULT,DAVID MILES & PARTNERS LTD,"1,450.00",CAPITAL PS (SOC SERV),CONSTRUCTION MAIN CONTRACT,5902423394,1000001119
03.07.2020,CHILDREN'S SERVICES,ACADEMY21 LTD,"4,366.50",ALTERNATIVE PROVISION,EXTERNAL AGENCIES AND BODIES,5902423377,1000083781
03.07.2020,CHILDREN'S SERVICES,NPOWER LTD,667.16,AYLESBURY EARLY YEARS CENTRE,ELECTRICITY,5902423207,1000078994
03.07.2020,CHILDREN'S SERVICES,CASTLE WATER LTD,420.83,AYLESBURY EARLY YEARS CENTRE,WATER,5902423306,1000078867
03.07.2020,CHILDREN'S SERVICES,CAROL NUDDS,300.00,CARE SERVICES 0-15,OTHER PAYMENTS FOR CLIENTS,5902423322,1000076989
03.07.2020,CHILDREN'S SERVICES,ORANGE GROVE FOSTERCARE LTD,"3,630.60",FRIENDS & FAMILY FOSTERING,EXTERNAL AGENCIES AND BODIES,2103119004,1000078716
03.07.2020,CHILDREN'S SERVICES,LIGHTHOUSE FOSTERING LTD,"5,580.86",FRIENDS & FAMILY FOSTERING,EXTERNAL AGENCIES AND BODIES,2103119003,1000080372
03.07.2020,CHILDREN'S SERVICES,PILGRIMS CORNER LIMITED,"2,426.41",FRIENDS & FAMILY FOSTERING,EXTERNAL AGENCIES AND BODIES,2103119002,1000084708
03.07.2020,CHILDREN'S SERVICES,REDACTED PERSONAL DATA,848.40,JOINT FUNDED ADULT CARE PACKAGES,PAYMENTS TO CLIENTS (DIRECT PAYMENTS),REDACTED,REDACTED
03.07.2020,CHILDREN'S SERVICES,HOLIBROOK HOUSE LTD,"23,507.14",RESIDENTIAL,RESIDENTIAL CARE,2103119010,1000067873
03.07.2020,CHILDREN'S SERVICES,RESTORATION CARE & SERVICES LTD,"16,538.57",RESIDENTIAL,RESIDENTIAL CARE,2103119007,1000081085
03.07.2020,CHILDREN'S SERVICES,RESTORATION CARE & SERVICES LTD,"16,538.57",RESIDENTIAL,RESIDENTIAL CARE,2103119008,1000081085
03.07.2020,CHILDREN'S SERVICES,RESTORATION CARE & SERVICES LTD,"17,089.86",RESIDENTIAL,RESIDENTIAL CARE,2103119009,1000081085
03.07.2020,CHILDREN'S SERVICES,MP HABILITATION SERVICES LTD,"1,205.00",SCH TRANS - CONTRACT COST,OTHER PAYMENTS FOR CLIENTS,5902423312,1000082223
03.07.2020,CHILDREN'S SERVICES,MP HABILITATION SERVICES LTD,"2,189.00",SCH TRANS - CONTRACT COST,OTHER PAYMENTS FOR CLIENTS,5902423313,1000082223
03.07.2020,CHILDREN'S SERVICES,THE SALVATION ARMY,"1,143.59",SEMI INDEPENDENT CARE LEAVERS,EXTERNAL AGENCIES AND BODIES,2103119020,1000016253
03.07.2020,CHILDREN'S SERVICES,METROPOLITAN SUPPORT TRUST,"2,154.56",SEMI INDEPENDENT CARE LEAVERS,EXTERNAL AGENCIES AND BODIES,2103119014,1000047547
03.07.2020,CHILDREN'S SERVICES,PURPLE PEBBLES(CHILD CARE) SERVICES,-866.67,SEMI INDEPENDENT CARE LEAVERS,EXTERNAL AGENCIES AND BODIES,2103119192,1000070705
03.07.2020,CHILDREN'S SERVICES,PURPLE PEBBLES(CHILD CARE) SERVICES,642.86,SEMI INDEPENDENT CARE LEAVERS,EXTERNAL AGENCIES AND BODIES,2103119199,1000070705
03.07.2020,CHILDREN'S SERVICES,PURPLE PEBBLES(CHILD CARE) SERVICES,"1,000.00",SEMI INDEPENDENT CARE LEAVERS,EXTERNAL AGENCIES AND BODIES,2103119217,1000070705
03.07.2020,CHILDREN'S SERVICES,PURPLE PEBBLES(CHILD CARE) SERVICES,"1,607.14",SEMI INDEPENDENT CARE LEAVERS,EXTERNAL AGENCIES AND BODIES,2103119196,1000070705
03.07.2020,CHILDREN'S SERVICES,PURPLE PEBBLES(CHILD CARE) SERVICES,"1,650.00",SEMI INDEPENDENT CARE LEAVERS,EXTERNAL AGENCIES AND BODIES,2103119211,1000070705
03.07.2020,CHILDREN'S SERVICES,PURPLE PEBBLES(CHILD CARE) SERVICES,"1,660.71",SEMI INDEPENDENT CARE LEAVERS,EXTERNAL AGENCIES AND BODIES,2103119206,1000070705
03.07.2020,CHILDREN'S SERVICES,PURPLE PEBBLES(CHILD CARE) SERVICES,"1,838.57",SEMI INDEPENDENT CARE LEAVERS,EXTERNAL AGENCIES AND BODIES,2103119202,1000070705
03.07.2020,CHILDREN'S SERVICES,PURPLE PEBBLES(CHILD CARE) SERVICES,"1,928.57",SEMI INDEPENDENT CARE LEAVERS,EXTERNAL AGENCIES AND BODIES,2103119190,1000070705
03.07.2020,CHILDREN'S SERVICES,PURPLE PEBBLES(CHILD CARE) SERVICES,"1,928.57",SEMI INDEPENDENT CARE LEAVERS,EXTERNAL AGENCIES AND BODIES,2103119194,1000070705
03.07.2020,CHILDREN'S SERVICES,PURPLE PEBBLES(CHILD CARE) SERVICES,"1,928.57",SEMI INDEPENDENT CARE LEAVERS,EXTERNAL AGENCIES AND BODIES,2103119204,1000070705
03.07.2020,CHILDREN'S SERVICES,PURPLE PEBBLES(CHILD CARE) SERVICES,"1,982.14",SEMI INDEPENDENT CARE LEAVERS,EXTERNAL AGENCIES AND BODIES,2103119210,1000070705
03.07.2020,CHILDREN'S SERVICES,PURPLE PEBBLES(CHILD CARE) SERVICES,"2,035.71",SEMI INDEPENDENT CARE LEAVERS,EXTERNAL AGENCIES AND BODIES,2103119212,1000070705
03.07.2020,CHILDREN'S SERVICES,PURPLE PEBBLES(CHILD CARE) SERVICES,"2,400.00",SEMI INDEPENDENT CARE LEAVERS,EXTERNAL AGENCIES AND BODIES,2103119203,1000070705
03.07.2020,CHILDREN'S SERVICES,HEARTWOOD OUTREACH SERVICES LTD,"1,826.70",SEMI INDEPENDENT CARE LEAVERS,EXTERNAL AGENCIES AND BODIES,2103119016,1000075021
03.07.2020,CHILDREN'S SERVICES,FAMILY FOSTERING LTD,"1,714.20",SEMI INDEPENDENT CARE LEAVERS,EXTERNAL AGENCIES AND BODIES,2103119015,1000075179
03.07.2020,CHILDREN'S SERVICES,HARVEST CARE GROUP LTD,"4,125.00",SEMI INDEPENDENT CARE LEAVERS,EXTERNAL AGENCIES AND BODIES,2103119022,1000079059
03.07.2020,CHILDREN'S SERVICES,HARVEST CARE GROUP LTD,"4,392.60",SEMI INDEPENDENT CARE LEAVERS,EXTERNAL AGENCIES AND BODIES,2103119021,1000079059
03.07.2020,CHILDREN'S SERVICES,HARVEST CARE GROUP LTD,"3,642.60",SEMI INDEPENDENT LAC,EXTERNAL AGENCIES AND BODIES,2103119011,1000079059
03.07.2020,CHILDREN'S SERVICES,HARVEST CARE GROUP LTD,"19,247.10",SEMI INDEPENDENT LAC,EXTERNAL AGENCIES AND BODIES,2103119012,1000079059
03.07.2020,CHILDREN'S SERVICES,SPA EDUCATION TRUST,808.13,SEN - ACADEMY AND FREE SCHOOLS,STATEMENTED FEES,2103120265,1000081600
03.07.2020,CHILDREN'S SERVICES,CARBONE CLINIC UK LTD,252.00,SEN - AEP,STATEMENTED FEES,2103120246,1000080937
03.07.2020,CHILDREN'S SERVICES,ASPIRE JC LTD,"4,200.00",SEN - AEP,STATEMENTED FEES,2103120270,1000083919
03.07.2020,CHILDREN'S SERVICES,ROEHAMPTON LODGE PRIORY,807.00,SEN - INDEPENDENT,STATEMENTED FEES,2103120259,1000076122
03.07.2020,CHILDREN'S SERVICES,PULSE HEALTHCARE LTD,970.20,SEN - OTHER,STATEMENTED FEES,2103120245,1000035063
03.07.2020,CHILDREN'S SERVICES,PULSE HEALTHCARE LTD,"1,001.00",SEN - OTHER,STATEMENTED FEES,2103120243,1000035063
03.07.2020,CHILDREN'S SERVICES,PULSE HEALTHCARE LTD,"1,001.00",SEN - OTHER,STATEMENTED FEES,2103120244,1000035063
03.07.2020,CHILDREN'S SERVICES,FLEET TUTORS,"2,108.00",SEN - OTHER,STATEMENTED FEES,2103120231,1000044820
03.07.2020,CHILDREN'S SERVICES,FLEET TUTORS,"2,108.00",SEN - OTHER,STATEMENTED FEES,2103120232,1000044820
03.07.2020,CHILDREN'S SERVICES,FLEET TUTORS,"2,108.00",SEN - OTHER,STATEMENTED FEES,2103120233,1000044820
03.07.2020,CHILDREN'S SERVICES,FLEET TUTORS,"2,108.00",SEN - OTHER,STATEMENTED FEES,2103120234,1000044820
03.07.2020,CHILDREN'S SERVICES,FLEET TUTORS,"4,216.00",SEN - OTHER,STATEMENTED FEES,2103120230,1000044820
03.07.2020,CHILDREN'S SERVICES,VIBE TEACHER RECRUITMENT LTD,"1,500.00",SEN - OTHER,STATEMENTED FEES,2103120228,1000081423
03.07.2020,CHILDREN'S SERVICES,VIBE TEACHER RECRUITMENT LTD,"2,100.00",SEN - OTHER,STATEMENTED FEES,2103120227,1000081423
03.07.2020,CHILDREN'S SERVICES,ADVANCEMENTS ABA LTD,400.00,SEN - OTHER,STATEMENTED FEES,2103120252,1000081719
03.07.2020,CHILDREN'S SERVICES,ADVANCEMENTS ABA LTD,400.00,SEN - OTHER,STATEMENTED FEES,2103120258,1000081719
03.07.2020,CHILDREN'S SERVICES,ADVANCEMENTS ABA LTD,500.00,SEN - OTHER,STATEMENTED FEES,2103120251,1000081719
03.07.2020,CHILDREN'S SERVICES,ADVANCEMENTS ABA LTD,800.00,SEN - OTHER,STATEMENTED FEES,2103120257,1000081719
03.07.2020,CHILDREN'S SERVICES,ADVANCEMENTS ABA LTD,"1,125.00",SEN - OTHER,STATEMENTED FEES,2103120256,1000081719
03.07.2020,CHILDREN'S SERVICES,ADVANCEMENTS ABA LTD,"1,200.00",SEN - OTHER,STATEMENTED FEES,2103120253,1000081719
03.07.2020,CHILDREN'S SERVICES,PROSPERO RECRUITMENT LTD,624.00,SEN - OTHER,STATEMENTED FEES,2103120247,1000082492
03.07.2020,CHILDREN'S SERVICES,REDACTED PERSONAL DATA,500.00,SEN - OTHER,STATEMENTED FEES,REDACTED,REDACTED
03.07.2020,CHILDREN'S SERVICES,REDACTED PERSONAL DATA,500.00,SEN - OTHER,STATEMENTED FEES,REDACTED,REDACTED
03.07.2020,CHILDREN'S SERVICES,REDACTED PERSONAL DATA,500.00,SEN - OTHER,STATEMENTED FEES,REDACTED,REDACTED
03.07.2020,CHILDREN'S SERVICES,BEORMUND PRIMARY SCHOOL,"2,300.00",SEN - OTHER SCHOOLS,STATEMENTED FEES,2103120268,5001000008
03.07.2020,CHILDREN'S SERVICES,BEORMUND PRIMARY SCHOOL,"2,300.00",SEN - OTHER SCHOOLS,STATEMENTED FEES,2103120269,5001000008
03.07.2020,CHILDREN'S SERVICES,BEORMUND PRIMARY SCHOOL,"4,000.00",SEN - OTHER SCHOOLS,STATEMENTED FEES,2103120266,5001000008
03.07.2020,CHILDREN'S SERVICES,BEORMUND PRIMARY SCHOOL,"8,000.00",SEN - OTHER SCHOOLS,STATEMENTED FEES,2103120267,5001000008
03.07.2020,CHILDREN'S SERVICES,TUKE SCHOOL,"4,000.00",SEN - OTHER SPECIAL,STATEMENTED FEES,2103120250,5001000097
03.07.2020,CHILDREN'S SERVICES,TUKE SCHOOL,"4,216.71",SEN - OTHER SPECIAL,STATEMENTED FEES,2103120249,5001000097
03.07.2020,CHILDREN'S SERVICES,TUKE SCHOOL,"8,498.29",SEN - OTHER SPECIAL,STATEMENTED FEES,2103120248,5001000097
03.07.2020,CHILDREN'S SERVICES,PECULIAR CARE HOMES LTD,"4,487.75",SEN- NON MAINTAINED SCHOOLS,STATEMENTED FEES,2103120229,1000076991
03.07.2020,CHILDREN'S SERVICES,BOLEYN TRUST TEACHING SCHOOL ALLIANCE,"2,625.00",SEND CAPITAL FUND PAYMENTS,CONSULTANTS SERVICES,5902423296,1000084613
03.07.2020,CHILDREN'S SERVICES,ARC COMMUNITY TRUSTEES,650.00,SPECIAL GUARDIANSHIP,EXTERNAL AGENCIES AND BODIES,5902423337,1000046206
03.07.2020,CHILDREN'S SERVICES,THE SALVATION ARMY,868.27,UASC CARE LEAVERS,EXTERNAL AGENCIES AND BODIES,2103119013,1000016253
03.07.2020,CHILDREN'S SERVICES,THE SALVATION ARMY,"1,105.87",UASC CARE LEAVERS,EXTERNAL AGENCIES AND BODIES,2103119019,1000016253
03.07.2020,CHILDREN'S SERVICES,THE SALVATION ARMY,"1,197.62",UASC CARE LEAVERS,EXTERNAL AGENCIES AND BODIES,2103119018,1000016253
03.07.2020,CHILDREN'S SERVICES,THE SALVATION ARMY,"2,128.65",UASC CARE LEAVERS,EXTERNAL AGENCIES AND BODIES,2103119017,1000016253
03.07.2020,CHILDREN'S SERVICES,PURPLE PEBBLES(CHILD CARE) SERVICES,-866.67,UASC CARE LEAVERS,EXTERNAL AGENCIES AND BODIES,2103119207,1000070705
03.07.2020,CHILDREN'S SERVICES,PURPLE PEBBLES(CHILD CARE) SERVICES,-697.75,UASC CARE LEAVERS,EXTERNAL AGENCIES AND BODIES,2103119213,1000070705
03.07.2020,CHILDREN'S SERVICES,PURPLE PEBBLES(CHILD CARE) SERVICES,280.00,UASC CARE LEAVERS,EXTERNAL AGENCIES AND BODIES,2103119201,1000070705
03.07.2020,CHILDREN'S SERVICES,PURPLE PEBBLES(CHILD CARE) SERVICES,"1,542.86",UASC CARE LEAVERS,EXTERNAL AGENCIES AND BODIES,2103119200,1000070705
03.07.2020,CHILDREN'S SERVICES,PURPLE PEBBLES(CHILD CARE) SERVICES,"1,564.29",UASC CARE LEAVERS,EXTERNAL AGENCIES AND BODIES,2103119195,1000070705
03.07.2020,CHILDREN'S SERVICES,PURPLE PEBBLES(CHILD CARE) SERVICES,"1,607.14",UASC CARE LEAVERS,EXTERNAL AGENCIES AND BODIES,2103119215,1000070705
03.07.2020,CHILDREN'S SERVICES,PURPLE PEBBLES(CHILD CARE) SERVICES,"1,692.86",UASC CARE LEAVERS,EXTERNAL AGENCIES AND BODIES,2103119191,1000070705
03.07.2020,CHILDREN'S SERVICES,PURPLE PEBBLES(CHILD CARE) SERVICES,"1,692.86",UASC CARE LEAVERS,EXTERNAL AGENCIES AND BODIES,2103119209,1000070705
03.07.2020,CHILDREN'S SERVICES,PURPLE PEBBLES(CHILD CARE) SERVICES,"1,714.29",UASC CARE LEAVERS,EXTERNAL AGENCIES AND BODIES,2103119198,1000070705
03.07.2020,CHILDREN'S SERVICES,PURPLE PEBBLES(CHILD CARE) SERVICES,"1,714.29",UASC CARE LEAVERS,EXTERNAL AGENCIES AND BODIES,2103119214,1000070705
03.07.2020,CHILDREN'S SERVICES,PURPLE PEBBLES(CHILD CARE) SERVICES,"1,757.14",UASC CARE LEAVERS,EXTERNAL AGENCIES AND BODIES,2103119197,1000070705
03.07.2020,CHILDREN'S SERVICES,PURPLE PEBBLES(CHILD CARE) SERVICES,"1,821.43",UASC CARE LEAVERS,EXTERNAL AGENCIES AND BODIES,2103119193,1000070705
03.07.2020,CHILDREN'S SERVICES,PURPLE PEBBLES(CHILD CARE) SERVICES,"2,025.00",UASC CARE LEAVERS,EXTERNAL AGENCIES AND BODIES,2103119205,1000070705
03.07.2020,CHILDREN'S SERVICES,PURPLE PEBBLES(CHILD CARE) SERVICES,280.00,UASC CARE LEAVERS,OTHER PAYMENTS FOR CLIENTS,2103119216,1000070705
03.07.2020,CHILDREN'S SERVICES,FUTURE FOUNDATIONS LTD,305.00,UASC LAC,EXTERNAL AGENCIES AND BODIES,2103119188,1000063272
03.07.2020,CHILDREN'S SERVICES,PURPLE PEBBLES(CHILD CARE) SERVICES,"1,917.86",UASC LAC,EXTERNAL AGENCIES AND BODIES,2103119187,1000070705
03.07.2020,CHILDREN'S SERVICES,PURPLE PEBBLES(CHILD CARE) SERVICES,"1,928.57",UASC LAC,EXTERNAL AGENCIES AND BODIES,2103119185,1000070705
03.07.2020,CHILDREN'S SERVICES,PURPLE PEBBLES(CHILD CARE) SERVICES,"1,928.57",UASC LAC,EXTERNAL AGENCIES AND BODIES,2103119186,1000070705
03.07.2020,COMMUNITIES,APPLEGARTH HOUSE COOPERATIVE LTD,"19,809.25",APPLEGARTH HOUSE CO-OP,M&M ALLOWANCE CO-OPS,5902423356,1296074
03.07.2020,COMMUNITIES,313Y LTD,575.00,C19 COMMUNITY HUB,PRINTING,5902422494,1000078584
03.07.2020,COMMUNITIES,SOUTHWARK CITIZENS ADVICE,"165,000.00",LEGAL GRANTS,EXTERNAL AGENCIES AND BODIES,5902423366,1874379
03.07.2020,COMMUNITIES,SOUTHWARK LAW CENTRE,"84,000.00",LEGAL GRANTS,EXTERNAL AGENCIES AND BODIES,5902423376,1981325
03.07.2020,COMMUNITIES,THAMES HOMECARE SERVICE LTD,286.18,NO RECOURSE TO PUBLIC FUNDS,HOMECARE - C&V,2103119065,1000079295
03.07.2020,COMMUNITIES,POSAPA LTD,"4,500.00",SAFER SOUTHWARK PARTNERSHIP ADMIN,CONSULTANTS SERVICES,5902423266,1000083060
03.07.2020,COMMUNITIES,POSAPA LTD,"9,000.00",SAFER SOUTHWARK PARTNERSHIP ADMIN,CONSULTANTS SERVICES,5902423267,1000083060
03.07.2020,COMMUNITIES,ACTIVE COMMUNITIES NETWORK LTD,"3,600.00",SOUTHWARK ANTI VIOLENCE UNIT,GRANTS,5902423256,1000057408
03.07.2020,COMMUNITIES,ELEVATED MINDS CIC,"2,200.00",SOUTHWARK ANTI VIOLENCE UNIT,GRANTS,5902423259,1000083956
03.07.2020,COMMUNITIES,DRUGLINK LTD,500.00,TIER 4 SERVICES,OTHER CONTRACTORS,5902422925,1000050942
03.07.2020,COMMUNITIES,TWO TOWERS HOUSING CO-OP LTD,"51,206.00",TWO TOWERS,M&M ALLOWANCE CO-OPS,5902423401,1000006843
03.07.2020,COMMUNITIES,313Y LTD,770.00,VIOLENCE AGAINST WOMEN & GIRLS,MARKETING & PUBLICITY SERVICES,5902422490,1000078584
03.07.2020,CUSTOMER EXPERIENCE,CORAM VOICE,"3,620.00",COMPLAINTS,EXTERNAL AGENCIES AND BODIES,5902423332,1000076392
03.07.2020,CUSTOMER EXPERIENCE,ARGOS BUSINESS SOLUTIONS LTD,966.56,PECKHAM MSSP,OFFICE EXPENSES,5902423321,1000001734
03.07.2020,CUSTOMER EXPERIENCE HGF,ALLIED PUBLICITY SERVICES LTD,627.61,BLUE BADGES,MATERIALS,5902423265,1000082115
03.07.2020,CUSTOMER EXPERIENCE HGF,CORONERS' COURTS SUPPORT SERVICE,"1,392.00",CORONER'S,PROFESSIONAL FEES,5902423357,1000077579
03.07.2020,CUSTOMER EXPERIENCE HGF,SG PATH LTD,415.80,CORONER'S,PROFESSIONAL FEES,5902423373,1000077883
03.07.2020,CUSTOMER EXPERIENCE HGF,SG PATH LTD,595.90,CORONER'S,PROFESSIONAL FEES,5902423342,1000077883
03.07.2020,CUSTOMER EXPERIENCE HGF,SG PATH LTD,595.90,CORONER'S,PROFESSIONAL FEES,5902423347,1000077883
03.07.2020,CUSTOMER EXPERIENCE HGF,IMPERIAL COLLEGE PROJECTS LTD,-344.00,CORONER'S,PROFESSIONAL FEES,5902423557,1000080106
03.07.2020,CUSTOMER EXPERIENCE HGF,IMPERIAL COLLEGE PROJECTS LTD,336.00,CORONER'S,PROFESSIONAL FEES,5902423014,1000080106
03.07.2020,CUSTOMER EXPERIENCE HGF,IMPERIAL COLLEGE PROJECTS LTD,344.00,CORONER'S,PROFESSIONAL FEES,5902423007,1000080106
03.07.2020,CUSTOMER EXPERIENCE HGF,IMPERIAL COLLEGE PROJECTS LTD,344.00,CORONER'S,PROFESSIONAL FEES,5902423559,1000080106
03.07.2020,CUSTOMER EXPERIENCE HGF,IMPERIAL COLLEGE PROJECTS LTD,452.00,CORONER'S,PROFESSIONAL FEES,5902423009,1000080106
03.07.2020,CUSTOMER EXPERIENCE HGF,IMPERIAL COLLEGE PROJECTS LTD,500.00,CORONER'S,PROFESSIONAL FEES,5902423004,1000080106
03.07.2020,CUSTOMER EXPERIENCE HGF,IMPERIAL COLLEGE PROJECTS LTD,612.00,CORONER'S,PROFESSIONAL FEES,5902423006,1000080106
03.07.2020,CUSTOMER EXPERIENCE HGF,OMNIA HOUSING LTD,"2,960.92",HOMELESS PROJECTS,GRANTS,5902423396,1000083861
03.07.2020,CUSTOMER EXPERIENCE HGF,TRADEMARK PROPERTY & INVESTMENT,"3,000.00",HOMELESS PROJECTS,GRANTS,5902422399,1000084617
03.07.2020,CUSTOMER EXPERIENCE HGF,UJJ PROPERTY LIMITED,"1,500.00",HOMELESS PROJECTS,GRANTS,5902422402,1000084668
03.07.2020,CUSTOMER EXPERIENCE HGF,IBIE OKUNGBOWA,"2,400.00",HOMELESS PROJECTS,GRANTS,5902423270,1000084768
03.07.2020,CUSTOMER EXPERIENCE HGF,LIVING ACCOMMODATION LTD,"1,530.00",NIGHTLY TA (NSC),EXTERNAL AGENCIES AND BODIES,5902423241,1000063985
03.07.2020,CUSTOMER EXPERIENCE HGF,LIVING ACCOMMODATION LTD,"1,581.00",NIGHTLY TA (NSC),EXTERNAL AGENCIES AND BODIES,5902423240,1000063985
03.07.2020,CUSTOMER EXPERIENCE HGF,DMS PROPERTIES SERVICES LTD,"26,888.00",NIGHTLY TA (NSC),EXTERNAL AGENCIES AND BODIES,5902423274,1000081522
03.07.2020,CUSTOMER EXPERIENCE HGF,DE FACTO FILMS LTD,"3,900.00",NIGHTLY TA (NSC),MARKETING & PUBLICITY SERVICES,5902423380,1000084780
03.07.2020,CUSTOMER EXPERIENCE HGF,NATIONWIDE ACCOMMODATION,"131,651.38",PSL PLACEMENTS,EXTERNAL AGENCIES AND BODIES,5902423402,1000076112
03.07.2020,CUSTOMER EXPERIENCE HGF,OAK HOUSING LTD,"3,383.40",PSL PLACEMENTS,EXTERNAL AGENCIES AND BODIES,5902423361,1000079310
03.07.2020,CUSTOMER EXPERIENCE HGF,TUNSTALL HEALTHCARE (UK) LTD,"1,400.00",SMART MOBILE RESPONSE TEAM,EQUIPMENT PURCHASE & REPAIR,5902423360,1012297
03.07.2020,ENVIRONMENT AND LEISURE,RH WROUGHT IRON,"6,450.00",CAPITAL PS (LEISURE),CONSTRUCTION MAIN CONTRACT -CERTIFICATED,2103118961,3000000680
03.07.2020,ENVIRONMENT DIRECTORATE,ARNOLD CLARK VEHICLE MANAGEMENT,420.64,CAR LEASING CTRL A/C,VEHICLE LEASING CHARGES,5902423242,1000079116
03.07.2020,ENVIRONMENT DIRECTORATE,ARNOLD CLARK VEHICLE MANAGEMENT,449.38,CAR LEASING CTRL A/C,VEHICLE LEASING CHARGES,5902423242,1000079116
03.07.2020,ENVIRONMENT DIRECTORATE,ARNOLD CLARK VEHICLE MANAGEMENT,458.47,CAR LEASING CTRL A/C,VEHICLE LEASING CHARGES,5902423254,1000079116
03.07.2020,ENVIRONMENT DIRECTORATE,ARNOLD CLARK VEHICLE MANAGEMENT,461.20,CAR LEASING CTRL A/C,VEHICLE LEASING CHARGES,5902423254,1000079116
03.07.2020,ENVIRONMENT DIRECTORATE,ARNOLD CLARK VEHICLE MANAGEMENT,503.72,CAR LEASING CTRL A/C,VEHICLE LEASING CHARGES,5902423244,1000079116
03.07.2020,ENVIRONMENT DIRECTORATE,ARNOLD CLARK VEHICLE MANAGEMENT,552.89,CAR LEASING CTRL A/C,VEHICLE LEASING CHARGES,5902423244,1000079116
03.07.2020,ENVIRONMENT DIRECTORATE,ARNOLD CLARK VEHICLE MANAGEMENT,838.32,CAR LEASING CTRL A/C,VEHICLE LEASING CHARGES,5902423249,1000079116
03.07.2020,ENVIRONMENT DIRECTORATE,ARNOLD CLARK VEHICLE MANAGEMENT,894.92,CAR LEASING CTRL A/C,VEHICLE LEASING CHARGES,5902423249,1000079116
03.07.2020,ENVIRONMENT DIRECTORATE,ARNOLD CLARK VEHICLE MANAGEMENT,"1,023.24",CAR LEASING CTRL A/C,VEHICLE LEASING CHARGES,5902423247,1000079116
03.07.2020,ENVIRONMENT DIRECTORATE,ARNOLD CLARK VEHICLE MANAGEMENT,"1,081.04",CAR LEASING CTRL A/C,VEHICLE LEASING CHARGES,5902423247,1000079116
03.07.2020,ENVIRONMENT DIRECTORATE,ARNOLD CLARK VEHICLE MANAGEMENT,"1,463.79",CAR LEASING CTRL A/C,VEHICLE LEASING CHARGES,5902423264,1000079116
03.07.2020,ENVIRONMENT DIRECTORATE,ARNOLD CLARK VEHICLE MANAGEMENT,"1,506.10",CAR LEASING CTRL A/C,VEHICLE LEASING CHARGES,5902423264,1000079116
03.07.2020,ENVIRONMENT DIRECTORATE,NEXUS VEHICLE MANAGEMENT LTD,385.30,FLEET INSURANCE WORKS,TRANSPORT INSURANCE COSTS,5902423390,1000083420
03.07.2020,ENVIRONMENT DIRECTORATE,WSP UK LTD,"3,717.00",TRANSPORT PROJECTS,CONSULTANTS SERVICES,5902422424,1000054214
03.07.2020,ENVIRONMENT DIRECTORATE,WSP UK LTD,"3,964.80",TRANSPORT PROJECTS,CONSULTANTS SERVICES,5902423353,1000054214
03.07.2020,EXCHEQUER SERVICES,THE BLUE BERMONDSEY BID CO LTD,"6,065.76",BERMONDSEY BID,EXTERNAL AGENCIES AND BODIES,2103120187,1000074877
03.07.2020,EXCHEQUER SERVICES,BETTER BANKSIDE,"87,274.11",BETTER BANKSIDE,EXTERNAL AGENCIES AND BODIES,2103120186,1000036227
03.07.2020,EXCHEQUER SERVICES,ALLPAY LTD,768.72,CASHIERS SLA,BANK CHARGES,5902423379,1000043001
03.07.2020,EXCHEQUER SERVICES,ALLPAY LTD,"3,016.02",CASHIERS SLA,BANK CHARGES,5902423365,1000043001
03.07.2020,EXCHEQUER SERVICES,BOTTOMLINE TECHNOLOGIES EUROPE LTD,"1,495.00",FC&P CONTROL,TRAINING,5902423354,1134527
03.07.2020,EXCHEQUER SERVICES,SOUTH BANK BID LTD,"11,796.89",SOUTH BANK,EXTERNAL AGENCIES AND BODIES,2103120189,1000075023
03.07.2020,EXCHEQUER SERVICES,LONDON BRIDGE BUSINESS IMPROVEMENT,"75,675.17",TEAM LONDON BRIDGE,EXTERNAL AGENCIES AND BODIES,2103120188,1000050879
03.07.2020,EXCHEQUER SERVICES,WE ARE WATERLOO,"17,242.21",WATERLOO QUARTER,EXTERNAL AGENCIES AND BODIES,2103120190,1000057618
03.07.2020,HOUSING,BRIDGEWATER ROOFING CONTRACTORS LTD,"122,694.19",BRC,I-WORLD CONTRACTORS HOLDING ACCOUNT,2103120271,3000001482
03.07.2020,HOUSING GENERAL FUND,THE KNOWLEDGE ACADEMY LTD,"2,400.00",CAPITAL PS (HOUSING GF),ICT ACQUISITION,5902423301,1000064533
03.07.2020,HOUSING HRA,POTTER RAPER LTD,"18,766.71",CAPITAL PS (HRA),CONSTRUCTION FEES  - EXTERNAL,5902423298,1009369
03.07.2020,HOUSING HRA,CALFORD SEADEN LLP,"1,604.91",CAPITAL PS (HRA),CONSTRUCTION FEES  - EXTERNAL,5902423395,1061592
03.07.2020,HOUSING HRA,CALFORD SEADEN LLP,"1,604.92",CAPITAL PS (HRA),CONSTRUCTION FEES  - EXTERNAL,5902423393,1061592
03.07.2020,HOUSING HRA,CALFORD SEADEN LLP,"1,862.00",CAPITAL PS (HRA),CONSTRUCTION FEES  - EXTERNAL,5902423397,1061592
03.07.2020,HOUSING HRA,CALFORD SEADEN LLP,"3,282.65",CAPITAL PS (HRA),CONSTRUCTION FEES  - EXTERNAL,5902423386,1061592
03.07.2020,HOUSING HRA,CALFORD SEADEN LLP,"10,204.97",CAPITAL PS (HRA),CONSTRUCTION FEES  - EXTERNAL,5902423384,1061592
03.07.2020,HOUSING HRA,COUNTRYWIDE ESTATE AGENTS,"3,538.75",CAPITAL PS (HRA),CONSTRUCTION FEES  - EXTERNAL,5902423283,1000083582
03.07.2020,HOUSING HRA,COUNTRYWIDE ESTATE AGENTS,"3,538.75",CAPITAL PS (HRA),CONSTRUCTION FEES  - EXTERNAL,5902423284,1000083582
03.07.2020,HOUSING HRA,COUNTRYWIDE ESTATE AGENTS,"4,488.75",CAPITAL PS (HRA),CONSTRUCTION FEES  - EXTERNAL,5902423288,1000083582
03.07.2020,HOUSING HRA,BLAKEDOWN LANDSCAPES,"57,285.00",CAPITAL PS (HRA),CONSTRUCTION MAIN CONTRACT,2103118962,4005399
03.07.2020,HOUSING HRA,WARNER LAND SURVEYS LTD,"1,090.00",CAPITAL PS (REGEN),CONSTRUCTION FEES  - EXTERNAL,5902423273,1000076964
03.07.2020,HOUSING HRA,RIDGE & PARTNERS LLP,"1,595.00",CAPITAL PS (REGEN),CONSTRUCTION FEES - ENGINEER,5902423271,1000042536
03.07.2020,HOUSING HRA,WILLIAM MARTIN PROPERTY CONSULTANTS,500.00,CAPITAL PS (REGEN),CONSTRUCTION FEES - ENGINEER,5902423302,1000062171
03.07.2020,HOUSING HRA,BUILT SERVICES DESIGN ASSOCIATES LTD,"18,000.00",CAPITAL PS (REGEN),CONSTRUCTION FEES - ENGINEER,5902423330,1000083230
03.07.2020,HOUSING HRA,POTTER RAPER LTD,"16,161.02",CAPITAL PS (REGEN),CONSTRUCTION FEES - QUANTITY SURVEYOR,5902423300,1009369
03.07.2020,HOUSING HRA,MARTIN ARNOLD LTD,"1,212.00",CAPITAL PS (REGEN),CONSTRUCTION SITE COSTS,5902423324,1000076993
03.07.2020,HOUSING HRA,MARTIN ARNOLD LTD,"23,575.18",CAPITAL PS (REGEN),CONSTRUCTION SITE COSTS,5902423320,1000076993
03.07.2020,INSURANCE FUNDS,ARTHUR J GALLAGHER INSURANCE BROKER,"20,160.00",PROPERTY RELATED INSURANCE,PROPERTY INSURANCE COSTS,5902423295,1000082644
03.07.2020,LEISURE DIRECTORATE,NPOWER LTD,909.44,BLUE ANCHOR LIBRARY,ELECTRICITY,5902423135,1000078994
03.07.2020,LEISURE DIRECTORATE,NPOWER,382.74,BRANDON LIBRARY,ELECTRICITY,5902423134,1000055441
03.07.2020,LEISURE DIRECTORATE,BRADY CORPORATION LTD,511.18,CEMETERIES,BUILDING R&M,5902423238,1000028202
03.07.2020,LEISURE DIRECTORATE,NPOWER LTD,409.23,GROVE VALE LIBRARY,ELECTRICITY,5902423096,1000078994
03.07.2020,MODERNISATION HGF,ARCH CONSULTING,"2,312.50",APPLICATIONS,SOFTWARE,5902423139,1000056829
03.07.2020,MODERNISATION HGF,BRITISH GAS,"1,220.03",CURLEW HOUSE,GAS,5902422549,1000054825
03.07.2020,PLANNING AND TRANSPORT,1SPATIAL GROUP LTD,860.00,DEVELOPMENT CONTROL ADMINSTRATION,COMPUTER MAINTENANCE,5902422382,1000082913
03.07.2020,REPORTING & TREASURY,THE BANK OF NEW YORK MELLON,899.27,CASH MANAGERS' COSTS,PROFESSIONAL FEES,5902423299,1000072540
03.07.2020,RESIDENT SERVICES,NPOWER,"1,444.45",OPERATIONS/OFFICES ACCOMMODATION,ELECTRICITY,5902422713,1000064203
03.07.2020,SBS OPERATIONS,N & C BUILDING MATERIALS,273.22,SBS AIDS AND ADAPTATIONS,MATERIALS,5902423018,1005586
04.07.2020,CHILDREN'S SERVICES,NUMBER 10 INTERIM LTD,"7,875.00",MANAGEMENT INFORMATION UNIT,PROFESSIONAL FEES,5902422590,1000075139
04.07.2020,COMMUNITIES,BLAKENEY LEIGH LTD,"5,422.00",TENANT MGT INITITIVES,DISCRETIONARY AWARDS AND FEES,5902423070,1438839
04.07.2020,COMMUNITIES,BLAKENEY LEIGH LTD,"7,275.00",TENANT MGT INITITIVES,DISCRETIONARY AWARDS AND FEES,5902423069,1438839
04.07.2020,CUSTOMER EXPERIENCE HGF,EURO HOTELS (THORNTON HEATH) LTD,"48,000.00",COVID-19 SUPPORT,EXTERNAL AGENCIES AND BODIES,5902422739,1000057571
04.07.2020,ENVIRONMENT DIRECTORATE,THE T P PARTNERSHIP,445.00,ESTATE CLEANING-GENERAL,OTHER CONTRACTORS,5902423348,1000045906
04.07.2020,EXCHEQUER SERVICES,SYDENHAM HILL T&RA,"3,500.00",SESS,OTHER PAYMENTS FOR CLIENTS,5902422437,1976617
04.07.2020,HOUSING HRA,CALFORD SEADEN LLP,933.04,CAPITAL PS (HRA),CONSTRUCTION FEES  - EXTERNAL,5902423272,1061592
04.07.2020,HOUSING HRA,BRESLIN CONSTRUCTION LTD,"5,800.00",CAPITAL PS (REGEN),CONSTRUCTION MAIN CONTRACT,5902422601,1000078031
04.07.2020,MODERNISATION HGF,INFINITY NETWORKS LTD,412.00,7 TALFOURD ROAD,BUILDING R&M,5902422578,1000035571
04.07.2020,PLANNING AND TRANSPORT,A.J. OAKES & PARTNERS,"1,300.00",CHARGEABLE BUILDING CONTROL,PROFESSIONAL FEES,5902422597,1000018688
05.07.2020,CENTRAL FUNCTIONS,ALLPAY LTD,"13,148.99",SERVICE LEVEL AGREEMENTS,BANK CHARGES,5902423339,1000043001
05.07.2020,CHIEF EXECUTIVE,LIVESEY EXCHANGE,"21,862.63",CAPITAL PS (REGEN),CONSTRUCTION,5902423068,1000082440
05.07.2020,COMMUNITIES,DRUGLINK LTD,"1,490.00",TIER 4 SERVICES,OTHER CONTRACTORS,5902423269,1000050942
05.07.2020,COMMUNITIES,DRUGLINK LTD,"1,490.00",TIER 4 SERVICES,OTHER CONTRACTORS,5902423275,1000050942
05.07.2020,CUSTOMER EXPERIENCE HGF,CLYDE & CO,"2,692.80",CORONER'S,PROFESSIONAL FEES,5902423087,1000067838
05.07.2020,CUSTOMER EXPERIENCE HGF,IMPERIAL COLLEGE PROJECTS LTD,336.00,CORONER'S,PROFESSIONAL FEES,5902422986,1000080106
05.07.2020,CUSTOMER EXPERIENCE HGF,IMPERIAL COLLEGE PROJECTS LTD,336.00,CORONER'S,PROFESSIONAL FEES,5902422990,1000080106
05.07.2020,CUSTOMER EXPERIENCE HGF,IMPERIAL COLLEGE PROJECTS LTD,516.00,CORONER'S,PROFESSIONAL FEES,5902422988,1000080106
05.07.2020,CUSTOMER EXPERIENCE HGF,AT LOCATION REAL ESTATES,"2,293.72",HOMELESS PROJECTS,GRANTS,5902423170,1000084765
05.07.2020,ENVIRONMENT DIRECTORATE,FUTURE GARMENTS LTD T/A EUROX,"3,160.00",MANAGEMENT TEAM,"CLOTHING, UNIFORMS & LAUNDRY",5902422800,1000080983
05.07.2020,ENVIRONMENT DIRECTORATE,TMS CONSULTANCY,"2,200.00",TRANSPORT PROJECTS,TRAINING,5902422942,1000045824
05.07.2020,EXCHEQUER SERVICES,PRINT4UK LTD,300.00,ADMINISTRATIVE SUPPORT,PRINTING,5902423260,1000059134
05.07.2020,HOUSING HRA,TROWERS & HAMLINS LLP,"2,730.00",CAPITAL PS (REGEN),CONSTRUCTION FEES  - EXTERNAL,5902423268,1000016239
05.07.2020,REGENERATION,PURCELL ARCHITECTURE LTD,"2,450.00",MISC INDUSTRIAL PROPERTIES,PROFESSIONAL FEES,5902423235,1000082955
05.07.2020,SOUTHWARK SCHOOL FOR FUTURE,FAITHFUL & GOULD,"5,103.25",CAPITAL PS (REGEN),CONSTRUCTION FEES,5902423343,1000061390
06.07.2020,ADULT SOCIAL CARE,REDACTED PERSONAL DATA,279.85,APPOINTEESHIPS,OTHER PAYMENTS FOR CLIENTS,REDACTED,REDACTED
06.07.2020,ADULT SOCIAL CARE,THE REGARD PARTNERSHIP,-408.04,DISCHARGE TO ACCESS,"MAND STATUTORY CHARGES, RESIDENTIAL",2103121519,1823223
06.07.2020,ADULT SOCIAL CARE,MANLEY COURT NURSING HOME (BUPA),"2,557.43",DISCHARGE TO ACCESS,NURSING PLACEMENTS FEES,2103121318,11101434
06.07.2020,ADULT SOCIAL CARE,MANLEY COURT NURSING HOME (BUPA),"3,680.40",DISCHARGE TO ACCESS,NURSING PLACEMENTS FEES,2103121134,11101434
06.07.2020,ADULT SOCIAL CARE,HAVELOCK COURT (BUPA CARE),"4,600.00",DISCHARGE TO ACCESS,NURSING PLACEMENTS FEES,2103120859,1000028902
06.07.2020,ADULT SOCIAL CARE,HC-ONE LTD (TOWER BRIDGE CARE HOME),"2,278.32",DISCHARGE TO ACCESS,NURSING PLACEMENTS FEES,2103121677,1000067670
06.07.2020,ADULT SOCIAL CARE,HC-ONE LTD (TOWER BRIDGE CARE HOME),"2,346.31",DISCHARGE TO ACCESS,NURSING PLACEMENTS FEES,2103121676,1000067670
06.07.2020,ADULT SOCIAL CARE,HC-ONE LTD (TOWER BRIDGE CARE HOME),"2,471.72",DISCHARGE TO ACCESS,NURSING PLACEMENTS FEES,2103121688,1000067670
06.07.2020,ADULT SOCIAL CARE,HC-ONE LTD (TOWER BRIDGE CARE HOME),"2,477.24",DISCHARGE TO ACCESS,NURSING PLACEMENTS FEES,2103121686,1000067670
06.07.2020,ADULT SOCIAL CARE,HC-ONE LTD (TOWER BRIDGE CARE HOME),"2,600.24",DISCHARGE TO ACCESS,NURSING PLACEMENTS FEES,2103121679,1000067670
06.07.2020,ADULT SOCIAL CARE,HC-ONE LTD (TOWER BRIDGE CARE HOME),"2,600.24",DISCHARGE TO ACCESS,NURSING PLACEMENTS FEES,2103121681,1000067670
06.07.2020,ADULT SOCIAL CARE,HC-ONE LTD (TOWER BRIDGE CARE HOME),"2,605.92",DISCHARGE TO ACCESS,NURSING PLACEMENTS FEES,2103121678,1000067670
06.07.2020,ADULT SOCIAL CARE,HC-ONE LTD (TOWER BRIDGE CARE HOME),"2,731.48",DISCHARGE TO ACCESS,NURSING PLACEMENTS FEES,2103121669,1000067670
06.07.2020,ADULT SOCIAL CARE,HC-ONE LTD (TOWER BRIDGE CARE HOME),"2,731.48",DISCHARGE TO ACCESS,NURSING PLACEMENTS FEES,2103121670,1000067670
06.07.2020,ADULT SOCIAL CARE,HC-ONE LTD (TOWER BRIDGE CARE HOME),"3,068.26",DISCHARGE TO ACCESS,NURSING PLACEMENTS FEES,2103121687,1000067670
06.07.2020,ADULT SOCIAL CARE,HC-ONE LTD (TOWER BRIDGE CARE HOME),"3,132.69",DISCHARGE TO ACCESS,NURSING PLACEMENTS FEES,2103121671,1000067670
06.07.2020,ADULT SOCIAL CARE,HC-ONE LTD (TOWER BRIDGE CARE HOME),"3,139.48",DISCHARGE TO ACCESS,NURSING PLACEMENTS FEES,2103121674,1000067670
06.07.2020,ADULT SOCIAL CARE,HC-ONE LTD (TOWER BRIDGE CARE HOME),"3,268.16",DISCHARGE TO ACCESS,NURSING PLACEMENTS FEES,2103121682,1000067670
06.07.2020,ADULT SOCIAL CARE,HC-ONE LTD (TOWER BRIDGE CARE HOME),"3,892.13",DISCHARGE TO ACCESS,NURSING PLACEMENTS FEES,2103121683,1000067670
06.07.2020,ADULT SOCIAL CARE,HC-ONE LTD (TOWER BRIDGE CARE HOME),"3,987.06",DISCHARGE TO ACCESS,NURSING PLACEMENTS FEES,2103121680,1000067670
06.07.2020,ADULT SOCIAL CARE,HC-ONE LTD (TOWER BRIDGE CARE HOME),"4,366.78",DISCHARGE TO ACCESS,NURSING PLACEMENTS FEES,2103121685,1000067670
06.07.2020,ADULT SOCIAL CARE,HC-ONE LTD (TOWER BRIDGE CARE HOME),"8,573.07",DISCHARGE TO ACCESS,NURSING PLACEMENTS FEES,2103121684,1000067670
06.07.2020,ADULT SOCIAL CARE,LONDON BOROUGH OF LAMBETH,"3,005.76",DISCHARGE TO ACCESS,NURSING PLACEMENTS FEES,2103121631,1000082496
06.07.2020,ADULT SOCIAL CARE,LONDON BOROUGH OF LAMBETH,"3,263.20",DISCHARGE TO ACCESS,NURSING PLACEMENTS FEES,2103121602,1000082496
06.07.2020,ADULT SOCIAL CARE,THE REGARD PARTNERSHIP,"17,867.84",DISCHARGE TO ACCESS,RESIDENTIAL CARE,2103121518,1823223
06.07.2020,ADULT SOCIAL CARE,ANCHOR TRUST,"2,223.24",DISCHARGE TO ACCESS,RESIDENTIAL CARE,2103121411,11257534
06.07.2020,ADULT SOCIAL CARE,ANCHOR TRUST,"2,223.24",DISCHARGE TO ACCESS,RESIDENTIAL CARE,2103121515,11257534
06.07.2020,ADULT SOCIAL CARE,ANCHOR TRUST,"2,540.85",DISCHARGE TO ACCESS,RESIDENTIAL CARE,2103121099,11257534
06.07.2020,ADULT SOCIAL CARE,SEEABILITY,"18,734.66",DISCHARGE TO ACCESS,RESIDENTIAL CARE,2103121452,1000043641
06.07.2020,ADULT SOCIAL CARE,CARE O LINE,"38,448.00",DISCHARGE TO ACCESS,SUPPORTED LIVING,2103120844,11241743
06.07.2020,ADULT SOCIAL CARE,PLUS SERVICES,"30,460.86",DISCHARGE TO ACCESS,SUPPORTED LIVING,2103121506,1000021241
06.07.2020,ADULT SOCIAL CARE,BRANDON TRUST,"7,409.35",DISCHARGE TO ACCESS,SUPPORTED LIVING,2103121149,1000042417
06.07.2020,ADULT SOCIAL CARE,INDEPENDENCE HOMES LTD,"21,837.96",DISCHARGE TO ACCESS,SUPPORTED LIVING,2103120954,1000058961
06.07.2020,ADULT SOCIAL CARE,TRANSFORM SUPPORTED ACCOMMODATION,"8,028.57",DISCHARGE TO ACCESS,SUPPORTED LIVING,2103121558,1000084155
06.07.2020,ADULT SOCIAL CARE,BEDE CAFE PROJECT,280.00,LD LTS 18-64,DAYCARE,2103121633,1553877
06.07.2020,ADULT SOCIAL CARE,BEDE CAFE PROJECT,280.00,LD LTS 18-64,DAYCARE,2103121666,1553877
06.07.2020,ADULT SOCIAL CARE,BEDE CAFE PROJECT,464.00,LD LTS 18-64,DAYCARE,2103121632,1553877
06.07.2020,ADULT SOCIAL CARE,BEDE CAFE PROJECT,464.00,LD LTS 18-64,DAYCARE,2103121637,1553877
06.07.2020,ADULT SOCIAL CARE,BEDE CAFE PROJECT,464.00,LD LTS 18-64,DAYCARE,2103121647,1553877
06.07.2020,ADULT SOCIAL CARE,BEDE CAFE PROJECT,464.00,LD LTS 18-64,DAYCARE,2103121650,1553877
06.07.2020,ADULT SOCIAL CARE,BEDE CAFE PROJECT,464.00,LD LTS 18-64,DAYCARE,2103121654,1553877
06.07.2020,ADULT SOCIAL CARE,BEDE CAFE PROJECT,464.00,LD LTS 18-64,DAYCARE,2103121658,1553877
06.07.2020,ADULT SOCIAL CARE,BEDE CAFE PROJECT,464.00,LD LTS 18-64,DAYCARE,2103121665,1553877
06.07.2020,ADULT SOCIAL CARE,BEDE CAFE PROJECT,696.00,LD LTS 18-64,DAYCARE,2103121641,1553877
06.07.2020,ADULT SOCIAL CARE,BEDE CAFE PROJECT,696.00,LD LTS 18-64,DAYCARE,2103121649,1553877
06.07.2020,ADULT SOCIAL CARE,BEDE CAFE PROJECT,696.00,LD LTS 18-64,DAYCARE,2103121662,1553877
06.07.2020,ADULT SOCIAL CARE,BEDE CAFE PROJECT,696.00,LD LTS 18-64,DAYCARE,2103121663,1553877
06.07.2020,ADULT SOCIAL CARE,BEDE CAFE PROJECT,928.00,LD LTS 18-64,DAYCARE,2103121636,1553877
06.07.2020,ADULT SOCIAL CARE,BEDE CAFE PROJECT,928.00,LD LTS 18-64,DAYCARE,2103121640,1553877
06.07.2020,ADULT SOCIAL CARE,BEDE CAFE PROJECT,928.00,LD LTS 18-64,DAYCARE,2103121646,1553877
06.07.2020,ADULT SOCIAL CARE,BEDE CAFE PROJECT,928.00,LD LTS 18-64,DAYCARE,2103121651,1553877
06.07.2020,ADULT SOCIAL CARE,BEDE CAFE PROJECT,928.00,LD LTS 18-64,DAYCARE,2103121655,1553877
06.07.2020,ADULT SOCIAL CARE,BEDE CAFE PROJECT,928.00,LD LTS 18-64,DAYCARE,2103121659,1553877
06.07.2020,ADULT SOCIAL CARE,BEDE CAFE PROJECT,928.00,LD LTS 18-64,DAYCARE,2103121664,1553877
06.07.2020,ADULT SOCIAL CARE,BEDE CAFE PROJECT,"1,020.00",LD LTS 18-64,DAYCARE,2103121643,1553877
06.07.2020,ADULT SOCIAL CARE,BEDE CAFE PROJECT,"1,160.00",LD LTS 18-64,DAYCARE,2103121652,1553877
06.07.2020,ADULT SOCIAL CARE,BEDE CAFE PROJECT,"1,160.00",LD LTS 18-64,DAYCARE,2103121661,1553877
06.07.2020,ADULT SOCIAL CARE,BEDE CAFE PROJECT,"1,320.00",LD LTS 18-64,DAYCARE,2103121638,1553877
06.07.2020,ADULT SOCIAL CARE,BEDE CAFE PROJECT,"2,200.00",LD LTS 18-64,DAYCARE,2103121642,1553877
06.07.2020,ADULT SOCIAL CARE,SAFFRONLAND HOMES (HESTIA),462.36,LD LTS 18-64,DAYCARE,2103121038,1000021616
06.07.2020,ADULT SOCIAL CARE,SAFFRONLAND HOMES (HESTIA),750.76,LD LTS 18-64,DAYCARE,2103121074,1000021616
06.07.2020,ADULT SOCIAL CARE,SAFFRONLAND HOMES (HESTIA),918.76,LD LTS 18-64,DAYCARE,2103120794,1000021616
06.07.2020,ADULT SOCIAL CARE,THE REGARD PARTNERSHIP,-442.60,LD LTS 18-64,DISCRETIONARY FLEXIBLE FEES & INCOME,2103119811,1823223
06.07.2020,ADULT SOCIAL CARE,RYDE HOUSE,-330.20,LD LTS 18-64,"MAND STATUTORY CHARGES, RESIDENTIAL",2103121283,1022373
06.07.2020,ADULT SOCIAL CARE,CHOICE SUPPORT,-349.08,LD LTS 18-64,"MAND STATUTORY CHARGES, RESIDENTIAL",2103121317,1104183
06.07.2020,ADULT SOCIAL CARE,CRAEGMOOR HEALTHCARE,-372.60,LD LTS 18-64,"MAND STATUTORY CHARGES, RESIDENTIAL",2103121377,1323845
06.07.2020,ADULT SOCIAL CARE,CHOICE CARE GROUP,-409.00,LD LTS 18-64,"MAND STATUTORY CHARGES, RESIDENTIAL",2103120890,1572506
06.07.2020,ADULT SOCIAL CARE,CHOICE CARE GROUP,-402.60,LD LTS 18-64,"MAND STATUTORY CHARGES, RESIDENTIAL",2103121204,1572506
06.07.2020,ADULT SOCIAL CARE,CHOICE CARE GROUP,-365.00,LD LTS 18-64,"MAND STATUTORY CHARGES, RESIDENTIAL",2103120521,1572506
06.07.2020,ADULT SOCIAL CARE,CHOICE CARE GROUP,-330.20,LD LTS 18-64,"MAND STATUTORY CHARGES, RESIDENTIAL",2103120525,1572506
06.07.2020,ADULT SOCIAL CARE,THE REGARD PARTNERSHIP,-414.20,LD LTS 18-64,"MAND STATUTORY CHARGES, RESIDENTIAL",2103121339,1823223
06.07.2020,ADULT SOCIAL CARE,THE REGARD PARTNERSHIP,-409.00,LD LTS 18-64,"MAND STATUTORY CHARGES, RESIDENTIAL",2103120460,1823223
06.07.2020,ADULT SOCIAL CARE,THE REGARD PARTNERSHIP,-409.00,LD LTS 18-64,"MAND STATUTORY CHARGES, RESIDENTIAL",2103121311,1823223
06.07.2020,ADULT SOCIAL CARE,THE REGARD PARTNERSHIP,-401.56,LD LTS 18-64,"MAND STATUTORY CHARGES, RESIDENTIAL",2103120492,1823223
06.07.2020,ADULT SOCIAL CARE,INSIGHT,-395.80,LD LTS 18-64,"MAND STATUTORY CHARGES, RESIDENTIAL",2103120837,1825618
06.07.2020,ADULT SOCIAL CARE,INSIGHT,-343.76,LD LTS 18-64,"MAND STATUTORY CHARGES, RESIDENTIAL",2103121105,1825618
06.07.2020,ADULT SOCIAL CARE,OGILVIE COURT,-414.20,LD LTS 18-64,"MAND STATUTORY CHARGES, RESIDENTIAL",2103120953,1910302
06.07.2020,ADULT SOCIAL CARE,THE AVENUES TRUST,-330.20,LD LTS 18-64,"MAND STATUTORY CHARGES, RESIDENTIAL",2103120843,1981708
06.07.2020,ADULT SOCIAL CARE,THE PADDOCK (THE SWALLOW GROUP),-569.40,LD LTS 18-64,"MAND STATUTORY CHARGES, RESIDENTIAL",2103120711,11153854
06.07.2020,ADULT SOCIAL CARE,THE PADDOCK (THE SWALLOW GROUP),-569.40,LD LTS 18-64,"MAND STATUTORY CHARGES, RESIDENTIAL",2103120846,11153854
06.07.2020,ADULT SOCIAL CARE,ANCHOR TRUST,-566.20,LD LTS 18-64,"MAND STATUTORY CHARGES, RESIDENTIAL",2103121047,11257534
06.07.2020,ADULT SOCIAL CARE,ACHIEVE TOGETHER,-400.60,LD LTS 18-64,"MAND STATUTORY CHARGES, RESIDENTIAL",2103121529,11307451
06.07.2020,ADULT SOCIAL CARE,THE DRIVE CARE HOMES LTD,-330.20,LD LTS 18-64,"MAND STATUTORY CHARGES, RESIDENTIAL",2103120887,1000003889
06.07.2020,ADULT SOCIAL CARE,THE FRANCES TAYLOR FOUNDATION,-402.60,LD LTS 18-64,"MAND STATUTORY CHARGES, RESIDENTIAL",2103121197,1000007274
06.07.2020,ADULT SOCIAL CARE,CLACTON FAMILY TRUST LTD,-386.60,LD LTS 18-64,"MAND STATUTORY CHARGES, RESIDENTIAL",2103121430,1000012183
06.07.2020,ADULT SOCIAL CARE,ACTION ON HEARING LOSS,-330.20,LD LTS 18-64,"MAND STATUTORY CHARGES, RESIDENTIAL",2103121362,1000014488
06.07.2020,ADULT SOCIAL CARE,ASHINGHAM HOUSE LIMITED,-330.20,LD LTS 18-64,"MAND STATUTORY CHARGES, RESIDENTIAL",2103121068,1000016504
06.07.2020,ADULT SOCIAL CARE,NATIONAL AUTISTIC SOCIETY CARE PACK,-414.20,LD LTS 18-64,"MAND STATUTORY CHARGES, RESIDENTIAL",2103120914,1000020538
06.07.2020,ADULT SOCIAL CARE,ASHDENE HOUSE LIMITED,-401.56,LD LTS 18-64,"MAND STATUTORY CHARGES, RESIDENTIAL",2103120956,1000021007
06.07.2020,ADULT SOCIAL CARE,SAFFRONLAND HOMES (HESTIA),-330.20,LD LTS 18-64,"MAND STATUTORY CHARGES, RESIDENTIAL",2103120793,1000021616
06.07.2020,ADULT SOCIAL CARE,SAFFRONLAND HOMES (HESTIA),-330.20,LD LTS 18-64,"MAND STATUTORY CHARGES, RESIDENTIAL",2103120892,1000021616
06.07.2020,ADULT SOCIAL CARE,SAFFRONLAND HOMES (HESTIA),-330.20,LD LTS 18-64,"MAND STATUTORY CHARGES, RESIDENTIAL",2103121037,1000021616
06.07.2020,ADULT SOCIAL CARE,SAFFRONLAND HOMES (HESTIA),-330.20,LD LTS 18-64,"MAND STATUTORY CHARGES, RESIDENTIAL",2103121073,1000021616
06.07.2020,ADULT SOCIAL CARE,SAFFRONLAND HOMES (HESTIA),-330.20,LD LTS 18-64,"MAND STATUTORY CHARGES, RESIDENTIAL",2103121238,1000021616
06.07.2020,ADULT SOCIAL CARE,NEXUS PROGRAMME LTD,-402.60,LD LTS 18-64,"MAND STATUTORY CHARGES, RESIDENTIAL",2103121381,1000025336
06.07.2020,ADULT SOCIAL CARE,CHOICE SUPPORT,-384.80,LD LTS 18-64,"MAND STATUTORY CHARGES, RESIDENTIAL",2103120621,1000031156
06.07.2020,ADULT SOCIAL CARE,STEPPING STONES RESETTLEMENT UNIT,-330.20,LD LTS 18-64,"MAND STATUTORY CHARGES, RESIDENTIAL",2103120528,1000032806
06.07.2020,ADULT SOCIAL CARE,ROYAL MENCAP SOCIETY,-409.00,LD LTS 18-64,"MAND STATUTORY CHARGES, RESIDENTIAL",2103121523,1000034706
06.07.2020,ADULT SOCIAL CARE,ASD UNIQUE SERVICES LTD,-330.20,LD LTS 18-64,"MAND STATUTORY CHARGES, RESIDENTIAL",2103121367,1000038819
06.07.2020,ADULT SOCIAL CARE,CARE MANAGEMENT GROUP,-574.80,LD LTS 18-64,"MAND STATUTORY CHARGES, RESIDENTIAL",2103121056,1000040475
06.07.2020,ADULT SOCIAL CARE,CARE MANAGEMENT GROUP,-408.04,LD LTS 18-64,"MAND STATUTORY CHARGES, RESIDENTIAL",2103121487,1000040475
06.07.2020,ADULT SOCIAL CARE,CARE MANAGEMENT GROUP,-343.80,LD LTS 18-64,"MAND STATUTORY CHARGES, RESIDENTIAL",2103121315,1000040475
06.07.2020,ADULT SOCIAL CARE,VOYAGE LTD (EVESLEIGH KENT),-409.00,LD LTS 18-64,"MAND STATUTORY CHARGES, RESIDENTIAL",2103121537,1000041320
06.07.2020,ADULT SOCIAL CARE,VOYAGE LTD (EVESLEIGH KENT),-349.60,LD LTS 18-64,"MAND STATUTORY CHARGES, RESIDENTIAL",2103120561,1000041320
06.07.2020,ADULT SOCIAL CARE,VOYAGE LTD (EVESLEIGH KENT),-330.20,LD LTS 18-64,"MAND STATUTORY CHARGES, RESIDENTIAL",2103120494,1000041320
06.07.2020,ADULT SOCIAL CARE,FERRY CARE LTD,-330.20,LD LTS 18-64,"MAND STATUTORY CHARGES, RESIDENTIAL",2103120906,1000041775
06.07.2020,ADULT SOCIAL CARE,VALUE IN CARE LTD,-348.60,LD LTS 18-64,"MAND STATUTORY CHARGES, RESIDENTIAL",2103121342,1000041975
06.07.2020,ADULT SOCIAL CARE,THE CHILTERNS - OPTIMA CARE,-330.20,LD LTS 18-64,"MAND STATUTORY CHARGES, RESIDENTIAL",2103120773,1000042209
06.07.2020,ADULT SOCIAL CARE,BRANDON TRUST,-409.00,LD LTS 18-64,"MAND STATUTORY CHARGES, RESIDENTIAL",2103120551,1000042417
06.07.2020,ADULT SOCIAL CARE,BRANDON TRUST,-409.00,LD LTS 18-64,"MAND STATUTORY CHARGES, RESIDENTIAL",2103120562,1000042417
06.07.2020,ADULT SOCIAL CARE,SEEABILITY,-330.20,LD LTS 18-64,"MAND STATUTORY CHARGES, RESIDENTIAL",2103121451,1000043641
06.07.2020,ADULT SOCIAL CARE,SENSE,-402.60,LD LTS 18-64,"MAND STATUTORY CHARGES, RESIDENTIAL",2103120824,1000046797
06.07.2020,ADULT SOCIAL CARE,LEONARD CHESHIRE (GARDEN HOUSE),-343.80,LD LTS 18-64,"MAND STATUTORY CHARGES, RESIDENTIAL",2103121371,1000049748
06.07.2020,ADULT SOCIAL CARE,LEONARD CHESHIRE (GARDEN HOUSE),-330.20,LD LTS 18-64,"MAND STATUTORY CHARGES, RESIDENTIAL",2103121401,1000049748
06.07.2020,ADULT SOCIAL CARE,LEONARD CHESHIRE (THICKET ROAD),-330.20,LD LTS 18-64,"MAND STATUTORY CHARGES, RESIDENTIAL",2103120903,1000049761
06.07.2020,ADULT SOCIAL CARE,GLEN CARE GROUP,-409.52,LD LTS 18-64,"MAND STATUTORY CHARGES, RESIDENTIAL",2103120573,1000050223
06.07.2020,ADULT SOCIAL CARE,FIR TREE LODGE (SEE ABILITY),-348.60,LD LTS 18-64,"MAND STATUTORY CHARGES, RESIDENTIAL",2103120986,1000052257
06.07.2020,ADULT SOCIAL CARE,GROVE CARE PARTNERSHIP,-355.32,LD LTS 18-64,"MAND STATUTORY CHARGES, RESIDENTIAL",2103120943,1000052893
06.07.2020,ADULT SOCIAL CARE,MAYFIELD CHILDRENS HOME,-409.00,LD LTS 18-64,"MAND STATUTORY CHARGES, RESIDENTIAL",2103121168,1000054051
06.07.2020,ADULT SOCIAL CARE,THE DRIVE CARE HOMES LTD (ADULTS),-330.20,LD LTS 18-64,"MAND STATUTORY CHARGES, RESIDENTIAL",2103120702,1000055145
06.07.2020,ADULT SOCIAL CARE,THE MEATH,-426.40,LD LTS 18-64,"MAND STATUTORY CHARGES, RESIDENTIAL",2103120577,1000056796
06.07.2020,ADULT SOCIAL CARE,THE MEATH,-360.80,LD LTS 18-64,"MAND STATUTORY CHARGES, RESIDENTIAL",2103121592,1000056796
06.07.2020,ADULT SOCIAL CARE,BROADHAM CARE LIMITED,-330.20,LD LTS 18-64,"MAND STATUTORY CHARGES, RESIDENTIAL",2103121120,1000057411
06.07.2020,ADULT SOCIAL CARE,GLENPAT HOMES,-330.20,LD LTS 18-64,"MAND STATUTORY CHARGES, RESIDENTIAL",2103121327,1000059312
06.07.2020,ADULT SOCIAL CARE,AITCH CARE HOMES (LONDON) LTD,-569.40,LD LTS 18-64,"MAND STATUTORY CHARGES, RESIDENTIAL",2103121622,1000059432
06.07.2020,ADULT SOCIAL CARE,31 WOODBOURNE (FRANCES TAYLOR FOUNDATION),-402.60,LD LTS 18-64,"MAND STATUTORY CHARGES, RESIDENTIAL",2103120633,1000063870
06.07.2020,ADULT SOCIAL CARE,CRAEGMOOR WHEELHOUSE PRIORY,-415.00,LD LTS 18-64,"MAND STATUTORY CHARGES, RESIDENTIAL",2103121279,1000068452
06.07.2020,ADULT SOCIAL CARE,CRAEGMOOR DEVONSHIRE ROAD PRIORY,-414.20,LD LTS 18-64,"MAND STATUTORY CHARGES, RESIDENTIAL",2103121479,1000068453
06.07.2020,ADULT SOCIAL CARE,CARLTON NURSING HOMES LTD,-327.00,LD LTS 18-64,"MAND STATUTORY CHARGES, RESIDENTIAL",2103121562,1000070431
06.07.2020,ADULT SOCIAL CARE,CLEARWATER CARE (HACKNEY) LTD,-430.60,LD LTS 18-64,"MAND STATUTORY CHARGES, RESIDENTIAL",2103121483,1000070479
06.07.2020,ADULT SOCIAL CARE,SAFFRONLAND HOMES,-569.40,LD LTS 18-64,"MAND STATUTORY CHARGES, RESIDENTIAL",2103121620,1000072152
06.07.2020,ADULT SOCIAL CARE,SAFFRONLAND HOMES,-330.20,LD LTS 18-64,"MAND STATUTORY CHARGES, RESIDENTIAL",2103121086,1000072152
06.07.2020,ADULT SOCIAL CARE,SAFFRONLAND HOMES,-330.20,LD LTS 18-64,"MAND STATUTORY CHARGES, RESIDENTIAL",2103121186,1000072152
06.07.2020,ADULT SOCIAL CARE,SAFFRONLAND HOMES,-409.00,LD LTS 18-64,"MAND STATUTORY CHARGES, RESIDENTIAL",2103120817,1000072153
06.07.2020,ADULT SOCIAL CARE,CRAEGMOOR WILLOWS HYTHE PRIORY,-414.20,LD LTS 18-64,"MAND STATUTORY CHARGES, RESIDENTIAL",2103121508,1000072287
06.07.2020,ADULT SOCIAL CARE,CRAEGMOOR (WINDSOR HOUSE),-414.20,LD LTS 18-64,"MAND STATUTORY CHARGES, RESIDENTIAL",2103120870,1000072462
06.07.2020,ADULT SOCIAL CARE,L'ARCHE LONDON COMMUNITY,-321.80,LD LTS 18-64,"MAND STATUTORY CHARGES, RESIDENTIAL",2103121581,1000074124
06.07.2020,ADULT SOCIAL CARE,DIAGRAMA HEALTH CARE,-360.80,LD LTS 18-64,"MAND STATUTORY CHARGES, RESIDENTIAL",2103121392,1000075492
06.07.2020,ADULT SOCIAL CARE,DIAGRAMA HEALTH CARE,-330.20,LD LTS 18-64,"MAND STATUTORY CHARGES, RESIDENTIAL",2103120607,1000075492
06.07.2020,ADULT SOCIAL CARE,DIAGRAMA HEALTH CARE,-330.20,LD LTS 18-64,"MAND STATUTORY CHARGES, RESIDENTIAL",2103120926,1000075492
06.07.2020,ADULT SOCIAL CARE,DIAGRAMA HEALTH CARE,-330.20,LD LTS 18-64,"MAND STATUTORY CHARGES, RESIDENTIAL",2103121078,1000075492
06.07.2020,ADULT SOCIAL CARE,VOYAGE CARE (MOUNTEARL),-321.80,LD LTS 18-64,"MAND STATUTORY CHARGES, RESIDENTIAL",2103121001,1000078173
06.07.2020,ADULT SOCIAL CARE,RESIDENTIAL CARE SERVICES LTD,-269.40,LD LTS 18-64,"MAND STATUTORY CHARGES, RESIDENTIAL",2103121212,1000082629
06.07.2020,ADULT SOCIAL CARE,LOVING CARE LTD,-295.00,LD LTS 18-64,"MAND STATUTORY CHARGES, RESIDENTIAL",2103120796,1000082873
06.07.2020,ADULT SOCIAL CARE,PARKCARE HOMES (NO.2) LTD T/A MARSHLANDS,-414.60,LD LTS 18-64,"MAND STATUTORY CHARGES, RESIDENTIAL",2103121500,1000083487
06.07.2020,ADULT SOCIAL CARE,NATIONAL AUTISTIC SOCIETY CARE PACK,"2,620.32",LD LTS 18-64,OTHER PAYMENTS FOR CLIENTS,2103121554,1000020538
06.07.2020,ADULT SOCIAL CARE,ROYAL MENCAP SOCIETY,750.40,LD LTS 18-64,OTHER PAYMENTS FOR CLIENTS,2103121524,1000034706
06.07.2020,ADULT SOCIAL CARE,FIR TREE LODGE (SEE ABILITY),323.20,LD LTS 18-64,OTHER PAYMENTS FOR CLIENTS,2103120626,1000052257
06.07.2020,ADULT SOCIAL CARE,CRAEGMOOR WHEELHOUSE PRIORY,870.00,LD LTS 18-64,OTHER PAYMENTS FOR CLIENTS,2103121219,1000068452
06.07.2020,ADULT SOCIAL CARE,BRITISH HOME & HOSPITAL FOR INCURABLES,"6,120.00",LD LTS 18-64,RESIDENTIAL CARE,2103110833,1001606
06.07.2020,ADULT SOCIAL CARE,BRITISH HOME & HOSPITAL FOR INCURABLES,"6,120.00",LD LTS 18-64,RESIDENTIAL CARE,2103120658,1001606
06.07.2020,ADULT SOCIAL CARE,RYDE HOUSE,"4,022.88",LD LTS 18-64,RESIDENTIAL CARE,2103121282,1022373
06.07.2020,ADULT SOCIAL CARE,CHOICE SUPPORT,"4,544.40",LD LTS 18-64,RESIDENTIAL CARE,2103121166,1104183
06.07.2020,ADULT SOCIAL CARE,CHOICE SUPPORT,"5,841.68",LD LTS 18-64,RESIDENTIAL CARE,2103121316,1104183
06.07.2020,ADULT SOCIAL CARE,CHOICE SUPPORT,"6,735.36",LD LTS 18-64,RESIDENTIAL CARE,2103120780,1104183
06.07.2020,ADULT SOCIAL CARE,CRAEGMOOR HEALTHCARE,"7,451.56",LD LTS 18-64,RESIDENTIAL CARE,2103121376,1323845
06.07.2020,ADULT SOCIAL CARE,CHOICE CARE GROUP,"7,816.12",LD LTS 18-64,RESIDENTIAL CARE,2103121203,1572506
06.07.2020,ADULT SOCIAL CARE,CHOICE CARE GROUP,"8,121.84",LD LTS 18-64,RESIDENTIAL CARE,2103120524,1572506
06.07.2020,ADULT SOCIAL CARE,CHOICE CARE GROUP,"8,221.00",LD LTS 18-64,RESIDENTIAL CARE,2103120889,1572506
06.07.2020,ADULT SOCIAL CARE,CHOICE CARE GROUP,"8,572.00",LD LTS 18-64,RESIDENTIAL CARE,2103120520,1572506
06.07.2020,ADULT SOCIAL CARE,THE REGARD PARTNERSHIP,"4,949.88",LD LTS 18-64,RESIDENTIAL CARE,2103121310,1823223
06.07.2020,ADULT SOCIAL CARE,THE REGARD PARTNERSHIP,"6,902.16",LD LTS 18-64,RESIDENTIAL CARE,2103120491,1823223
06.07.2020,ADULT SOCIAL CARE,THE REGARD PARTNERSHIP,"7,417.44",LD LTS 18-64,RESIDENTIAL CARE,2103120459,1823223
06.07.2020,ADULT SOCIAL CARE,THE REGARD PARTNERSHIP,"9,104.92",LD LTS 18-64,RESIDENTIAL CARE,2103120826,1823223
06.07.2020,ADULT SOCIAL CARE,THE REGARD PARTNERSHIP,"11,378.08",LD LTS 18-64,RESIDENTIAL CARE,2103121338,1823223
06.07.2020,ADULT SOCIAL CARE,INSIGHT,"5,546.04",LD LTS 18-64,RESIDENTIAL CARE,2103121564,1825618
06.07.2020,ADULT SOCIAL CARE,INSIGHT,"8,976.00",LD LTS 18-64,RESIDENTIAL CARE,2103121417,1825618
06.07.2020,ADULT SOCIAL CARE,INSIGHT,"8,978.24",LD LTS 18-64,RESIDENTIAL CARE,2103120684,1825618
06.07.2020,ADULT SOCIAL CARE,INSIGHT,"9,443.36",LD LTS 18-64,RESIDENTIAL CARE,2103120836,1825618
06.07.2020,ADULT SOCIAL CARE,INSIGHT,"10,436.12",LD LTS 18-64,RESIDENTIAL CARE,2103121104,1825618
06.07.2020,ADULT SOCIAL CARE,OGILVIE COURT,"4,683.76",LD LTS 18-64,RESIDENTIAL CARE,2103120952,1910302
06.07.2020,ADULT SOCIAL CARE,THE AVENUES TRUST,"8,487.20",LD LTS 18-64,RESIDENTIAL CARE,2103120842,1981708
06.07.2020,ADULT SOCIAL CARE,THE PADDOCK (THE SWALLOW GROUP),"2,986.36",LD LTS 18-64,RESIDENTIAL CARE,2103120710,11153854
06.07.2020,ADULT SOCIAL CARE,SAFFRONLAND HOMES,"4,925.24",LD LTS 18-64,RESIDENTIAL CARE,2103121103,11172608
06.07.2020,ADULT SOCIAL CARE,RNIB COMMUNITY LIVING SERVICE,"7,129.24",LD LTS 18-64,RESIDENTIAL CARE,2103121138,11211087
06.07.2020,ADULT SOCIAL CARE,CARE O LINE,"-26,352.00",LD LTS 18-64,RESIDENTIAL CARE,2103120894,11241743
06.07.2020,ADULT SOCIAL CARE,ANCHOR TRUST,"2,081.52",LD LTS 18-64,RESIDENTIAL CARE,2103121046,11257534
06.07.2020,ADULT SOCIAL CARE,ACHIEVE TOGETHER,"6,612.24",LD LTS 18-64,RESIDENTIAL CARE,2103121528,11307451
06.07.2020,ADULT SOCIAL CARE,THE DRIVE CARE HOMES LTD,"9,792.00",LD LTS 18-64,RESIDENTIAL CARE,2103121008,1000003889
06.07.2020,ADULT SOCIAL CARE,THE FRANCES TAYLOR FOUNDATION,"2,493.64",LD LTS 18-64,RESIDENTIAL CARE,2103121196,1000007274
06.07.2020,ADULT SOCIAL CARE,CLACTON FAMILY TRUST LTD,"7,249.04",LD LTS 18-64,RESIDENTIAL CARE,2103121429,1000012183
06.07.2020,ADULT SOCIAL CARE,ACTION ON HEARING LOSS,"6,795.76",LD LTS 18-64,RESIDENTIAL CARE,2103121361,1000014488
06.07.2020,ADULT SOCIAL CARE,ASHINGHAM HOUSE LIMITED,"8,032.16",LD LTS 18-64,RESIDENTIAL CARE,2103121067,1000016504
06.07.2020,ADULT SOCIAL CARE,HAZELDENE LTD,"5,818.60",LD LTS 18-64,RESIDENTIAL CARE,2103120800,1000019679
06.07.2020,ADULT SOCIAL CARE,NATIONAL AUTISTIC SOCIETY CARE PACK,"5,198.12",LD LTS 18-64,RESIDENTIAL CARE,2103120915,1000020538
06.07.2020,ADULT SOCIAL CARE,ASHDENE HOUSE LIMITED,"3,659.12",LD LTS 18-64,RESIDENTIAL CARE,2103120955,1000021007
06.07.2020,ADULT SOCIAL CARE,PLUS SERVICES,"5,277.52",LD LTS 18-64,RESIDENTIAL CARE,2103120825,1000021241
06.07.2020,ADULT SOCIAL CARE,SAFFRONLAND HOMES (HESTIA),"7,784.36",LD LTS 18-64,RESIDENTIAL CARE,2103120765,1000021616
06.07.2020,ADULT SOCIAL CARE,SAFFRONLAND HOMES (HESTIA),"8,121.80",LD LTS 18-64,RESIDENTIAL CARE,2103120792,1000021616
06.07.2020,ADULT SOCIAL CARE,SAFFRONLAND HOMES (HESTIA),"8,121.80",LD LTS 18-64,RESIDENTIAL CARE,2103121036,1000021616
06.07.2020,ADULT SOCIAL CARE,SAFFRONLAND HOMES (HESTIA),"8,121.80",LD LTS 18-64,RESIDENTIAL CARE,2103121072,1000021616
06.07.2020,ADULT SOCIAL CARE,SAFFRONLAND HOMES (HESTIA),"8,560.88",LD LTS 18-64,RESIDENTIAL CARE,2103120495,1000021616
06.07.2020,ADULT SOCIAL CARE,NEXUS PROGRAMME LTD,"7,242.08",LD LTS 18-64,RESIDENTIAL CARE,2103121379,1000025336
06.07.2020,ADULT SOCIAL CARE,CHOICE SUPPORT,"5,175.08",LD LTS 18-64,RESIDENTIAL CARE,2103120620,1000031156
06.07.2020,ADULT SOCIAL CARE,STEPPING STONES RESETTLEMENT UNIT,"6,872.28",LD LTS 18-64,RESIDENTIAL CARE,2103120527,1000032806
06.07.2020,ADULT SOCIAL CARE,ROYAL MENCAP SOCIETY,"3,424.24",LD LTS 18-64,RESIDENTIAL CARE,2103121522,1000034706
06.07.2020,ADULT SOCIAL CARE,ASD UNIQUE SERVICES LTD,"5,702.96",LD LTS 18-64,RESIDENTIAL CARE,2103121366,1000038819
06.07.2020,ADULT SOCIAL CARE,CARE MANAGEMENT GROUP,"5,609.60",LD LTS 18-64,RESIDENTIAL CARE,2103121486,1000040475
06.07.2020,ADULT SOCIAL CARE,CARE MANAGEMENT GROUP,"7,745.24",LD LTS 18-64,RESIDENTIAL CARE,2103121314,1000040475
06.07.2020,ADULT SOCIAL CARE,VOYAGE LTD (EVESLEIGH KENT),"5,303.48",LD LTS 18-64,RESIDENTIAL CARE,2103120493,1000041320
06.07.2020,ADULT SOCIAL CARE,VOYAGE LTD (EVESLEIGH KENT),"6,213.16",LD LTS 18-64,RESIDENTIAL CARE,2103120560,1000041320
06.07.2020,ADULT SOCIAL CARE,VOYAGE LTD (EVESLEIGH KENT),"7,357.44",LD LTS 18-64,RESIDENTIAL CARE,2103121536,1000041320
06.07.2020,ADULT SOCIAL CARE,FERRY CARE LTD,"11,304.76",LD LTS 18-64,RESIDENTIAL CARE,2103120905,1000041775
06.07.2020,ADULT SOCIAL CARE,VALUE IN CARE LTD,"7,176.24",LD LTS 18-64,RESIDENTIAL CARE,2103121341,1000041975
06.07.2020,ADULT SOCIAL CARE,VALUE IN CARE LTD,"15,000.84",LD LTS 18-64,RESIDENTIAL CARE,2103121541,1000041975
06.07.2020,ADULT SOCIAL CARE,THE CHILTERNS - OPTIMA CARE,"10,619.32",LD LTS 18-64,RESIDENTIAL CARE,2103120513,1000042209
06.07.2020,ADULT SOCIAL CARE,THE CHILTERNS - OPTIMA CARE,"11,509.40",LD LTS 18-64,RESIDENTIAL CARE,2103120772,1000042209
06.07.2020,ADULT SOCIAL CARE,BRANDON TRUST,"5,718.56",LD LTS 18-64,RESIDENTIAL CARE,2103120476,1000042417
06.07.2020,ADULT SOCIAL CARE,BRANDON TRUST,"5,825.28",LD LTS 18-64,RESIDENTIAL CARE,2103120976,1000042417
06.07.2020,ADULT SOCIAL CARE,BRANDON TRUST,"5,874.48",LD LTS 18-64,RESIDENTIAL CARE,2103120744,1000042417
06.07.2020,ADULT SOCIAL CARE,SEEABILITY,"-8,029.14",LD LTS 18-64,RESIDENTIAL CARE,2103121450,1000043641
06.07.2020,ADULT SOCIAL CARE,SENSE,"9,759.36",LD LTS 18-64,RESIDENTIAL CARE,2103120823,1000046797
06.07.2020,ADULT SOCIAL CARE,LEONARD CHESHIRE (GARDEN HOUSE),"4,092.72",LD LTS 18-64,RESIDENTIAL CARE,2103121400,1000049748
06.07.2020,ADULT SOCIAL CARE,LEONARD CHESHIRE (GARDEN HOUSE),"4,466.44",LD LTS 18-64,RESIDENTIAL CARE,2103121449,1000049748
06.07.2020,ADULT SOCIAL CARE,LEONARD CHESHIRE (THICKET ROAD),"7,186.00",LD LTS 18-64,RESIDENTIAL CARE,2103120902,1000049761
06.07.2020,ADULT SOCIAL CARE,OCEAN COMMUNITY SERVICES LTD,"11,422.44",LD LTS 18-64,RESIDENTIAL CARE,2103120984,1000050124
06.07.2020,ADULT SOCIAL CARE,GLEN CARE GROUP,"4,738.92",LD LTS 18-64,RESIDENTIAL CARE,2103121538,1000050223
06.07.2020,ADULT SOCIAL CARE,GLEN CARE GROUP,"5,295.24",LD LTS 18-64,RESIDENTIAL CARE,2103120572,1000050223
06.07.2020,ADULT SOCIAL CARE,GLEN CARE GROUP,"7,005.36",LD LTS 18-64,RESIDENTIAL CARE,2103121130,1000050223
06.07.2020,ADULT SOCIAL CARE,GLEN CARE GROUP,"13,251.84",LD LTS 18-64,RESIDENTIAL CARE,2103121498,1000050223
06.07.2020,ADULT SOCIAL CARE,CYGNET CARE SERVICES LTD,"12,652.08",LD LTS 18-64,RESIDENTIAL CARE,2103120547,1000050432
06.07.2020,ADULT SOCIAL CARE,CYGNET CARE SERVICES LTD,"12,926.24",LD LTS 18-64,RESIDENTIAL CARE,2103121169,1000050432
06.07.2020,ADULT SOCIAL CARE,BURNHAM HOUSE,"7,752.00",LD LTS 18-64,RESIDENTIAL CARE,2103121133,1000050697
06.07.2020,ADULT SOCIAL CARE,FIR TREE LODGE (SEE ABILITY),"8,152.92",LD LTS 18-64,RESIDENTIAL CARE,2103120985,1000052257
06.07.2020,ADULT SOCIAL CARE,GROVE CARE PARTNERSHIP,"8,220.40",LD LTS 18-64,RESIDENTIAL CARE,2103120942,1000052893
06.07.2020,ADULT SOCIAL CARE,LA ROSA RESIDENTIAL CARE HOME,"2,636.88",LD LTS 18-64,RESIDENTIAL CARE,2103121424,1000053962
06.07.2020,ADULT SOCIAL CARE,MAYFIELD CHILDRENS HOME,"11,014.88",LD LTS 18-64,RESIDENTIAL CARE,2103121167,1000054051
06.07.2020,ADULT SOCIAL CARE,THE DRIVE CARE HOMES LTD (ADULTS),"7,410.51",LD LTS 18-64,RESIDENTIAL CARE,2103120701,1000055145
06.07.2020,ADULT SOCIAL CARE,THE MEATH,"5,295.24",LD LTS 18-64,RESIDENTIAL CARE,2103120576,1000056796
06.07.2020,ADULT SOCIAL CARE,THE MEATH,"5,874.96",LD LTS 18-64,RESIDENTIAL CARE,2103121591,1000056796
06.07.2020,ADULT SOCIAL CARE,BROADHAM CARE LIMITED,"7,344.00",LD LTS 18-64,RESIDENTIAL CARE,2103121119,1000057411
06.07.2020,ADULT SOCIAL CARE,BROADHAM CARE LIMITED,"7,971.16",LD LTS 18-64,RESIDENTIAL CARE,2103120630,1000057411
06.07.2020,ADULT SOCIAL CARE,INDEPENDENCE HOMES LTD,"-7,279.32",LD LTS 18-64,RESIDENTIAL CARE,2103121137,1000058961
06.07.2020,ADULT SOCIAL CARE,GLENPAT HOMES,"7,691.48",LD LTS 18-64,RESIDENTIAL CARE,2103121326,1000059312
06.07.2020,ADULT SOCIAL CARE,AITCH CARE HOMES (LONDON) LTD,"5,401.16",LD LTS 18-64,RESIDENTIAL CARE,2103121621,1000059432
06.07.2020,ADULT SOCIAL CARE,31 WOODBOURNE (FRANCES TAYLOR FOUNDATION),"2,493.64",LD LTS 18-64,RESIDENTIAL CARE,2103120632,1000063870
06.07.2020,ADULT SOCIAL CARE,PALM CARE LTD,"1,311.43",LD LTS 18-64,RESIDENTIAL CARE,2103120872,1000066042
06.07.2020,ADULT SOCIAL CARE,CARETECH COMMUNITY SERVICES LTD,"8,130.52",LD LTS 18-64,RESIDENTIAL CARE,2103120664,1000066698
06.07.2020,ADULT SOCIAL CARE,CARETECH COMMUNITY SERVICES LTD,"8,700.88",LD LTS 18-64,RESIDENTIAL CARE,2103120785,1000066698
06.07.2020,ADULT SOCIAL CARE,CARETECH COMMUNITY SERVICES LTD,"9,139.20",LD LTS 18-64,RESIDENTIAL CARE,2103121027,1000066698
06.07.2020,ADULT SOCIAL CARE,CRAEGMOOR WHEELHOUSE PRIORY,"5,364.24",LD LTS 18-64,RESIDENTIAL CARE,2103121278,1000068452
06.07.2020,ADULT SOCIAL CARE,CRAEGMOOR DEVONSHIRE ROAD PRIORY,"4,480.36",LD LTS 18-64,RESIDENTIAL CARE,2103121478,1000068453
06.07.2020,ADULT SOCIAL CARE,CARLTON NURSING HOMES LTD,"10,873.20",LD LTS 18-64,RESIDENTIAL CARE,2103121561,1000070431
06.07.2020,ADULT SOCIAL CARE,CLEARWATER CARE (HACKNEY) LTD,"6,936.00",LD LTS 18-64,RESIDENTIAL CARE,2103121482,1000070479
06.07.2020,ADULT SOCIAL CARE,SAFFRONLAND HOMES,"8,999.72",LD LTS 18-64,RESIDENTIAL CARE,2103120652,1000072152
06.07.2020,ADULT SOCIAL CARE,SAFFRONLAND HOMES,"10,009.60",LD LTS 18-64,RESIDENTIAL CARE,2103121195,1000072152
06.07.2020,ADULT SOCIAL CARE,SAFFRONLAND HOMES,"13,877.79",LD LTS 18-64,RESIDENTIAL CARE,2103120594,1000072153
06.07.2020,ADULT SOCIAL CARE,CRAEGMOOR WILLOWS HYTHE PRIORY,"3,304.80",LD LTS 18-64,RESIDENTIAL CARE,2103121507,1000072287
06.07.2020,ADULT SOCIAL CARE,CRAEGMOOR (WINDSOR HOUSE),"3,292.16",LD LTS 18-64,RESIDENTIAL CARE,2103120869,1000072462
06.07.2020,ADULT SOCIAL CARE,L'ARCHE LONDON COMMUNITY,"4,290.12",LD LTS 18-64,RESIDENTIAL CARE,2103121580,1000074124
06.07.2020,ADULT SOCIAL CARE,DIAGRAMA HEALTH CARE,"4,003.04",LD LTS 18-64,RESIDENTIAL CARE,2103121077,1000075492
06.07.2020,ADULT SOCIAL CARE,DIAGRAMA HEALTH CARE,"4,070.16",LD LTS 18-64,RESIDENTIAL CARE,2103120925,1000075492
06.07.2020,ADULT SOCIAL CARE,DIAGRAMA HEALTH CARE,"4,529.36",LD LTS 18-64,RESIDENTIAL CARE,2103120606,1000075492
06.07.2020,ADULT SOCIAL CARE,DIAGRAMA HEALTH CARE,"4,582.92",LD LTS 18-64,RESIDENTIAL CARE,2103120570,1000075492
06.07.2020,ADULT SOCIAL CARE,DIAGRAMA HEALTH CARE,"4,664.20",LD LTS 18-64,RESIDENTIAL CARE,2103121391,1000075492
06.07.2020,ADULT SOCIAL CARE,THE WHITE HOUSE CARE HOME,"3,345.60",LD LTS 18-64,RESIDENTIAL CARE,2103121066,1000076369
06.07.2020,ADULT SOCIAL CARE,ASHMEAD HEALTHCARE LTD,"9,204.48",LD LTS 18-64,RESIDENTIAL CARE,2103120901,1000077917
06.07.2020,ADULT SOCIAL CARE,VOYAGE CARE (MOUNTEARL),"6,924.64",LD LTS 18-64,RESIDENTIAL CARE,2103121000,1000078173
06.07.2020,ADULT SOCIAL CARE,VOYAGE CARE (MOUNTEARL),"10,433.28",LD LTS 18-64,RESIDENTIAL CARE,2103121601,1000078173
06.07.2020,ADULT SOCIAL CARE,NASH CARE HOMES LTD,"13,508.88",LD LTS 18-64,RESIDENTIAL CARE,2103121053,1000080224
06.07.2020,ADULT SOCIAL CARE,RESIDENTIAL CARE SERVICES LTD,"5,406.88",LD LTS 18-64,RESIDENTIAL CARE,2103121211,1000082629
06.07.2020,ADULT SOCIAL CARE,LOVING CARE LTD,"11,227.08",LD LTS 18-64,RESIDENTIAL CARE,2103120795,1000082873
06.07.2020,ADULT SOCIAL CARE,PARKCARE HOMES (NO.2) LTD T/A MARSHLANDS,"10,389.08",LD LTS 18-64,RESIDENTIAL CARE,2103121499,1000083487
06.07.2020,ADULT SOCIAL CARE,REESON CARE HOMES LTD,"9,608.40",LD LTS 18-64,RESIDENTIAL CARE,2103121395,1000084007
06.07.2020,ADULT SOCIAL CARE,CHOICE SUPPORT,"-1,756.16",LD LTS 18-64,SUPPORTED LIVING,2103121375,1104183
06.07.2020,ADULT SOCIAL CARE,CHOICE SUPPORT,587.84,LD LTS 18-64,SUPPORTED LIVING,2103121270,1104183
06.07.2020,ADULT SOCIAL CARE,CHOICE SUPPORT,688.88,LD LTS 18-64,SUPPORTED LIVING,2103121080,1104183
06.07.2020,ADULT SOCIAL CARE,CHOICE SUPPORT,705.60,LD LTS 18-64,SUPPORTED LIVING,2103121616,1104183
06.07.2020,ADULT SOCIAL CARE,CHOICE SUPPORT,846.76,LD LTS 18-64,SUPPORTED LIVING,2103120485,1104183
06.07.2020,ADULT SOCIAL CARE,CHOICE SUPPORT,"1,128.00",LD LTS 18-64,SUPPORTED LIVING,2103120778,1104183
06.07.2020,ADULT SOCIAL CARE,CHOICE SUPPORT,"1,543.08",LD LTS 18-64,SUPPORTED LIVING,2103120741,1104183
06.07.2020,ADULT SOCIAL CARE,CHOICE SUPPORT,"1,595.12",LD LTS 18-64,SUPPORTED LIVING,2103121064,1104183
06.07.2020,ADULT SOCIAL CARE,CHOICE SUPPORT,"2,498.32",LD LTS 18-64,SUPPORTED LIVING,2103121301,1104183
06.07.2020,ADULT SOCIAL CARE,CHOICE SUPPORT,"2,753.32",LD LTS 18-64,SUPPORTED LIVING,2103121296,1104183
06.07.2020,ADULT SOCIAL CARE,CHOICE SUPPORT,"2,909.80",LD LTS 18-64,SUPPORTED LIVING,2103120497,1104183
06.07.2020,ADULT SOCIAL CARE,CHOICE SUPPORT,"3,193.24",LD LTS 18-64,SUPPORTED LIVING,2103121213,1104183
06.07.2020,ADULT SOCIAL CARE,CHOICE SUPPORT,"3,331.80",LD LTS 18-64,SUPPORTED LIVING,2103120593,1104183
06.07.2020,ADULT SOCIAL CARE,CHOICE SUPPORT,"3,385.68",LD LTS 18-64,SUPPORTED LIVING,2103121398,1104183
06.07.2020,ADULT SOCIAL CARE,CHOICE SUPPORT,"3,546.24",LD LTS 18-64,SUPPORTED LIVING,2103120558,1104183
06.07.2020,ADULT SOCIAL CARE,CHOICE SUPPORT,"3,637.68",LD LTS 18-64,SUPPORTED LIVING,2103121600,1104183
06.07.2020,ADULT SOCIAL CARE,CHOICE SUPPORT,"3,673.36",LD LTS 18-64,SUPPORTED LIVING,2103121174,1104183
06.07.2020,ADULT SOCIAL CARE,CHOICE SUPPORT,"3,777.12",LD LTS 18-64,SUPPORTED LIVING,2103121410,1104183
06.07.2020,ADULT SOCIAL CARE,CHOICE SUPPORT,"3,836.00",LD LTS 18-64,SUPPORTED LIVING,2103120802,1104183
06.07.2020,ADULT SOCIAL CARE,CHOICE SUPPORT,"4,101.32",LD LTS 18-64,SUPPORTED LIVING,2103121313,1104183
06.07.2020,ADULT SOCIAL CARE,CHOICE SUPPORT,"4,374.76",LD LTS 18-64,SUPPORTED LIVING,2103121472,1104183
06.07.2020,ADULT SOCIAL CARE,CHOICE SUPPORT,"4,391.20",LD LTS 18-64,SUPPORTED LIVING,2103120523,1104183
06.07.2020,ADULT SOCIAL CARE,CHOICE SUPPORT,"4,517.28",LD LTS 18-64,SUPPORTED LIVING,2103121615,1104183
06.07.2020,ADULT SOCIAL CARE,CHOICE SUPPORT,"4,555.80",LD LTS 18-64,SUPPORTED LIVING,2103121129,1104183
06.07.2020,ADULT SOCIAL CARE,CHOICE SUPPORT,"4,572.28",LD LTS 18-64,SUPPORTED LIVING,2103120769,1104183
06.07.2020,ADULT SOCIAL CARE,CHOICE SUPPORT,"4,621.64",LD LTS 18-64,SUPPORTED LIVING,2103121139,1104183
06.07.2020,ADULT SOCIAL CARE,CHOICE SUPPORT,"4,621.64",LD LTS 18-64,SUPPORTED LIVING,2103121428,1104183
06.07.2020,ADULT SOCIAL CARE,CHOICE SUPPORT,"4,765.40",LD LTS 18-64,SUPPORTED LIVING,2103121222,1104183
06.07.2020,ADULT SOCIAL CARE,CHOICE SUPPORT,"4,826.76",LD LTS 18-64,SUPPORTED LIVING,2103121407,1104183
06.07.2020,ADULT SOCIAL CARE,CHOICE SUPPORT,"4,944.72",LD LTS 18-64,SUPPORTED LIVING,2103121091,1104183
06.07.2020,ADULT SOCIAL CARE,CHOICE SUPPORT,"4,999.76",LD LTS 18-64,SUPPORTED LIVING,2103121032,1104183
06.07.2020,ADULT SOCIAL CARE,CHOICE SUPPORT,"5,105.40",LD LTS 18-64,SUPPORTED LIVING,2103120951,1104183
06.07.2020,ADULT SOCIAL CARE,CHOICE SUPPORT,"5,105.40",LD LTS 18-64,SUPPORTED LIVING,2103121579,1104183
06.07.2020,ADULT SOCIAL CARE,CHOICE SUPPORT,"5,148.36",LD LTS 18-64,SUPPORTED LIVING,2103120736,1104183
06.07.2020,ADULT SOCIAL CARE,CHOICE SUPPORT,"5,180.96",LD LTS 18-64,SUPPORTED LIVING,2103121016,1104183
06.07.2020,ADULT SOCIAL CARE,CHOICE SUPPORT,"5,230.68",LD LTS 18-64,SUPPORTED LIVING,2103121144,1104183
06.07.2020,ADULT SOCIAL CARE,CHOICE SUPPORT,"5,289.48",LD LTS 18-64,SUPPORTED LIVING,2103121172,1104183
06.07.2020,ADULT SOCIAL CARE,CHOICE SUPPORT,"5,461.08",LD LTS 18-64,SUPPORTED LIVING,2103121165,1104183
06.07.2020,ADULT SOCIAL CARE,CHOICE SUPPORT,"5,467.52",LD LTS 18-64,SUPPORTED LIVING,2103121583,1104183
06.07.2020,ADULT SOCIAL CARE,CHOICE SUPPORT,"5,584.08",LD LTS 18-64,SUPPORTED LIVING,2103120631,1104183
06.07.2020,ADULT SOCIAL CARE,CHOICE SUPPORT,"5,778.88",LD LTS 18-64,SUPPORTED LIVING,2103121114,1104183
06.07.2020,ADULT SOCIAL CARE,CHOICE SUPPORT,"6,210.44",LD LTS 18-64,SUPPORTED LIVING,2103120468,1104183
06.07.2020,ADULT SOCIAL CARE,CHOICE SUPPORT,"6,234.72",LD LTS 18-64,SUPPORTED LIVING,2103120505,1104183
06.07.2020,ADULT SOCIAL CARE,CHOICE SUPPORT,"6,323.28",LD LTS 18-64,SUPPORTED LIVING,2103121513,1104183
06.07.2020,ADULT SOCIAL CARE,CHOICE SUPPORT,"6,560.84",LD LTS 18-64,SUPPORTED LIVING,2103120700,1104183
06.07.2020,ADULT SOCIAL CARE,CHOICE SUPPORT,"6,633.44",LD LTS 18-64,SUPPORTED LIVING,2103121281,1104183
06.07.2020,ADULT SOCIAL CARE,CHOICE SUPPORT,"6,657.00",LD LTS 18-64,SUPPORTED LIVING,2103120720,1104183
06.07.2020,ADULT SOCIAL CARE,CHOICE SUPPORT,"7,013.84",LD LTS 18-64,SUPPORTED LIVING,2103120529,1104183
06.07.2020,ADULT SOCIAL CARE,CHOICE SUPPORT,"7,138.28",LD LTS 18-64,SUPPORTED LIVING,2103121262,1104183
06.07.2020,ADULT SOCIAL CARE,CHOICE SUPPORT,"7,261.72",LD LTS 18-64,SUPPORTED LIVING,2103120993,1104183
06.07.2020,ADULT SOCIAL CARE,CHOICE SUPPORT,"7,586.84",LD LTS 18-64,SUPPORTED LIVING,2103120928,1104183
06.07.2020,ADULT SOCIAL CARE,CHOICE SUPPORT,"7,962.92",LD LTS 18-64,SUPPORTED LIVING,2103120531,1104183
06.07.2020,ADULT SOCIAL CARE,CHOICE SUPPORT,"8,080.68",LD LTS 18-64,SUPPORTED LIVING,2103120860,1104183
06.07.2020,ADULT SOCIAL CARE,CHOICE SUPPORT,"12,969.00",LD LTS 18-64,SUPPORTED LIVING,2103120730,1104183
06.07.2020,ADULT SOCIAL CARE,BEDE CAFE PROJECT,960.00,LD LTS 18-64,SUPPORTED LIVING,2103121656,1553877
06.07.2020,ADULT SOCIAL CARE,CHOICE CARE GROUP,"5,190.84",LD LTS 18-64,SUPPORTED LIVING,2103120657,1572506
06.07.2020,ADULT SOCIAL CARE,THE REGARD PARTNERSHIP,408.72,LD LTS 18-64,SUPPORTED LIVING,2103120650,1823223
06.07.2020,ADULT SOCIAL CARE,THE REGARD PARTNERSHIP,"2,920.96",LD LTS 18-64,SUPPORTED LIVING,2103120735,1823223
06.07.2020,ADULT SOCIAL CARE,THE REGARD PARTNERSHIP,"4,225.20",LD LTS 18-64,SUPPORTED LIVING,2103120608,1823223
06.07.2020,ADULT SOCIAL CARE,THE REGARD PARTNERSHIP,"4,400.00",LD LTS 18-64,SUPPORTED LIVING,2103121184,1823223
06.07.2020,ADULT SOCIAL CARE,THE REGARD PARTNERSHIP (IVY LODGE),"3,525.72",LD LTS 18-64,SUPPORTED LIVING,2103120768,11002026
06.07.2020,ADULT SOCIAL CARE,SAFFRONLAND HOMES,"13,360.00",LD LTS 18-64,SUPPORTED LIVING,2103121299,11172608
06.07.2020,ADULT SOCIAL CARE,PEABODY TRUST,281.28,LD LTS 18-64,SUPPORTED LIVING,2103120554,11275862
06.07.2020,ADULT SOCIAL CARE,PEABODY TRUST,281.28,LD LTS 18-64,SUPPORTED LIVING,2103120964,11275862
06.07.2020,ADULT SOCIAL CARE,PEABODY TRUST,301.28,LD LTS 18-64,SUPPORTED LIVING,2103120961,11275862
06.07.2020,ADULT SOCIAL CARE,PEABODY TRUST,421.92,LD LTS 18-64,SUPPORTED LIVING,2103120878,11275862
06.07.2020,ADULT SOCIAL CARE,PEABODY TRUST,441.92,LD LTS 18-64,SUPPORTED LIVING,2103121245,11275862
06.07.2020,ADULT SOCIAL CARE,PEABODY TRUST,562.56,LD LTS 18-64,SUPPORTED LIVING,2103120552,11275862
06.07.2020,ADULT SOCIAL CARE,PEABODY TRUST,562.56,LD LTS 18-64,SUPPORTED LIVING,2103120646,11275862
06.07.2020,ADULT SOCIAL CARE,PEABODY TRUST,582.56,LD LTS 18-64,SUPPORTED LIVING,2103121233,11275862
06.07.2020,ADULT SOCIAL CARE,PEABODY TRUST,"1,125.12",LD LTS 18-64,SUPPORTED LIVING,2103121533,11275862
06.07.2020,ADULT SOCIAL CARE,PEABODY TRUST,"1,895.44",LD LTS 18-64,SUPPORTED LIVING,2103121438,11275862
06.07.2020,ADULT SOCIAL CARE,PEABODY TRUST,"2,036.04",LD LTS 18-64,SUPPORTED LIVING,2103121051,11275862
06.07.2020,ADULT SOCIAL CARE,PEABODY TRUST,"2,314.20",LD LTS 18-64,SUPPORTED LIVING,2103121458,11275862
06.07.2020,ADULT SOCIAL CARE,PEABODY TRUST,"2,460.92",LD LTS 18-64,SUPPORTED LIVING,2103120496,11275862
06.07.2020,ADULT SOCIAL CARE,PEABODY TRUST,"2,809.56",LD LTS 18-64,SUPPORTED LIVING,2103121549,11275862
06.07.2020,ADULT SOCIAL CARE,PEABODY TRUST,"2,939.04",LD LTS 18-64,SUPPORTED LIVING,2103121305,11275862
06.07.2020,ADULT SOCIAL CARE,PEABODY TRUST,"3,144.64",LD LTS 18-64,SUPPORTED LIVING,2103120550,11275862
06.07.2020,ADULT SOCIAL CARE,MEDACS HOMECARE,"1,040.40",LD LTS 18-64,SUPPORTED LIVING,2103121214,11287415
06.07.2020,ADULT SOCIAL CARE,LINKAGE COMMUNITY TRUST LTD,"1,598.52",LD LTS 18-64,SUPPORTED LIVING,2103121249,1000003632
06.07.2020,ADULT SOCIAL CARE,SWK DISABLEMENT ASSN,409.92,LD LTS 18-64,SUPPORTED LIVING,2103121175,1000011698
06.07.2020,ADULT SOCIAL CARE,HAZELDENE LTD,"-2,034.00",LD LTS 18-64,SUPPORTED LIVING,2103120979,1000019679
06.07.2020,ADULT SOCIAL CARE,HAZELDENE LTD,"4,068.00",LD LTS 18-64,SUPPORTED LIVING,2103121092,1000019679
06.07.2020,ADULT SOCIAL CARE,PLUS SERVICES,"-23,491.00",LD LTS 18-64,SUPPORTED LIVING,2103120663,1000021241
06.07.2020,ADULT SOCIAL CARE,PLUS SERVICES,"4,534.00",LD LTS 18-64,SUPPORTED LIVING,2103120751,1000021241
06.07.2020,ADULT SOCIAL CARE,PLUS SERVICES,"4,970.16",LD LTS 18-64,SUPPORTED LIVING,2103120994,1000021241
06.07.2020,ADULT SOCIAL CARE,PLUS SERVICES,"5,097.56",LD LTS 18-64,SUPPORTED LIVING,2103120481,1000021241
06.07.2020,ADULT SOCIAL CARE,PLUS SERVICES,"5,272.80",LD LTS 18-64,SUPPORTED LIVING,2103120639,1000021241
06.07.2020,ADULT SOCIAL CARE,CARE MANAGEMENT GROUP,"3,940.00",LD LTS 18-64,SUPPORTED LIVING,2103121399,1000040475
06.07.2020,ADULT SOCIAL CARE,CARE MANAGEMENT GROUP,"4,360.00",LD LTS 18-64,SUPPORTED LIVING,2103120636,1000040475
06.07.2020,ADULT SOCIAL CARE,CARE MANAGEMENT GROUP,"4,908.00",LD LTS 18-64,SUPPORTED LIVING,2103121608,1000040475
06.07.2020,ADULT SOCIAL CARE,CARE MANAGEMENT GROUP,"4,960.00",LD LTS 18-64,SUPPORTED LIVING,2103120677,1000040475
06.07.2020,ADULT SOCIAL CARE,CARE MANAGEMENT GROUP,"5,240.56",LD LTS 18-64,SUPPORTED LIVING,2103120693,1000040475
06.07.2020,ADULT SOCIAL CARE,BRANDON TRUST,266.56,LD LTS 18-64,SUPPORTED LIVING,2103120482,1000042417
06.07.2020,ADULT SOCIAL CARE,BRANDON TRUST,331.20,LD LTS 18-64,SUPPORTED LIVING,2103121385,1000042417
06.07.2020,ADULT SOCIAL CARE,BRANDON TRUST,743.56,LD LTS 18-64,SUPPORTED LIVING,2103120721,1000042417
06.07.2020,ADULT SOCIAL CARE,BRANDON TRUST,"2,330.20",LD LTS 18-64,SUPPORTED LIVING,2103121630,1000042417
06.07.2020,ADULT SOCIAL CARE,BRANDON TRUST,"2,431.52",LD LTS 18-64,SUPPORTED LIVING,2103121176,1000042417
06.07.2020,ADULT SOCIAL CARE,BRANDON TRUST,"2,464.16",LD LTS 18-64,SUPPORTED LIVING,2103120975,1000042417
06.07.2020,ADULT SOCIAL CARE,BRANDON TRUST,"2,487.24",LD LTS 18-64,SUPPORTED LIVING,2103120779,1000042417
